Local authority department which incurred the expenditure,Service Division,Cost Centre,Summary of the Purpose of Expenditure,Expense Type,Expense Code,Detailed Expense Type,Date of Transaction,Transaction Number,Beneficiary,Merchant Category Number,Merchant Category,Gross Amount,VAT,Net Amount
Children and Young Peoples Services,Head of Looked After Provision Permanence and Care Leavers,085341,High Etherley Satelite Home,Supplies and Services,384985,Miscellaneous Expenses,01-Jan-2018,000006861146233,GRO HM PASSPORT OFFICE,9399,Miscellaneous-special facilities,9.25,0.00,9.25
Children and Young Peoples Services,Head of Looked After Provision Permanence and Care Leavers,085341,High Etherley Satelite Home,Supplies and Services,324117,Provisions,01-Jan-2018,000006861146235,TESCO STORES 6329,5411,Catering costs - provisions,19.35,0.00,19.35
Regeneration and Local Services,Direct Services,021234,Catering - Locomotion,Supplies and Services,324117,Provisions,01-Jan-2018,000006861146285,WWW.ADELIEFOODS.CO.UK,5499,Catering costs - provisions,70.12,0.00,70.12
Children and Young Peoples Services,Head of Looked After Provision Permanence and Care Leavers,085352,Tow Law CU,Supplies and Services,308011,Furniture,01-Jan-2018,000006861146291,IKEA LIMITED,5712,Furniture repair and replacement,42.90,0.00,42.90
Children and Young Peoples Services,Head of Education,071801,Selby Cottage Childcare Centre,Supplies and Services,304259,Equipment and Materials,02-Jan-2018,000006864681967,WILKO RETAIL LIMIT,5722,Equipment-purchase and rental,33.00,0.00,33.00
Children and Young Peoples Services,Head of Education,071801,Selby Cottage Childcare Centre,Supplies and Services,324117,Provisions,02-Jan-2018,000006864681969,TESCO STORES 2278,5411,Catering costs - provisions,47.16,0.00,47.16
Children and Young Peoples Services,Head of Education,071801,Selby Cottage Childcare Centre,Supplies and Services,324117,Provisions,02-Jan-2018,000006864681971,TESCO STORES 2278,5411,Catering costs - provisions,21.65,0.00,21.65
Children and Young Peoples Services,Head of Education,078411,16-19 Education & Training,Supplies and Services,340001,Postages,02-Jan-2018,000006864681975,ROYAL MAIL ONLINE SHOP,9402,Postages,425.00,0.00,425.00
Children and Young Peoples Services,Head of Looked After Provision Permanence and Care Leavers,085962,Durham,Supplies and Services,384999,Miscellaneous Expenses,02-Jan-2018,000006864681977,WWW.ARGOS.CO.UK,5310,Other expenses,23.94,3.99,19.95
Regeneration and Local Services,Economic Development and Housing,030699,Business Growth and Innovation General,Supplies and Services,304403,Equipment and Materials,02-Jan-2018,000006864681993,ADOBE CREATIVE CLOUD,5734,Other consumables,50.57,8.43,42.14
Regeneration and Local Services,Economic Development and Housing,030699,Business Growth and Innovation General,Supplies and Services,312011,Newspapers Books and Periodicals,02-Jan-2018,000006864681995,FASTHOSTS INTERNET,4816,Books-school library,59.99,10.00,49.99
Regeneration and Local Services,Culture & Sport,054812,Gala Theatre - Catering etc,Supplies and Services,324117,Provisions,02-Jan-2018,000006864681999,HOPWELLS LTD,5811,Catering costs - provisions,36.51,0.00,36.51
Regeneration and Local Services,Culture & Sport,054812,Gala Theatre - Catering etc,Supplies and Services,324117,Provisions,02-Jan-2018,000006864682001,HOPWELLS LTD,5811,Catering costs - provisions,-10.32,0.00,-10.32
Children and Young Peoples Services,Head of Education,071732,Dean Bank Childcare,Supplies and Services,324117,Provisions,02-Jan-2018,000006864682015,ASDA HOME SHOPPING,5411,Catering costs - provisions,46.98,0.00,46.98
Children and Young Peoples Services,Head of Education,071732,Dean Bank Childcare,Supplies and Services,324117,Provisions,02-Jan-2018,000006864682017,ASDA HOME SHOPPING,5411,Catering costs - provisions,-0.20,0.00,-0.20
Children and Young Peoples Services,Head of Looked After Provision Permanence and Care Leavers,085957,Secure Management,Supplies and Services,304259,Equipment and Materials,02-Jan-2018,000006864682019,M and M Direct Ltd,5941,Equipment-purchase and rental,126.89,0.00,126.89
Regeneration and Local Services,Spatial Policy Planning Assets & Environment,031222,North Pennines Allen Valleys Landscape Partnership,Supplies and Services,304259,Equipment and Materials,02-Jan-2018,000006864682021,WWWBUCKINGHAMNURSE,5261,Equipment-purchase and rental,162.00,0.00,162.00
Regeneration and Local Services,Culture & Sport,011060,Hardwick Park Catering,Supplies and Services,324117,Provisions,02-Jan-2018,000006864682023,HOPWELLS LTD,5811,Catering costs - provisions,134.97,0.00,134.97
Regeneration and Local Services,Culture & Sport,011060,Hardwick Park Catering,Supplies and Services,324117,Provisions,02-Jan-2018,000006864682025,HOPWELLS LTD,5811,Catering costs - provisions,74.46,12.41,62.05
Regeneration and Local Services,Culture & Sport,011060,Hardwick Park Catering,Supplies and Services,324117,Provisions,02-Jan-2018,000006864682025 - 1,HOPWELLS LTD,5811,Catering costs - provisions,55.28,,55.28
Regeneration and Local Services,Direct Services,021234,Catering - Locomotion,Supplies and Services,324117,Provisions,02-Jan-2018,000006864682027,HOPWELLS LTD,5811,Catering costs - provisions,84.48,14.08,70.40
Regeneration and Local Services,Direct Services,021234,Catering - Locomotion,Supplies and Services,324117,Provisions,02-Jan-2018,000006864682027 - 1,HOPWELLS LTD,5811,Catering costs - provisions,335.27,,335.27
Regeneration and Local Services,Economic Development and Housing,030749,Employability - Youth Contract,Transport,235057,Public Transport,02-Jan-2018,000006864682033,WWW.SIMPLYGO.COM,4131,Staff travelling,21.00,0.00,21.00
Regeneration and Local Services,Economic Development and Housing,030749,Employability - Youth Contract,Transport,235057,Public Transport,02-Jan-2018,000006864682035,ARRIVA NORTH EAST,4131,Staff travelling,14.50,0.00,14.50
Regeneration and Local Services,Economic Development and Housing,030749,Employability - Youth Contract,Transport,235057,Public Transport,02-Jan-2018,000006864682037,ARRIVA NORTH EAST,4131,Staff travelling,13.70,0.00,13.70
Regeneration and Local Services,Business Support,010832,Business Support,Supplies and Services,340001,Postages,02-Jan-2018,000006864682045,POST OFFICE COUNTER,9402,Postages,242.50,0.00,242.50
Regeneration and Local Services,Business Support,010832,Business Support,Supplies and Services,340001,Postages,02-Jan-2018,000006864682047,POST OFFICE COUNTER,9402,Postages,152.50,0.00,152.50
Regeneration and Local Services,Business Support,010832,Business Support,Supplies and Services,340001,Postages,02-Jan-2018,000006864682049,POST OFFICE COUNTER,9402,Postages,152.50,0.00,152.50
Regeneration and Local Services,Business Support,010832,Business Support,Supplies and Services,340001,Postages,02-Jan-2018,000006864682051,POST OFFICE COUNTER,9402,Postages,152.50,0.00,152.50
Regeneration and Local Services,Business Support,010832,Business Support,Supplies and Services,340001,Postages,02-Jan-2018,000006864682053,POST OFFICE COUNTER,9402,Postages,152.50,0.00,152.50
Regeneration and Local Services,Business Support,010832,Business Support,Supplies and Services,340001,Postages,02-Jan-2018,000006864682055,POST OFFICE COUNTER,9402,Postages,152.50,0.00,152.50
Regeneration and Local Services,Business Support,010832,Business Support,Supplies and Services,340001,Postages,02-Jan-2018,000006864682057,POST OFFICE COUNTER,9402,Postages,152.50,0.00,152.50
Regeneration and Local Services,Business Support,010832,Business Support,Supplies and Services,340001,Postages,02-Jan-2018,000006864682059,POST OFFICE COUNTER,9402,Postages,152.50,0.00,152.50
Regeneration and Local Services,Economic Development and Housing,031576,B& B - Temp Accom,Supplies and Services,352001,Conference Expenses,02-Jan-2018,000006864682061,TRAVELODGE,3615,Conferencesseminars fees etc,41.00,6.83,34.17
Regeneration and Local Services,Economic Development and Housing,031576,B& B - Temp Accom,Supplies and Services,352001,Conference Expenses,02-Jan-2018,000006864682063,TRAVELODGE,3615,Conferencesseminars fees etc,51.00,8.50,42.50
Regeneration and Local Services,Direct Services,021324,Catering - Meadowfield,Supplies and Services,324117,Provisions,02-Jan-2018,000006864682075,HOPWELLS LTD,5811,Catering costs - provisions,43.64,0.00,43.64
Adult and Health Services,Head of Adults,055807,Newton Aycliffe Pathways,Supplies and Services,324117,Provisions,02-Jan-2018,000006864682077,YOUNGS NEWSAGENTS LTD,5411,Catering costs - provisions,5.56,0.00,5.56
Regeneration and Local Services,Direct Services,021235,Catering - Wharton Park,Supplies and Services,324117,Provisions,02-Jan-2018,000006864682087,HOPWELLS LTD,5811,Catering costs - provisions,56.92,0.00,56.92
Children and Young Peoples Services,Head of Education,078411,16-19 Education & Training,Supplies and Services,304403,Equipment and Materials,02-Jan-2018,000006867111601,AMAZON EU AMAZON.CO.UK,5999,Other consumables,17.74,0.00,17.74
Children and Young Peoples Services,Head of Looked After Provision Permanence and Care Leavers,085957,Secure Management,Supplies and Services,328041,Clothing Uniforms and Laundry,02-Jan-2018,000006867111679,WWW.ARGOS.CO.UK,5310,Clothing uniforms and laundry,33.94,0.00,33.94
Regeneration and Local Services,Direct Services,021242,Catering - County Hall,Supplies and Services,324117,Provisions,02-Jan-2018,000006874710013,BATLEYS PERTH,5300,Catering costs - provisions,357.90,59.65,298.25
Regeneration and Local Services,Direct Services,021242,Catering - County Hall,Supplies and Services,324117,Provisions,02-Jan-2018,000006874710013 - 1,BATLEYS PERTH,5300,Catering costs - provisions,124.79,,124.79
Regeneration and Local Services,Direct Services,021242,Catering - County Hall,Supplies and Services,324117,Provisions,02-Jan-2018,000006874710017,BATLEYS PERTH,5300,Catering costs - provisions,37.74,0.00,37.74
Regeneration and Local Services,Culture & Sport,011060,Hardwick Park Catering,Supplies and Services,324117,Provisions,02-Jan-2018,000006874710153,BATLEYS PERTH,5300,Catering costs - provisions,231.18,38.53,192.65
Regeneration and Local Services,Culture & Sport,011060,Hardwick Park Catering,Supplies and Services,324117,Provisions,02-Jan-2018,000006874710153 - 1,BATLEYS PERTH,5300,Catering costs - provisions,263.56,,263.56
Regeneration and Local Services,Direct Services,021234,Catering - Locomotion,Supplies and Services,324117,Provisions,02-Jan-2018,000006874710199,BATLEYS PERTH,5300,Catering costs - provisions,278.76,46.46,232.30
Regeneration and Local Services,Direct Services,021234,Catering - Locomotion,Supplies and Services,324117,Provisions,02-Jan-2018,000006874710199 - 1,BATLEYS PERTH,5300,Catering costs - provisions,49.51,,49.51
Regeneration and Local Services,Direct Services,010525,Catering - Green Lane,Supplies and Services,324117,Provisions,02-Jan-2018,000006874710211,BATLEYS PERTH,5300,Catering costs - provisions,205.92,34.32,171.60
Regeneration and Local Services,Direct Services,010525,Catering - Green Lane,Supplies and Services,324117,Provisions,02-Jan-2018,000006874710211 - 1,BATLEYS PERTH,5300,Catering costs - provisions,91.40,,91.40
Regeneration and Local Services,Direct Services,010525,Catering - Green Lane,Supplies and Services,324117,Provisions,02-Jan-2018,000006874710219,BATLEYS PERTH,5300,Catering costs - provisions,4.30,0.00,4.30
Regeneration and Local Services,Culture & Sport,054235,Bishop Auckland Town Hall Cafe,Supplies and Services,324117,Provisions,02-Jan-2018,000006874710315,BATLEYS PERTH,5300,Catering costs - provisions,22.80,3.80,19.00
Regeneration and Local Services,Culture & Sport,054235,Bishop Auckland Town Hall Cafe,Supplies and Services,324117,Provisions,02-Jan-2018,000006874710315 - 1,BATLEYS PERTH,5300,Catering costs - provisions,68.20,,68.20
Regeneration and Local Services,Direct Services,021242,Catering - County Hall,Supplies and Services,324117,Provisions,03-Jan-2018,000006867111555,TESCO STORES 2916,5411,Catering costs - provisions,15.30,0.00,15.30
Regeneration and Local Services,Direct Services,021242,Catering - County Hall,Supplies and Services,324117,Provisions,03-Jan-2018,000006867111559,TESCO STORES 2916,5411,Catering costs - provisions,10.80,0.00,10.80
Children and Young Peoples Services,Head of Education,071801,Selby Cottage Childcare Centre,Supplies and Services,324117,Provisions,03-Jan-2018,000006867111571,TESCO STORES 2278,5411,Catering costs - provisions,6.00,0.00,6.00
Children and Young Peoples Services,Head of Education,078411,16-19 Education & Training,Supplies and Services,312011,Newspapers Books and Periodicals,03-Jan-2018,000006867111595,Amazon UK Marketplace,5942,Books-school library,17.79,0.00,17.79
Adult and Health Services,Head of Adults,055302,Durham Pathways,Supplies and Services,324117,Provisions,03-Jan-2018,000006867111609,SAINSBURYS SACAT 0776,5411,Catering costs - provisions,5.50,0.00,5.50
Adult and Health Services,Head of Adults,055302,Durham Pathways,Supplies and Services,324117,Provisions,03-Jan-2018,000006867111611,SAINSBURYS 0776,5411,Catering costs - provisions,67.94,0.00,67.94
Adult and Health Services,Head of Adults,055302,Durham Pathways,Supplies and Services,324117,Provisions,03-Jan-2018,000006867111613,ASDA STORES LTD 4313,5411,Catering costs - provisions,11.40,0.00,11.40
Children and Young Peoples Services,Head of Looked After Provision Permanence and Care Leavers,085957,Secure Management,Supplies and Services,338057,Services,03-Jan-2018,000006867111615,AMAZON SVCS EU-UK AMAZ,5942,Medical fees,33.99,0.00,33.99
Children and Young Peoples Services,Head of Looked After Provision Permanence and Care Leavers,085342,9 Cedar Drive Aycliffe,Supplies and Services,304259,Equipment and Materials,03-Jan-2018,000006867111627,J D SPORTS 152,5941,Equipment-purchase and rental,20.00,0.00,20.00
Children and Young Peoples Services,Head of Looked After Provision Permanence and Care Leavers,085342,9 Cedar Drive Aycliffe,Supplies and Services,304259,Equipment and Materials,03-Jan-2018,000006867111633,J D SPORTS 152,5941,Equipment-purchase and rental,25.00,0.00,25.00
Children and Young Peoples Services,Head of Looked After Provision Permanence and Care Leavers,085342,9 Cedar Drive Aycliffe,Supplies and Services,328041,Clothing Uniforms and Laundry,03-Jan-2018,000006867111635,NEW LOOK 1996,5621,Clothing uniforms and laundry,4.05,0.00,4.05
Adult and Health Services,Head of Adults,052909,Head of Adult Care,Income,720130,Fees and Charges,03-Jan-2018,000006867111637,WWW.MONEYCLAIM.GOV,9399,Fees-legal,486.28,0.00,486.28
Regeneration and Local Services,Culture & Sport,054812,Gala Theatre - Catering etc,Supplies and Services,324117,Provisions,03-Jan-2018,000006867111645,FREEMAN CATERING BUTCH,5422,Catering costs - provisions,24.30,0.00,24.30
Regeneration and Local Services,Culture & Sport,054812,Gala Theatre - Catering etc,Supplies and Services,324117,Provisions,03-Jan-2018,000006867111649,JR HOLLAND FOODSERVICE,5422,Catering costs - provisions,51.98,0.00,51.98
Children and Young Peoples Services,Head of Looked After Provision Permanence and Care Leavers,085362,LAC & Permanence Team 2,Supplies and Services,384871,Miscellaneous Expenses,03-Jan-2018,000006867111653,PAYPAL BATTLEZONEP,5941,Training-other activities,30.00,0.00,30.00
Children and Young Peoples Services,Head of Looked After Provision Permanence and Care Leavers,085957,Secure Management,Supplies and Services,324117,Provisions,03-Jan-2018,000006867111685,TESCO STORES 6329,5411,Catering costs - provisions,10.40,0.00,10.40
Children and Young Peoples Services,Head of Looked After Provision Permanence and Care Leavers,085957,Secure Management,Supplies and Services,324117,Provisions,03-Jan-2018,000006867111687,TESCO STORES 6329,5411,Catering costs - provisions,-10.40,0.00,-10.40
Regeneration and Local Services,Culture & Sport,011060,Hardwick Park Catering,Supplies and Services,324117,Provisions,03-Jan-2018,000006867111691,FREEMAN CATERING BUTCH,5422,Catering costs - provisions,48.80,0.00,48.80
Regeneration and Local Services,Culture & Sport,011060,Hardwick Park Catering,Supplies and Services,324117,Provisions,03-Jan-2018,000006867111693,FREEMAN CATERING BUTCH,5422,Catering costs - provisions,23.68,0.00,23.68
Regeneration and Local Services,Culture & Sport,011060,Hardwick Park Catering,Supplies and Services,324117,Provisions,03-Jan-2018,000006867111695,JR HOLLAND FOODSERVICE,5422,Catering costs - provisions,139.50,0.00,139.50
Children and Young Peoples Services,Head of Looked After Provision Permanence and Care Leavers,085332,Middlestone Moor CU,Supplies and Services,384999,Miscellaneous Expenses,03-Jan-2018,000006867111699,G.FAR LIMITED,5199,Other expenses,37.87,6.31,31.56
Resources,Resources Management,069000,Resources Management,Supplies and Services,324117,Provisions,03-Jan-2018,000006867111713,SAINSBURYS LOC4937,5411,Catering costs - provisions,8.80,0.00,8.80
Regeneration and Local Services,Economic Development and Housing,030690,Durham Dales Centre - Tourist Information Centre,Supplies and Services,384999,Miscellaneous Expenses,03-Jan-2018,000006867111719,GAINSBOROUGH GIFTWARE,5950,Other expenses,852.18,0.00,852.18
Regeneration and Local Services,Economic Development and Housing,030690,Durham Dales Centre - Tourist Information Centre,Supplies and Services,328041,Clothing Uniforms and Laundry,03-Jan-2018,000006867111721,ZELLY UK TRADING LTD,5651,Clothing uniforms and laundry,490.22,0.00,490.22
Regeneration and Local Services,Economic Development and Housing,031576,B& B - Temp Accom,Supplies and Services,364320,Grants to Voluntary Organisations,03-Jan-2018,000006867111723,TRAVELODGE,3615,Accommodation assistance,45.00,0.00,45.00
Regeneration and Local Services,Economic Development and Housing,031576,B& B - Temp Accom,Supplies and Services,364320,Grants to Voluntary Organisations,03-Jan-2018,000006867111725,TRAVELODGE,3615,Accommodation assistance,41.00,0.00,41.00
Adult and Health Services,Head of Adults,055306,Spennymoor Pathways,Supplies and Services,324117,Provisions,03-Jan-2018,000006867111741,ASDA SUPERSTORE 4987,5411,Catering costs - provisions,1.09,0.00,1.09
Regeneration and Local Services,Culture & Sport,011230,Operations Locality 2,Supplies and Services,312011,Newspapers Books and Periodicals,03-Jan-2018,000006867111747,CHARLES DICKENS (SPENN,5251,Books-school library,8.38,0.00,8.38
Regeneration and Local Services,Culture & Sport,011230,Operations Locality 2,Supplies and Services,324117,Provisions,03-Jan-2018,000006867111749,ASDA SUPERSTORE 4987,5411,Catering costs - provisions,40.00,0.00,40.00
Regeneration and Local Services,Economic Development and Housing,030737,Durham Works Flexible Fund,Transport,235057,Public Transport,03-Jan-2018,000006867111751,WWW.SIMPLYGO.COM,4131,Staff travelling,54.00,0.00,54.00
Children and Young Peoples Services,Head of Looked After Provision Permanence and Care Leavers,085957,Secure Management,Supplies and Services,328041,Clothing Uniforms and Laundry,03-Jan-2018,000006870468917,WWW.TOPSHOP.COM,5691,Clothing uniforms and laundry,43.95,0.00,43.95
Regeneration and Local Services,Direct Services,010383,C&G - South Street Cleansing,Transport,215995,Running Costs of Vehicles,03-Jan-2018,000006874709971,SNOWBALLS (RAILWAY,5533,Vehicle running expenses,105.46,17.58,87.88
Children and Young Peoples Services,Head of Looked After Provision Permanence and Care Leavers,085957,Secure Management,Supplies and Services,328041,Clothing Uniforms and Laundry,03-Jan-2018,000006898581967,WWW.TOPSHOP.COM,5691,Clothing uniforms and laundry,-40.00,0.00,-40.00
Regeneration and Local Services,Direct Services,021242,Catering - County Hall,Supplies and Services,324117,Provisions,04-Jan-2018,000006870468719,CO-OP GROUP 310027,5411,Catering costs - provisions,12.59,0.00,12.59
Regeneration and Local Services,Direct Services,021242,Catering - County Hall,Supplies and Services,324117,Provisions,04-Jan-2018,000006870468723,TESCO STORES 2916,5411,Catering costs - provisions,5.60,0.00,5.60
Children and Young Peoples Services,Head of Education,071801,Selby Cottage Childcare Centre,Supplies and Services,384999,Miscellaneous Expenses,04-Jan-2018,000006870468729,PETS AT HOME LTD,5995,Other expenses,12.00,0.00,12.00
Children and Young Peoples Services,Head of Education,071801,Selby Cottage Childcare Centre,Supplies and Services,324117,Provisions,04-Jan-2018,000006870468733,ASDA STORES LTD 4313,5411,Catering costs - provisions,26.05,0.00,26.05
Children and Young Peoples Services,Head of Education,071801,Selby Cottage Childcare Centre,Supplies and Services,324117,Provisions,04-Jan-2018,000006870468735,TESCO STORES 2278,5411,Catering costs - provisions,15.54,0.00,15.54
Regeneration and Local Services,Economic Development and Housing,031576,B& B - Temp Accom,Supplies and Services,364320,Grants to Voluntary Organisations,04-Jan-2018,000006870468749,TRAVELODGE,3615,Accommodation assistance,48.00,8.00,40.00
Regeneration and Local Services,Economic Development and Housing,031576,B& B - Temp Accom,Supplies and Services,364320,Grants to Voluntary Organisations,04-Jan-2018,000006870468755,TRAVELODGE,3615,Accommodation assistance,41.00,6.83,34.17
Adult and Health Services,Head of Adults,055302,Durham Pathways,Supplies and Services,324117,Provisions,04-Jan-2018,000006870468765,SAINSBURYS SACAT 0776,5411,Catering costs - provisions,3.35,0.00,3.35
Adult and Health Services,Head of Adults,055302,Durham Pathways,Supplies and Services,304259,Equipment and Materials,04-Jan-2018,000006870468771,WILKO DURHAM 426,5722,Equipment-purchase and rental,17.55,0.00,17.55
Adult and Health Services,Head of Adults,055302,Durham Pathways,Supplies and Services,324117,Provisions,04-Jan-2018,000006870468775,LIDL UK,5411,Catering costs - provisions,7.09,0.00,7.09
Children and Young Peoples Services,Head of Looked After Provision Permanence and Care Leavers,085962,Durham,Supplies and Services,384999,Miscellaneous Expenses,04-Jan-2018,000006870468783,Amazon EU,5969,Other expenses,26.41,0.00,26.41
Children and Young Peoples Services,Head of Looked After Provision Permanence and Care Leavers,085957,Secure Management,Supplies and Services,304639,Equipment and Materials,04-Jan-2018,000006870468789,SCREWFIX DIRECT,5211,Technicians-supplies,159.97,26.66,133.31
Children and Young Peoples Services,Head of Looked After Provision Permanence and Care Leavers,085342,9 Cedar Drive Aycliffe,Supplies and Services,324117,Provisions,04-Jan-2018,000006870468793,TESCO STORES 2916,5411,Catering costs - provisions,162.75,0.00,162.75
Regeneration and Local Services,Economic Development and Housing,030699,Business Growth and Innovation General,Supplies and Services,312011,Newspapers Books and Periodicals,04-Jan-2018,000006870468797,FASTHOSTS INTERNET,4816,Books-school library,6.34,1.06,5.28
Regeneration and Local Services,Direct Services,021242,Catering - County Hall,Supplies and Services,324117,Provisions,04-Jan-2018,000006870468829,HOPWELLS LTD,5811,Catering costs - provisions,141.09,0.00,141.09
Regeneration and Local Services,Direct Services,021242,Catering - County Hall,Supplies and Services,324117,Provisions,04-Jan-2018,000006870468837,HOPWELLS LTD,5811,Catering costs - provisions,97.76,0.00,97.76
Regeneration and Local Services,Culture & Sport,054812,Gala Theatre - Catering etc,Supplies and Services,324117,Provisions,04-Jan-2018,000006870468841,JR HOLLAND FOODSERVICE,5422,Catering costs - provisions,46.36,0.00,46.36
Regeneration and Local Services,Economic Development and Housing,030749,Employability - Youth Contract,Supplies and Services,328041,Clothing Uniforms and Laundry,04-Jan-2018,000006870468865,MATALAN.CO.UK,5691,Clothing uniforms and laundry,50.95,0.00,50.95
Transformation and Partnerships,Comms & Information Management,060131,County Records,Supplies and Services,304403,Equipment and Materials,04-Jan-2018,000006870468871,CRAZY LADIES COSTUMES,5697,Other consumables,44.48,0.00,44.48
Regeneration and Local Services,Economic Development and Housing,030737,Durham Works Flexible Fund,Supplies and Services,348037,Subsistence,04-Jan-2018,000006870468879,WWW.SIMPLYGO.COM,4131,Subsistence,70.00,0.00,70.00
Regeneration and Local Services,Economic Development and Housing,030737,Durham Works Flexible Fund,Supplies and Services,304259,Equipment and Materials,04-Jan-2018,000006870468889,DVLA DRIVER ONLINE,9399,Equipment-purchase and rental,34.00,0.00,34.00
Children and Young Peoples Services,Head of Looked After Provision Permanence and Care Leavers,085957,Secure Management,Supplies and Services,312011,Newspapers Books and Periodicals,04-Jan-2018,000006870468893,Amazon UK Marketplace,5942,Books-school library,13.47,0.00,13.47
Children and Young Peoples Services,Head of Looked After Provision Permanence and Care Leavers,085957,Secure Management,Supplies and Services,312011,Newspapers Books and Periodicals,04-Jan-2018,000006870468899,Amazon UK Marketplace,5942,Books-school library,8.92,0.00,8.92
Children and Young Peoples Services,Head of Looked After Provision Permanence and Care Leavers,085957,Secure Management,Supplies and Services,312011,Newspapers Books and Periodicals,04-Jan-2018,000006870468905,Amazon UK Marketplace,5942,Books-school library,34.07,0.00,34.07
Children and Young Peoples Services,Head of Looked After Provision Permanence and Care Leavers,085957,Secure Management,Supplies and Services,324117,Provisions,04-Jan-2018,000006870468907,TESCO STORES 6329,5411,Catering costs - provisions,210.87,0.00,210.87
Children and Young Peoples Services,Head of Looked After Provision Permanence and Care Leavers,085957,Secure Management,Supplies and Services,328041,Clothing Uniforms and Laundry,04-Jan-2018,000006870468911,NEXT DIRECTORY,5651,Clothing uniforms and laundry,28.99,0.00,28.99
Children and Young Peoples Services,Head of Looked After Provision Permanence and Care Leavers,085957,Secure Management,Supplies and Services,308011,Furniture,04-Jan-2018,000006870468921,DUNELM ONLINE ORDER,5714,Furniture repair and replacement,10.35,0.00,10.35
Children and Young Peoples Services,Head of Looked After Provision Permanence and Care Leavers,085957,Secure Management,Supplies and Services,312011,Newspapers Books and Periodicals,04-Jan-2018,000006870468927,AMAZON SVCS EU-UK AMAZ,5942,Books-school library,8.98,0.00,8.98
Regeneration and Local Services,Culture & Sport,011060,Hardwick Park Catering,Supplies and Services,324117,Provisions,04-Jan-2018,000006870468931,HOPWELLS LTD,5811,Catering costs - provisions,75.72,12.62,63.10
Regeneration and Local Services,Culture & Sport,011060,Hardwick Park Catering,Supplies and Services,324117,Provisions,04-Jan-2018,000006870468931 - 1,HOPWELLS LTD,5811,Catering costs - provisions,108.07,,108.07
Regeneration and Local Services,Culture & Sport,011060,Hardwick Park Catering,Supplies and Services,324117,Provisions,04-Jan-2018,000006870468941,JR HOLLAND FOODSERVICE,5422,Catering costs - provisions,25.16,0.00,25.16
Regeneration and Local Services,Culture & Sport,011060,Hardwick Park Catering,Supplies and Services,324117,Provisions,04-Jan-2018,000006870468947,JR HOLLAND FOODSERVICE,5422,Catering costs - provisions,21.84,0.00,21.84
Children and Young Peoples Services,Head of Looked After Provision Permanence and Care Leavers,085551,Short Break Services-Park Hse Sher,Supplies and Services,304259,Equipment and Materials,04-Jan-2018,000006870468961,DISCLOSURE & BARRING,9399,Equipment-purchase and rental,13.00,0.00,13.00
Children and Young Peoples Services,Head of Looked After Provision Permanence and Care Leavers,085332,Middlestone Moor CU,Supplies and Services,324117,Provisions,04-Jan-2018,000006870468967,ALDI 59 774,5411,Catering costs - provisions,73.52,0.00,73.52
Children and Young Peoples Services,Head of Looked After Provision Permanence and Care Leavers,085332,Middlestone Moor CU,Supplies and Services,324117,Provisions,04-Jan-2018,000006870468973,ASDA SUPERSTORE 4987,5411,Catering costs - provisions,287.78,0.00,287.78
Regeneration and Local Services,Direct Services,021234,Catering - Locomotion,Supplies and Services,324117,Provisions,04-Jan-2018,000006870468981,HOPWELLS LTD,5811,Catering costs - provisions,65.64,10.94,54.70
Regeneration and Local Services,Direct Services,021234,Catering - Locomotion,Supplies and Services,324117,Provisions,04-Jan-2018,000006870468981 - 1,HOPWELLS LTD,5811,Catering costs - provisions,230.15,,230.15
Regeneration and Local Services,Direct Services,021234,Catering - Locomotion,Supplies and Services,324117,Provisions,04-Jan-2018,000006870468989,JR HOLLAND FOODSERVICE,5422,Catering costs - provisions,59.30,0.00,59.30
Regeneration and Local Services,Economic Development and Housing,031576,B& B - Temp Accom,Supplies and Services,364320,Grants to Voluntary Organisations,04-Jan-2018,000006870468997,AYCLIFFE BIZ,7011,Accommodation assistance,490.00,0.00,490.00
Regeneration and Local Services,Economic Development and Housing,031576,B& B - Temp Accom,Supplies and Services,364320,Grants to Voluntary Organisations,04-Jan-2018,000006870469003,AYCLIFFE BIZ,7011,Accommodation assistance,490.00,0.00,490.00
Regeneration and Local Services,Economic Development and Housing,031576,B& B - Temp Accom,Supplies and Services,364320,Grants to Voluntary Organisations,04-Jan-2018,000006870469007,AYCLIFFE BIZ,7011,Accommodation assistance,490.00,0.00,490.00
Regeneration and Local Services,Direct Services,020073,Bldg Serv - R&M Div 73 - Gas Servicing,Supplies and Services,372009,Subscriptions,04-Jan-2018,000006870469021,CAPITA GAS,8699,Subscriptions,2.64,0.44,2.20
Children and Young Peoples Services,Head of Early Help Assessment and Safeguarding,088013,Seaham 0 - 5,Supplies and Services,304259,Equipment and Materials,04-Jan-2018,000006870469063,WILKO.COM,5722,Equipment-purchase and rental,24.00,0.00,24.00
Children and Young Peoples Services,Head of Early Help Assessment and Safeguarding,088001,Peterlee Locality,Supplies and Services,328041,Clothing Uniforms and Laundry,04-Jan-2018,000006870469069,ARGOS RETAIL GROUP,5310,Clothing uniforms and laundry,56.99,0.00,56.99
Children and Young Peoples Services,Head of Early Help Assessment and Safeguarding,088001,Peterlee Locality,Supplies and Services,328041,Clothing Uniforms and Laundry,04-Jan-2018,000006870469073,ARGOS RETAIL GROUP,5310,Clothing uniforms and laundry,227.93,0.00,227.93
Children and Young Peoples Services,Head of Early Help Assessment and Safeguarding,088001,Peterlee Locality,Supplies and Services,304403,Equipment and Materials,04-Jan-2018,000006870469075,TESCO - Seller_IST_1_2,5999,Other consumables,199.99,0.00,199.99
Children and Young Peoples Services,Head of Early Help Assessment and Safeguarding,088001,Peterlee Locality,Supplies and Services,304403,Equipment and Materials,04-Jan-2018,000006870469079,TESCO - Seller_IST_1_2,5999,Other consumables,54.99,0.00,54.99
Children and Young Peoples Services,Head of Early Help Assessment and Safeguarding,088001,Peterlee Locality,Supplies and Services,304403,Equipment and Materials,04-Jan-2018,000006870469083,TESCO - Seller_IST_1_2,5999,Other consumables,12.99,0.00,12.99
Children and Young Peoples Services,Head of Early Help Assessment and Safeguarding,088001,Peterlee Locality,Supplies and Services,304403,Equipment and Materials,04-Jan-2018,000006870469087,TESCO DIRECT,5999,Other consumables,86.95,0.00,86.95
Children and Young Peoples Services,Head of Early Help Assessment and Safeguarding,088001,Peterlee Locality,Supplies and Services,304403,Equipment and Materials,04-Jan-2018,000006870469091,TESCO DIRECT,5999,Other consumables,33.00,0.00,33.00
Regeneration and Local Services,Direct Services,021235,Catering - Wharton Park,Supplies and Services,324117,Provisions,04-Jan-2018,000006870469133,JR HOLLAND FOODSERVICE,5422,Catering costs - provisions,14.42,0.00,14.42
Adult and Health Services,Head of Adults,055309,Peterlee Pathways,Supplies and Services,324117,Provisions,04-Jan-2018,000006870469141,SAINSBURYS SACAT2146,5411,Catering costs - provisions,4.00,0.00,4.00
Regeneration and Local Services,Economic Development and Housing,031576,B& B - Temp Accom,Supplies and Services,364320,Grants to Voluntary Organisations,04-Jan-2018,000006874709961,PREMIER INN,3811,Accommodation assistance,57.50,9.58,47.92
Regeneration and Local Services,Economic Development and Housing,030699,Business Growth and Innovation General,Supplies and Services,304403,Equipment and Materials,04-Jan-2018,000006874709977,MEETEDGAR MONTHLY,5734,Other consumables,36.28,0.00,36.28
Regeneration and Local Services,Direct Services,021242,Catering - County Hall,Supplies and Services,324117,Provisions,04-Jan-2018,000006874710021,BATLEYS PERTH,5300,Catering costs - provisions,115.01,0.00,115.01
Regeneration and Local Services,Culture & Sport,054020,Barnard Castle Library,Supplies and Services,384956,Miscellaneous Expenses,04-Jan-2018,000006874710109,TVLICENSING.CO.UK,7392,Licences,147.00,0.00,147.00
Regeneration and Local Services,Culture & Sport,011060,Hardwick Park Catering,Supplies and Services,324117,Provisions,04-Jan-2018,000006874710159,BATLEYS PERTH,5300,Catering costs - provisions,240.72,40.12,200.60
Regeneration and Local Services,Culture & Sport,011060,Hardwick Park Catering,Supplies and Services,324117,Provisions,04-Jan-2018,000006874710159 - 1,BATLEYS PERTH,5300,Catering costs - provisions,155.99,,155.99
Regeneration and Local Services,Direct Services,021234,Catering - Locomotion,Supplies and Services,324117,Provisions,04-Jan-2018,000006874710203,BATLEYS PERTH,5300,Catering costs - provisions,534.84,89.14,445.70
Regeneration and Local Services,Direct Services,021234,Catering - Locomotion,Supplies and Services,324117,Provisions,04-Jan-2018,000006874710203 - 1,BATLEYS PERTH,5300,Catering costs - provisions,59.89,,59.89
Children and Young Peoples Services,Head of Early Help Assessment and Safeguarding,088001,Peterlee Locality,Supplies and Services,304259,Equipment and Materials,04-Jan-2018,000006874710311,HARTLEPOOL BC CNP,9399,Equipment-purchase and rental,14.21,0.00,14.21
Regeneration and Local Services,Spatial Policy Planning Assets & Environment,031030,Development Management,Supplies and Services,304335,Equipment and Materials,04-Jan-2018,000006874710413,AMAZON EU AMAZON.CO.UK,5999,ICT supplies etc,67.99,11.33,56.66
Regeneration and Local Services,Direct Services,021235,Catering - Wharton Park,Supplies and Services,324117,Provisions,04-Jan-2018,000006874710423,BATLEYS PERTH,5300,Catering costs - provisions,52.68,8.78,43.90
Regeneration and Local Services,Direct Services,021235,Catering - Wharton Park,Supplies and Services,324117,Provisions,04-Jan-2018,000006874710423 - 1,BATLEYS PERTH,5300,Catering costs - provisions,66.45,,66.45
Children and Young Peoples Services,Head of Looked After Provision Permanence and Care Leavers,085957,Secure Management,Supplies and Services,328041,Clothing Uniforms and Laundry,04-Jan-2018,000006905081987,NEXT DIRECTORY,5651,Clothing uniforms and laundry,60.00,0.00,60.00
Children and Young Peoples Services,Head of Looked After Provision Permanence and Care Leavers,085341,High Etherley Satelite Home,Supplies and Services,324117,Provisions,05-Jan-2018,000006874709899,SAINSBURYS SACAT 2199,5411,Catering costs - provisions,6.25,0.00,6.25
Children and Young Peoples Services,Head of Looked After Provision Permanence and Care Leavers,085341,High Etherley Satelite Home,Supplies and Services,328041,Clothing Uniforms and Laundry,05-Jan-2018,000006874709903,ARGOS BISHOP AUCKL,5310,Clothing uniforms and laundry,59.99,0.00,59.99
Children and Young Peoples Services,Head of Looked After Provision Permanence and Care Leavers,085341,High Etherley Satelite Home,Supplies and Services,324117,Provisions,05-Jan-2018,000006874709907,TESCO STORES 6329,5411,Catering costs - provisions,16.70,0.00,16.70
Children and Young Peoples Services,Head of Education,071801,Selby Cottage Childcare Centre,Supplies and Services,304259,Equipment and Materials,05-Jan-2018,000006874709937,WILKO RETAIL LIMIT,5722,Equipment-purchase and rental,12.45,0.00,12.45
Children and Young Peoples Services,Head of Education,071801,Selby Cottage Childcare Centre,Supplies and Services,324117,Provisions,05-Jan-2018,000006874709941,ASDA HOME SHOPPING,5411,Catering costs - provisions,90.79,0.00,90.79
Regeneration and Local Services,Economic Development and Housing,039490,South Moor Regeneration Programme,Income,720130,Fees and Charges,05-Jan-2018,000006874709951,WWW.MONEYCLAIM.GOV,9399,Fees-legal,60.00,0.00,60.00
Children and Young Peoples Services,Head of Looked After Provision Permanence and Care Leavers,085342,9 Cedar Drive Aycliffe,Supplies and Services,384999,Miscellaneous Expenses,05-Jan-2018,000006874709993,NEWCASTLE UNITED,7997,Other expenses,17.00,0.00,17.00
Regeneration and Local Services,Economic Development and Housing,030544,Rural Employability - Client Engagement,Transport,235057,Public Transport,05-Jan-2018,000006874710027,WWW.SIMPLYGO.COM,4131,Staff travelling,21.00,0.00,21.00
Children and Young Peoples Services,Head of Looked After Provision Permanence and Care Leavers,085351,Framwellgate Moor CU,Supplies and Services,324117,Provisions,05-Jan-2018,000006874710075,TESCO STORES 2371,5411,Catering costs - provisions,97.57,0.00,97.57
Resources,Finance & Transactional Services,065180,Collections,Supplies and Services,338048,Services,05-Jan-2018,000006874710079,HMCOURTS-SERVICE.G,9222,Court Costs,"1,710.00",0.00,1710.00
Resources,Finance & Transactional Services,065180,Collections,Supplies and Services,338048,Services,05-Jan-2018,000006874710083,HMCOURTS-SERVICE.G,9222,Court Costs,"8,901.00",0.00,8901.00
Regeneration and Local Services,Economic Development and Housing,030737,Durham Works Flexible Fund,Supplies and Services,348037,Subsistence,05-Jan-2018,000006874710113,GRO HM PASSPORT OFFICE,9399,Subsistence,9.25,0.00,9.25
Regeneration and Local Services,Economic Development and Housing,030737,Durham Works Flexible Fund,Transport,235057,Public Transport,05-Jan-2018,000006874710129,WWW.SIMPLYGO.COM,4131,Staff travelling,6.50,0.00,6.50
Children and Young Peoples Services,Head of Looked After Provision Permanence and Care Leavers,085957,Secure Management,Supplies and Services,324117,Provisions,05-Jan-2018,000006874710133,TESCO STORES 6329,5411,Catering costs - provisions,119.05,0.00,119.05
Children and Young Peoples Services,Head of Looked After Provision Permanence and Care Leavers,085957,Secure Management,Supplies and Services,328041,Clothing Uniforms and Laundry,05-Jan-2018,000006874710135,SELECT,5691,Clothing uniforms and laundry,-13.99,0.00,-13.99
Regeneration and Local Services,Culture & Sport,011060,Hardwick Park Catering,Supplies and Services,324117,Provisions,05-Jan-2018,000006874710145,JR HOLLAND FOODSERVICE,5422,Catering costs - provisions,54.43,0.00,54.43
Regeneration and Local Services,Culture & Sport,011060,Hardwick Park Catering,Supplies and Services,324117,Provisions,05-Jan-2018,000006874710151,JR HOLLAND FOODSERVICE,5422,Catering costs - provisions,40.21,0.00,40.21
Children and Young Peoples Services,Head of Looked After Provision Permanence and Care Leavers,085551,Short Break Services-Park Hse Sher,Supplies and Services,324117,Provisions,05-Jan-2018,000006874710175,ICELAND,5411,Catering costs - provisions,15.25,0.00,15.25
Children and Young Peoples Services,Head of Looked After Provision Permanence and Care Leavers,085551,Short Break Services-Park Hse Sher,Supplies and Services,324117,Provisions,05-Jan-2018,000006874710179,ALDI 12 774,5411,Catering costs - provisions,51.62,0.00,51.62
Children and Young Peoples Services,Head of Looked After Provision Permanence and Care Leavers,085332,Middlestone Moor CU,Supplies and Services,312011,Newspapers Books and Periodicals,05-Jan-2018,000006874710183,HOME BARGAINS SPENNYMO,5251,Books-school library,30.85,5.14,25.71
Children and Young Peoples Services,Head of Looked After Provision Permanence and Care Leavers,085332,Middlestone Moor CU,Supplies and Services,324117,Provisions,05-Jan-2018,000006874710185,ICELAND,5411,Catering costs - provisions,51.61,0.00,51.61
Regeneration and Local Services,Direct Services,021234,Catering - Locomotion,Supplies and Services,324117,Provisions,05-Jan-2018,000006874710189,JR HOLLAND FOODSERVICE,5422,Catering costs - provisions,102.67,0.00,102.67
Regeneration and Local Services,Direct Services,021234,Catering - Locomotion,Supplies and Services,324117,Provisions,05-Jan-2018,000006874710193,JR HOLLAND FOODSERVICE,5422,Catering costs - provisions,41.20,0.00,41.20
Children and Young Peoples Services,Head of Looked After Provision Permanence and Care Leavers,085352,Tow Law CU,Supplies and Services,324117,Provisions,05-Jan-2018,000006874710223,TESCO STORES 2371,5411,Catering costs - provisions,185.21,0.00,185.21
Children and Young Peoples Services,Head of Looked After Provision Permanence and Care Leavers,085334,West Rainton Satelite Home,Supplies and Services,304403,Equipment and Materials,05-Jan-2018,000006874710241,TIMPSON LTD,7251,Other consumables,8.00,0.00,8.00
Children and Young Peoples Services,Head of Looked After Provision Permanence and Care Leavers,085334,West Rainton Satelite Home,Supplies and Services,324117,Provisions,05-Jan-2018,000006874710243,TESCO STORES 2371,5411,Catering costs - provisions,121.96,0.00,121.96
Children and Young Peoples Services,Head of Looked After Provision Permanence and Care Leavers,085342,9 Cedar Drive Aycliffe,Employees,040149,Recruitment Instruction and Training,05-Jan-2018,000006874710257,PARENTPAY E-COM R,8220,Training-all costs,69.00,0.00,69.00
Regeneration and Local Services,Economic Development and Housing,031576,B& B - Temp Accom,Employees,040149,Recruitment Instruction and Training,05-Jan-2018,000006874710275,PREMIER INN,3811,Training-all costs,170.00,28.33,141.67
Regeneration and Local Services,Transport and Contracted Services,031701,Care Connect All Localities,Supplies and Services,344033,Telephones,05-Jan-2018,000006874710321,BT PAY BY PHONE,4814,Telephones general-all costs,"5,493.88",915.65,4578.23
Adult and Health Services,Head of Adults,055301,Stanley Pathways,Supplies and Services,324117,Provisions,05-Jan-2018,000006874710325,ASDA SUPERSTORE,5411,Catering costs - provisions,9.10,0.00,9.10
Adult and Health Services,Head of Adults,055301,Stanley Pathways,Supplies and Services,324117,Provisions,05-Jan-2018,000006874710329,ASDA SUPERSTORE,5411,Catering costs - provisions,2.97,0.00,2.97
Regeneration and Local Services,Economic Development and Housing,031576,B& B - Temp Accom,Supplies and Services,364320,Grants to Voluntary Organisations,05-Jan-2018,000006874710333,TRAVELODGE,3615,Accommodation assistance,147.00,0.00,147.00
Regeneration and Local Services,Economic Development and Housing,031576,B& B - Temp Accom,Supplies and Services,364320,Grants to Voluntary Organisations,05-Jan-2018,000006874710337,TRAVELODGE,3615,Accommodation assistance,122.00,0.00,122.00
Regeneration and Local Services,Economic Development and Housing,031576,B& B - Temp Accom,Supplies and Services,364320,Grants to Voluntary Organisations,05-Jan-2018,000006874710341,PREMIER INN,3811,Accommodation assistance,170.00,0.00,170.00
Children and Young Peoples Services,Head of Looked After Provision Permanence and Care Leavers,085331,New Lea Childrens Home,Supplies and Services,304259,Equipment and Materials,05-Jan-2018,000006874710367,HOMEBASE LTD 219,5211,Equipment-purchase and rental,5.48,0.00,5.48
Children and Young Peoples Services,Head of Looked After Provision Permanence and Care Leavers,085331,New Lea Childrens Home,Supplies and Services,304259,Equipment and Materials,05-Jan-2018,000006874710369,HALFORDS 0796,5940,Equipment-purchase and rental,40.00,6.67,33.33
Children and Young Peoples Services,Head of Looked After Provision Permanence and Care Leavers,085331,New Lea Childrens Home,Supplies and Services,304259,Equipment and Materials,05-Jan-2018,000006874710371,WILKO.COM,5722,Equipment-purchase and rental,76.50,0.00,76.50
Regeneration and Local Services,Economic Development and Housing,030737,Durham Works Flexible Fund,Supplies and Services,328041,Clothing Uniforms and Laundry,05-Jan-2018,000006874710375,ARGOS LTD,5310,Clothing uniforms and laundry,109.99,18.33,91.66
Children and Young Peoples Services,Head of Early Help Assessment and Safeguarding,085100,Strategic Manager Families First Area South,Supplies and Services,384999,Miscellaneous Expenses,05-Jan-2018,000006874710395,MIDDLESBROUGH COUNCIL,9399,Other expenses,12.00,0.00,12.00
Adult and Health Services,Head of Adults,055306,Spennymoor Pathways,Supplies and Services,324117,Provisions,05-Jan-2018,000006874710421,ASDA SUPERSTORE 4987,5411,Catering costs - provisions,4.00,0.00,4.00
Regeneration and Local Services,Direct Services,021242,Catering - County Hall,Supplies and Services,324117,Provisions,05-Jan-2018,000006880511951,BATLEYS PERTH,5300,Catering costs - provisions,626.82,104.47,522.35
Regeneration and Local Services,Direct Services,021242,Catering - County Hall,Supplies and Services,324117,Provisions,05-Jan-2018,000006880511951 - 1,BATLEYS PERTH,5300,Catering costs - provisions,58.27,,58.27
Regeneration and Local Services,Culture & Sport,011060,Hardwick Park Catering,Supplies and Services,324117,Provisions,05-Jan-2018,000006880512055,BATLEYS PERTH,5300,Catering costs - provisions,105.06,17.51,87.55
Regeneration and Local Services,Culture & Sport,011060,Hardwick Park Catering,Supplies and Services,324117,Provisions,05-Jan-2018,000006880512055 - 1,BATLEYS PERTH,5300,Catering costs - provisions,101.48,,101.48
Regeneration and Local Services,Direct Services,010525,Catering - Green Lane,Supplies and Services,324117,Provisions,05-Jan-2018,000006880512083,BATLEYS PERTH,5300,Catering costs - provisions,87.24,14.54,72.70
Regeneration and Local Services,Direct Services,010525,Catering - Green Lane,Supplies and Services,324117,Provisions,05-Jan-2018,000006880512083 - 1,BATLEYS PERTH,5300,Catering costs - provisions,48.27,,48.27
Regeneration and Local Services,Direct Services,010525,Catering - Green Lane,Supplies and Services,324117,Provisions,05-Jan-2018,000006880512085,BATLEYS PERTH,5300,Catering costs - provisions,20.62,3.44,17.18
Regeneration and Local Services,Direct Services,010525,Catering - Green Lane,Supplies and Services,324117,Provisions,05-Jan-2018,000006880512087,BATLEYS PERTH,5300,Catering costs - provisions,4.58,0.00,4.58
Adult and Health Services,Head of Adults,055643,Hawthorn House LD Respite Unit,Supplies and Services,324117,Provisions,05-Jan-2018,000006970933591,BATLEYS PERTH,5300,Catering costs - provisions,37.02,6.17,30.85
Adult and Health Services,Head of Adults,055643,Hawthorn House LD Respite Unit,Supplies and Services,324117,Provisions,05-Jan-2018,000006970933591 - 1,BATLEYS PERTH,5300,Catering costs - provisions,126.06,,126.06
Regeneration and Local Services,Economic Development and Housing,030699,Business Growth and Innovation General,Supplies and Services,352001,Conference Expenses,06-Jan-2018,000006874709981,BEDFORD HOTEL BRUSSEL,7011,Conferencesseminars fees etc,61.73,0.00,61.73
Children and Young Peoples Services,Head of Looked After Provision Permanence and Care Leavers,085341,High Etherley Satelite Home,Transport,235057,Public Transport,06-Jan-2018,000006874710095,M`BROUGH CCL-TEL PARK,9399,Staff travelling,4.80,0.00,4.80
Children and Young Peoples Services,Head of Looked After Provision Permanence and Care Leavers,085957,Secure Management,Supplies and Services,324117,Provisions,06-Jan-2018,000006874710141,TESCO STORES 6329,5411,Catering costs - provisions,51.80,0.00,51.80
Resources,Digital and Customer Services,065303,Design & Print - Design,Supplies and Services,372009,Subscriptions,06-Jan-2018,000006874710417,APPY PIE,5734,Subscriptions,48.00,0.00,48.00
Children and Young Peoples Services,Head of Looked After Provision Permanence and Care Leavers,085341,High Etherley Satelite Home,Supplies and Services,324117,Provisions,07-Jan-2018,000006874709909,SAINSBURYS 2199,5411,Catering costs - provisions,32.97,0.00,32.97
Children and Young Peoples Services,Head of Looked After Provision Permanence and Care Leavers,085957,Secure Management,Supplies and Services,312011,Newspapers Books and Periodicals,07-Jan-2018,000006874710137,Amazon UK Marketplace,5942,Books-school library,15.88,0.00,15.88
Children and Young Peoples Services,Head of Looked After Provision Permanence and Care Leavers,085957,Secure Management,Supplies and Services,324117,Provisions,07-Jan-2018,000006874710143,TESCO STORES 6329,5411,Catering costs - provisions,88.90,0.00,88.90
Resources,Resources Management,069000,Resources Management,Supplies and Services,324117,Provisions,07-Jan-2018,000006874710255,SAINSBURYS SACAT (2303,5411,Catering costs - provisions,4.40,0.00,4.40
Regeneration and Local Services,Economic Development and Housing,030699,Business Growth and Innovation General,Supplies and Services,304403,Equipment and Materials,08-Jan-2018,000006874709983,MEETEDGAR MONTHLY,5734,Other consumables,1.00,0.00,1.00
Regeneration and Local Services,Economic Development and Housing,030699,Business Growth and Innovation General,Supplies and Services,352001,Conference Expenses,08-Jan-2018,000006874709985,BEDFORD HOTEL BRUSSEL,7011,Conferencesseminars fees etc,1.70,0.00,1.70
Children and Young Peoples Services,Head of Looked After Provision Permanence and Care Leavers,085341,High Etherley Satelite Home,Supplies and Services,324117,Provisions,08-Jan-2018,000006880511883,TESCO STORES 6329,5411,Catering costs - provisions,15.20,0.00,15.20
Regeneration and Local Services,Economic Development and Housing,030732,Rural Employability Project - South Durham,Supplies and Services,304259,Equipment and Materials,08-Jan-2018,000006880511907,SCREWFIX CHESTER L,5211,Equipment-purchase and rental,25.99,0.00,25.99
Regeneration and Local Services,Direct Services,010383,C&G - South Street Cleansing,Supplies and Services,304259,Equipment and Materials,08-Jan-2018,000006880511911,HARELAW SAWMILL,5211,Equipment-purchase and rental,64.20,0.00,64.20
Children and Young Peoples Services,Head of Looked After Provision Permanence and Care Leavers,085957,Secure Management,Supplies and Services,328041,Clothing Uniforms and Laundry,08-Jan-2018,000006880511913,VERY.CO.UK,5964,Clothing uniforms and laundry,98.99,0.00,98.99
Children and Young Peoples Services,Head of Looked After Provision Permanence and Care Leavers,085342,9 Cedar Drive Aycliffe,Supplies and Services,324117,Provisions,08-Jan-2018,000006880511917,TESCO STORES 2916,5411,Catering costs - provisions,39.40,0.00,39.40
Regeneration and Local Services,Direct Services,010367,C&G - South Grounds Maintenance,Supplies and Services,304259,Equipment and Materials,08-Jan-2018,000006880511921,SCREWFIX,5211,Equipment-purchase and rental,17.94,2.99,14.95
Regeneration and Local Services,Economic Development and Housing,030737,Durham Works Flexible Fund,Supplies and Services,328041,Clothing Uniforms and Laundry,08-Jan-2018,000006880511933,SPORTSDIRECT 290,5941,Clothing uniforms and laundry,31.98,0.00,31.98
Regeneration and Local Services,Economic Development and Housing,030737,Durham Works Flexible Fund,Supplies and Services,344033,Telephones,08-Jan-2018,000006880511935,EE PETERLEE,4812,Telephones general-all costs,39.99,0.00,39.99
Regeneration and Local Services,Economic Development and Housing,030737,Durham Works Flexible Fund,Supplies and Services,304259,Equipment and Materials,08-Jan-2018,000006880511937,CURRYS ONLINE,5732,Equipment-purchase and rental,134.99,22.50,112.49
Regeneration and Local Services,Direct Services,021242,Catering - County Hall,Supplies and Services,324117,Provisions,08-Jan-2018,000006880511939,FREEMAN CATERING BUTCH,5422,Catering costs - provisions,205.71,0.00,205.71
Regeneration and Local Services,Direct Services,021242,Catering - County Hall,Supplies and Services,324117,Provisions,08-Jan-2018,000006880511941,JR HOLLAND FOODSERVICE,5422,Catering costs - provisions,184.61,0.00,184.61
Regeneration and Local Services,Direct Services,021242,Catering - County Hall,Supplies and Services,324117,Provisions,08-Jan-2018,000006880511943,JR HOLLAND FOODSERVICE,5422,Catering costs - provisions,66.82,0.00,66.82
Regeneration and Local Services,Direct Services,021242,Catering - County Hall,Supplies and Services,324117,Provisions,08-Jan-2018,000006880511945,JR HOLLAND FOODSERVICE,5422,Catering costs - provisions,30.14,0.00,30.14
Regeneration and Local Services,Direct Services,021242,Catering - County Hall,Supplies and Services,324117,Provisions,08-Jan-2018,000006880511947,JR HOLLAND FOODSERVICE,5422,Catering costs - provisions,14.83,0.00,14.83
Regeneration and Local Services,Direct Services,021242,Catering - County Hall,Supplies and Services,324117,Provisions,08-Jan-2018,000006880511953,JR HOLLAND FOODSERVICE,5422,Catering costs - provisions,-6.60,0.00,-6.60
Resources,Digital and Customer Services,065461,Business Support,Supplies and Services,372009,Subscriptions,08-Jan-2018,000006880511957,NOMINET UK,5734,Subscriptions,112.50,18.75,93.75
Resources,Digital and Customer Services,065461,Business Support,Supplies and Services,372009,Subscriptions,08-Jan-2018,000006880511959,NOMINET UK,5734,Subscriptions,9.00,0.00,9.00
Regeneration and Local Services,Culture & Sport,054812,Gala Theatre - Catering etc,Supplies and Services,324117,Provisions,08-Jan-2018,000006880511963,JR HOLLAND FOODSERVICE,5422,Catering costs - provisions,17.96,0.00,17.96
Regeneration and Local Services,Culture & Sport,054812,Gala Theatre - Catering etc,Supplies and Services,324117,Provisions,08-Jan-2018,000006880511965,JR HOLLAND FOODSERVICE,5422,Catering costs - provisions,16.28,0.00,16.28
Regeneration and Local Services,Economic Development and Housing,031576,B& B - Temp Accom,Supplies and Services,352001,Conference Expenses,08-Jan-2018,000006880511967,TRAVELODGE,3615,Conferencesseminars fees etc,41.00,0.00,41.00
Regeneration and Local Services,Economic Development and Housing,031576,B& B - Temp Accom,Supplies and Services,352001,Conference Expenses,08-Jan-2018,000006880511969,TRAVELODGE,3615,Conferencesseminars fees etc,44.00,0.00,44.00
Regeneration and Local Services,Economic Development and Housing,031576,B& B - Temp Accom,Transport,235073,Public Transport,08-Jan-2018,000006880511993,STANLEY TRAVEL (NORTH,4121,Travel-clients/students/children,12.80,0.00,12.80
Regeneration and Local Services,Economic Development and Housing,031576,B& B - Temp Accom,Supplies and Services,364320,Grants to Voluntary Organisations,08-Jan-2018,000006880511995,TRAVELODGE,3615,Accommodation assistance,53.00,8.83,44.17
Regeneration and Local Services,Economic Development and Housing,030749,Employability - Youth Contract,Transport,235057,Public Transport,08-Jan-2018,000006880511997,ARRIVA NORTH EAST,4131,Staff travelling,6.50,0.00,6.50
Children and Young Peoples Services,Head of Education,071732,Dean Bank Childcare,Supplies and Services,324117,Provisions,08-Jan-2018,000006880512015,ASDA HOME SHOPPING,5411,Catering costs - provisions,54.69,0.00,54.69
Children and Young Peoples Services,Head of Looked After Provision Permanence and Care Leavers,085957,Secure Management,Supplies and Services,312011,Newspapers Books and Periodicals,08-Jan-2018,000006880512031,Amazon UK Marketplace,5942,Books-school library,19.13,0.00,19.13
Children and Young Peoples Services,Head of Looked After Provision Permanence and Care Leavers,085957,Secure Management,Supplies and Services,312011,Newspapers Books and Periodicals,08-Jan-2018,000006880512033,Amazon UK Marketplace,5942,Books-school library,6.25,0.00,6.25
Children and Young Peoples Services,Head of Looked After Provision Permanence and Care Leavers,085957,Secure Management,Supplies and Services,312011,Newspapers Books and Periodicals,08-Jan-2018,000006880512035,Amazon UK Marketplace,5942,Books-school library,17.55,0.00,17.55
Children and Young Peoples Services,Head of Looked After Provision Permanence and Care Leavers,085957,Secure Management,Supplies and Services,312011,Newspapers Books and Periodicals,08-Jan-2018,000006880512037,AMAZON SVCS EU-UK AMAZ,5942,Books-school library,19.58,0.00,19.58
Regeneration and Local Services,Culture & Sport,011060,Hardwick Park Catering,Supplies and Services,324117,Provisions,08-Jan-2018,000006880512041,FREEMAN CATERING BUTCH,5422,Catering costs - provisions,57.41,0.00,57.41
Regeneration and Local Services,Culture & Sport,011060,Hardwick Park Catering,Supplies and Services,324117,Provisions,08-Jan-2018,000006880512043,FREEMAN CATERING BUTCH,5422,Catering costs - provisions,24.91,0.00,24.91
Regeneration and Local Services,Culture & Sport,011060,Hardwick Park Catering,Supplies and Services,324117,Provisions,08-Jan-2018,000006880512045,JR HOLLAND FOODSERVICE,5422,Catering costs - provisions,69.70,0.00,69.70
Regeneration and Local Services,Culture & Sport,011060,Hardwick Park Catering,Supplies and Services,324117,Provisions,08-Jan-2018,000006880512051,JR HOLLAND FOODSERVICE,5422,Catering costs - provisions,12.86,0.00,12.86
Resources,Digital and Customer Services,065335,School Services - Implementations,Supplies and Services,304303,Equipment and Materials,08-Jan-2018,000006880512059,ELECTRO SUPPLIES.C,5732,Network for resale,105.90,17.65,88.25
Regeneration and Local Services,Culture & Sport,054815,Gala Theatre Stage School,Supplies and Services,332047,Printing Stationery and Gen Off Exps,08-Jan-2018,000006880512065,RYMAN,5943,Stationery,4.99,0.00,4.99
Regeneration and Local Services,Direct Services,021234,Catering - Locomotion,Supplies and Services,324117,Provisions,08-Jan-2018,000006880512069,FREEMAN CATERING BUTCH,5422,Catering costs - provisions,125.84,0.00,125.84
Regeneration and Local Services,Direct Services,021234,Catering - Locomotion,Supplies and Services,324117,Provisions,08-Jan-2018,000006880512071,FREEMAN CATERING BUTCH,5422,Catering costs - provisions,68.98,0.00,68.98
Regeneration and Local Services,Direct Services,021234,Catering - Locomotion,Supplies and Services,324117,Provisions,08-Jan-2018,000006880512073,FREEMAN CATERING BUTCH,5422,Catering costs - provisions,40.55,0.00,40.55
Regeneration and Local Services,Direct Services,021234,Catering - Locomotion,Supplies and Services,324117,Provisions,08-Jan-2018,000006880512075,JR HOLLAND FOODSERVICE,5422,Catering costs - provisions,49.60,0.00,49.60
Regeneration and Local Services,Direct Services,010525,Catering - Green Lane,Supplies and Services,324117,Provisions,08-Jan-2018,000006880512077,FREEMAN CATERING BUTCH,5422,Catering costs - provisions,48.01,0.00,48.01
Regeneration and Local Services,Direct Services,010525,Catering - Green Lane,Supplies and Services,324117,Provisions,08-Jan-2018,000006880512079,FREEMAN CATERING BUTCH,5422,Catering costs - provisions,44.65,0.00,44.65
Regeneration and Local Services,Direct Services,010525,Catering - Green Lane,Supplies and Services,324117,Provisions,08-Jan-2018,000006880512081,JR HOLLAND FOODSERVICE,5422,Catering costs - provisions,89.47,0.00,89.47
Resources,Corporate Finance & Commercial Services,069800,Corporate Procurement,Employees,040149,Recruitment Instruction and Training,08-Jan-2018,000006880512105,WWW.CIPS.ORG,8699,Training-all costs,126.48,0.00,126.48
Resources,Corporate Finance & Commercial Services,069800,Corporate Procurement,Employees,040149,Recruitment Instruction and Training,08-Jan-2018,000006880512107,WWW.CIPS.ORG,8699,Training-all costs,44.88,0.00,44.88
Children and Young Peoples Services,Head of Early Help Assessment and Safeguarding,088037,One Point YEI,Supplies and Services,384999,Miscellaneous Expenses,08-Jan-2018,000006880512119,DARLINGTON BC INTERNET,9399,Other expenses,12.00,0.00,12.00
Regeneration and Local Services,Direct Services,010814,Bldg Serv - R&M General,Supplies and Services,304221,Equipment and Materials,08-Jan-2018,000006880512139,CRYSTAL RADIO SYSTEMS,5732,Direct materials,559.20,93.20,466.00
Regeneration and Local Services,Economic Development and Housing,030737,Durham Works Flexible Fund,Transport,235057,Public Transport,08-Jan-2018,000006880512149,WWW.SIMPLYGO.COM,4131,Staff travelling,-62.00,0.00,-62.00
Resources,Legal & Democratic Services,067801,Registrars Headquarters,Supplies and Services,384199,Miscellaneous Expenses,08-Jan-2018,000006880512181,WWW.ICO.GOV.UK,9399,Other hired and contracted services,35.00,0.00,35.00
Regeneration and Local Services,Culture & Sport,054235,Bishop Auckland Town Hall Cafe,Supplies and Services,324117,Provisions,08-Jan-2018,000006880512207,JR HOLLAND FOODSERVICE,5422,Catering costs - provisions,7.33,0.00,7.33
Regeneration and Local Services,Direct Services,021324,Catering - Meadowfield,Supplies and Services,324117,Provisions,08-Jan-2018,000006880512209,FREEMAN CATERING BUTCH,5422,Catering costs - provisions,79.07,0.00,79.07
Regeneration and Local Services,Direct Services,021324,Catering - Meadowfield,Supplies and Services,324117,Provisions,08-Jan-2018,000006880512211,JR HOLLAND FOODSERVICE,5422,Catering costs - provisions,21.05,0.00,21.05
Regeneration and Local Services,Direct Services,021324,Catering - Meadowfield,Supplies and Services,324117,Provisions,08-Jan-2018,000006880512213,JR HOLLAND FOODSERVICE,5422,Catering costs - provisions,9.90,0.00,9.90
Children and Young Peoples Services,Head of Looked After Provision Permanence and Care Leavers,085331,New Lea Childrens Home,Supplies and Services,342033,Computers and Communications,08-Jan-2018,000006880512261,WWW.NISBETS.COM,5964,Computer hardware,38.34,6.39,31.95
Children and Young Peoples Services,Head of Looked After Provision Permanence and Care Leavers,085331,New Lea Childrens Home,Supplies and Services,342033,Computers and Communications,08-Jan-2018,000006880512261 - 1,WWW.NISBETS.COM,5964,Computer hardware,0.03,,0.03
Regeneration and Local Services,Direct Services,021235,Catering - Wharton Park,Supplies and Services,324117,Provisions,08-Jan-2018,000006880512269,JR HOLLAND FOODSERVICE,5422,Catering costs - provisions,16.40,0.00,16.40
Regeneration and Local Services,Direct Services,021235,Catering - Wharton Park,Supplies and Services,324117,Provisions,08-Jan-2018,000006880512271,JR HOLLAND FOODSERVICE,5422,Catering costs - provisions,-4.68,0.00,-4.68
Children and Young Peoples Services,Head of Early Help Assessment and Safeguarding,085801,CDYOS - Support,Supplies and Services,352001,Conference Expenses,08-Jan-2018,000006880512311,TRAVELODGE,3615,Conferencesseminars fees etc,91.98,15.33,76.65
Children and Young Peoples Services,Head of Early Help Assessment and Safeguarding,085801,CDYOS - Support,Supplies and Services,352001,Conference Expenses,08-Jan-2018,000006880512311 - 1,TRAVELODGE,3615,Conferencesseminars fees etc,10.52,,10.52
Regeneration and Local Services,Economic Development and Housing,031576,B& B - Temp Accom,Employees,040149,Recruitment Instruction and Training,08-Jan-2018,000006886626693,PREMIER INN,3811,Training-all costs,71.00,0.00,71.00
Children and Young Peoples Services,Head of Looked After Provision Permanence and Care Leavers,085957,Secure Management,Supplies and Services,328041,Clothing Uniforms and Laundry,08-Jan-2018,000006886626957,WWW.ARGOS.CO.UK,5310,Clothing uniforms and laundry,134.91,0.00,134.91
Regeneration and Local Services,Culture & Sport,054815,Gala Theatre Stage School,Supplies and Services,312011,Newspapers Books and Periodicals,08-Jan-2018,000006886627043,AMAZON SVCS EU-UK AMAZ,5942,Books-school library,10.14,0.00,10.14
Regeneration and Local Services,Economic Development and Housing,030737,Durham Works Flexible Fund,Supplies and Services,328041,Clothing Uniforms and Laundry,08-Jan-2018,000006886627871,WWW.EVANS.CO.UK,5691,Clothing uniforms and laundry,38.40,0.00,38.40
Regeneration and Local Services,Culture & Sport,054812,Gala Theatre - Catering etc,Supplies and Services,324117,Provisions,08-Jan-2018,000006888168053,BATLEYS PERTH,5300,Catering costs - provisions,108.96,18.16,90.80
Regeneration and Local Services,Culture & Sport,054812,Gala Theatre - Catering etc,Supplies and Services,324117,Provisions,08-Jan-2018,000006888168053 - 1,BATLEYS PERTH,5300,Catering costs - provisions,98.88,,98.88
Regeneration and Local Services,Direct Services,021235,Catering - Wharton Park,Supplies and Services,324117,Provisions,08-Jan-2018,000006888169171,BATLEYS PERTH,5300,Catering costs - provisions,53.82,8.97,44.85
Regeneration and Local Services,Direct Services,021235,Catering - Wharton Park,Supplies and Services,324117,Provisions,08-Jan-2018,000006888169171 - 1,BATLEYS PERTH,5300,Catering costs - provisions,14.96,,14.96
Regeneration and Local Services,Economic Development and Housing,030737,Durham Works Flexible Fund,Supplies and Services,304259,Equipment and Materials,08-Jan-2018,000006908117735,CURRYS ONLINE,5732,Equipment-purchase and rental,-134.99,-22.50,-112.49
Children and Young Peoples Services,Head of Education,071801,Selby Cottage Childcare Centre,Supplies and Services,324117,Provisions,09-Jan-2018,000006886626409,ALDI 32 774,5411,Catering costs - provisions,7.38,0.00,7.38
Regeneration and Local Services,Spatial Policy Planning Assets & Environment,031040,Building Control - Central/East Area,Income,720130,Fees and Charges,09-Jan-2018,000006886626423,WWW.MONEYCLAIM.GOV,9399,Fees-legal,35.00,0.00,35.00
Resources,Digital and Customer Services,065323,Operations - Installations,Supplies and Services,304259,Equipment and Materials,09-Jan-2018,000006886626427,SCREWFIX DIRECT,5211,Equipment-purchase and rental,29.99,5.00,24.99
Regeneration and Local Services,Direct Services,010383,C&G - South Street Cleansing,Supplies and Services,304259,Equipment and Materials,09-Jan-2018,000006886626489,JEWSON LTD,5211,Equipment-purchase and rental,152.35,25.39,126.96
Regeneration and Local Services,Direct Services,021242,Catering - County Hall,Supplies and Services,324117,Provisions,09-Jan-2018,000006886626607,HOPWELLS LTD,5811,Catering costs - provisions,244.04,0.00,244.04
Regeneration and Local Services,Direct Services,021242,Catering - County Hall,Supplies and Services,324117,Provisions,09-Jan-2018,000006886626617,HOPWELLS LTD,5811,Catering costs - provisions,244.01,0.00,244.01
Regeneration and Local Services,Direct Services,021242,Catering - County Hall,Supplies and Services,324117,Provisions,09-Jan-2018,000006886626629,JR HOLLAND FOODSERVICE,5422,Catering costs - provisions,41.39,0.00,41.39
Regeneration and Local Services,Direct Services,021242,Catering - County Hall,Supplies and Services,324117,Provisions,09-Jan-2018,000006886626635,JR HOLLAND FOODSERVICE,5422,Catering costs - provisions,13.54,0.00,13.54
Regeneration and Local Services,Direct Services,021242,Catering - County Hall,Supplies and Services,324117,Provisions,09-Jan-2018,000006886626637,JR HOLLAND FOODSERVICE,5422,Catering costs - provisions,6.60,0.00,6.60
Regeneration and Local Services,Culture & Sport,054233,Bishop Auckland Town Hall Library,Supplies and Services,312011,Newspapers Books and Periodicals,09-Jan-2018,000006886626643,Amazon UK Marketplace,5942,Books-school library,6.81,0.00,6.81
Regeneration and Local Services,Economic Development and Housing,030737,Durham Works Flexible Fund,Transport,235057,Public Transport,09-Jan-2018,000006886626665,ARRIVA NORTH EAST,4131,Staff travelling,135.50,0.00,135.50
Regeneration and Local Services,Culture & Sport,054812,Gala Theatre - Catering etc,Supplies and Services,324117,Provisions,09-Jan-2018,000006886626683,HOPWELLS LTD,5811,Catering costs - provisions,22.15,0.00,22.15
Regeneration and Local Services,Culture & Sport,054812,Gala Theatre - Catering etc,Supplies and Services,324117,Provisions,09-Jan-2018,000006886626685,JR HOLLAND FOODSERVICE,5422,Catering costs - provisions,50.12,0.00,50.12
Children and Young Peoples Services,Head of Looked After Provision Permanence and Care Leavers,085351,Framwellgate Moor CU,Supplies and Services,324117,Provisions,09-Jan-2018,000006886626773,TESCO STORES 2371,5411,Catering costs - provisions,122.74,0.00,122.74
Transformation and Partnerships,Comms & Information Management,060131,County Records,Supplies and Services,304403,Equipment and Materials,09-Jan-2018,000006886626859,CRAZY LADIES COSTUMES,5697,Other consumables,40.48,0.00,40.48
Regeneration and Local Services,Economic Development and Housing,030737,Durham Works Flexible Fund,Transport,235057,Public Transport,09-Jan-2018,000006886626913,WWW.SIMPLYGO.COM,4131,Staff travelling,6.50,0.00,6.50
Children and Young Peoples Services,Head of Looked After Provision Permanence and Care Leavers,085957,Secure Management,Supplies and Services,304259,Equipment and Materials,09-Jan-2018,000006886626921,M and M Direct Ltd,5941,Equipment-purchase and rental,74.97,0.00,74.97
Children and Young Peoples Services,Head of Looked After Provision Permanence and Care Leavers,085957,Secure Management,Supplies and Services,328041,Clothing Uniforms and Laundry,09-Jan-2018,000006886626929,SCHUH,5651,Clothing uniforms and laundry,22.00,0.00,22.00
Children and Young Peoples Services,Head of Looked After Provision Permanence and Care Leavers,085957,Secure Management,Supplies and Services,312011,Newspapers Books and Periodicals,09-Jan-2018,000006886626933,Amazon EU,5969,Books-school library,39.00,0.00,39.00
Children and Young Peoples Services,Head of Looked After Provision Permanence and Care Leavers,085957,Secure Management,Supplies and Services,342033,Computers and Communications,09-Jan-2018,000006886626943,VERY.CO.UK,5964,Computer hardware,99.74,0.00,99.74
Children and Young Peoples Services,Head of Looked After Provision Permanence and Care Leavers,085957,Secure Management,Supplies and Services,342033,Computers and Communications,09-Jan-2018,000006886626953,VERY.CO.UK,5964,Computer hardware,78.99,0.00,78.99
Children and Young Peoples Services,Head of Looked After Provision Permanence and Care Leavers,085957,Secure Management,Supplies and Services,328041,Clothing Uniforms and Laundry,09-Jan-2018,000006886626963,WWW.FOOTLOCKER.EU,5661,Clothing uniforms and laundry,219.98,0.00,219.98
Regeneration and Local Services,Culture & Sport,026591,Hardwick Park,Supplies and Services,304259,Equipment and Materials,09-Jan-2018,000006886626975,JEWSON LTD,5211,Equipment-purchase and rental,25.32,4.22,21.10
Children and Young Peoples Services,Head of Early Help Assessment and Safeguarding,071746,Newton Aycliffe Childrens Centre,Supplies and Services,324117,Provisions,09-Jan-2018,000006886626985,TESCO STORES 2916,5411,Catering costs - provisions,12.41,0.00,12.41
Regeneration and Local Services,Culture & Sport,011060,Hardwick Park Catering,Supplies and Services,324117,Provisions,09-Jan-2018,000006886627007,JR HOLLAND FOODSERVICE,5422,Catering costs - provisions,30.99,0.00,30.99
Regeneration and Local Services,Culture & Sport,011060,Hardwick Park Catering,Supplies and Services,324117,Provisions,09-Jan-2018,000006886627021,JR HOLLAND FOODSERVICE,5422,Catering costs - provisions,6.52,0.00,6.52
Resources,Digital and Customer Services,070205,School Services - Health and Safety Services,Supplies and Services,304639,Equipment and Materials,09-Jan-2018,000006886627031,HSE,9399,Technicians-supplies,25.00,0.00,25.00
Children and Young Peoples Services,Head of Looked After Provision Permanence and Care Leavers,085332,Middlestone Moor CU,Supplies and Services,308011,Furniture,09-Jan-2018,000006886627055,DUNELM LTD,5714,Furniture repair and replacement,23.76,0.00,23.76
Regeneration and Local Services,Direct Services,021234,Catering - Locomotion,Supplies and Services,324117,Provisions,09-Jan-2018,000006886627065,HOPWELLS LTD,5811,Catering costs - provisions,153.42,25.57,127.85
Regeneration and Local Services,Direct Services,021234,Catering - Locomotion,Supplies and Services,324117,Provisions,09-Jan-2018,000006886627065 - 1,HOPWELLS LTD,5811,Catering costs - provisions,447.71,,447.71
Regeneration and Local Services,Direct Services,021234,Catering - Locomotion,Supplies and Services,324117,Provisions,09-Jan-2018,000006886627077,HOPWELLS LTD,5811,Catering costs - provisions,40.86,6.81,34.05
Regeneration and Local Services,Direct Services,021234,Catering - Locomotion,Supplies and Services,324117,Provisions,09-Jan-2018,000006886627077 - 1,HOPWELLS LTD,5811,Catering costs - provisions,252.03,,252.03
Regeneration and Local Services,Direct Services,021234,Catering - Locomotion,Supplies and Services,324117,Provisions,09-Jan-2018,000006886627087,JR HOLLAND FOODSERVICE,5422,Catering costs - provisions,94.20,0.00,94.20
Regeneration and Local Services,Direct Services,021234,Catering - Locomotion,Supplies and Services,324117,Provisions,09-Jan-2018,000006886627095,JR HOLLAND FOODSERVICE,5422,Catering costs - provisions,89.74,0.00,89.74
Regeneration and Local Services,Direct Services,021234,Catering - Locomotion,Supplies and Services,324117,Provisions,09-Jan-2018,000006886627107,JR HOLLAND FOODSERVICE,5422,Catering costs - provisions,37.30,0.00,37.30
Regeneration and Local Services,Economic Development and Housing,031576,B& B - Temp Accom,Supplies and Services,364320,Grants to Voluntary Organisations,09-Jan-2018,000006886627115,TRAVELODGE,3615,Accommodation assistance,39.00,0.00,39.00
Regeneration and Local Services,Economic Development and Housing,031576,B& B - Temp Accom,Supplies and Services,364320,Grants to Voluntary Organisations,09-Jan-2018,000006886627125,TRAVELODGE,3615,Accommodation assistance,41.00,0.00,41.00
Regeneration and Local Services,Economic Development and Housing,031576,B& B - Temp Accom,Supplies and Services,364320,Grants to Voluntary Organisations,09-Jan-2018,000006886627129,TRAVELODGE,3615,Accommodation assistance,41.00,0.00,41.00
Regeneration and Local Services,Economic Development and Housing,031576,B& B - Temp Accom,Supplies and Services,364320,Grants to Voluntary Organisations,09-Jan-2018,000006886627135,TRAVELODGE,3615,Accommodation assistance,62.00,0.00,62.00
Regeneration and Local Services,Direct Services,010525,Catering - Green Lane,Supplies and Services,324117,Provisions,09-Jan-2018,000006886627169,HOPWELLS LTD,5811,Catering costs - provisions,197.12,0.00,197.12
Regeneration and Local Services,Direct Services,010367,C&G - South Grounds Maintenance,Supplies and Services,304259,Equipment and Materials,09-Jan-2018,000006886627193,TUDOR ENVIRONMENTAL,5261,Equipment-purchase and rental,499.82,83.30,416.52
Regeneration and Local Services,Economic Development and Housing,030749,Employability - Youth Contract,Supplies and Services,304259,Equipment and Materials,09-Jan-2018,000006886627221,DISCLOSURE SCOT,9399,Equipment-purchase and rental,-25.00,0.00,-25.00
Children and Young Peoples Services,Head of Looked After Provision Permanence and Care Leavers,085333,Coxhoe Satelite Home,Supplies and Services,324117,Provisions,09-Jan-2018,000006886627255,TESCO STORES 2916,5411,Catering costs - provisions,111.87,0.00,111.87
Children and Young Peoples Services,Head of Looked After Provision Permanence and Care Leavers,085333,Coxhoe Satelite Home,Supplies and Services,324117,Provisions,09-Jan-2018,000006886627263,TESCO STORES 2916,5411,Catering costs - provisions,40.60,0.00,40.60
Children and Young Peoples Services,Head of Looked After Provision Permanence and Care Leavers,085333,Coxhoe Satelite Home,Supplies and Services,324117,Provisions,09-Jan-2018,000006886627273,TESCO STORES 2916,5411,Catering costs - provisions,10.37,0.00,10.37
Children and Young Peoples Services,Head of Looked After Provision Permanence and Care Leavers,085333,Coxhoe Satelite Home,Supplies and Services,304259,Equipment and Materials,09-Jan-2018,000006886627279,WILKO RETAIL LIMIT,5722,Equipment-purchase and rental,50.80,0.00,50.80
Regeneration and Local Services,Culture & Sport,026591,Hardwick Park,Supplies and Services,304245,Equipment and Materials,09-Jan-2018,000006886627307,B & Q 1120,5211,Materials,7.20,0.00,7.20
Children and Young Peoples Services,Head of Early Help Assessment and Safeguarding,088001,Peterlee Locality,Supplies and Services,324117,Provisions,09-Jan-2018,000006886627489,ASDA GEORGE COM LEEDS,5411,Catering costs - provisions,239.95,0.00,239.95
Regeneration and Local Services,Culture & Sport,054235,Bishop Auckland Town Hall Cafe,Supplies and Services,324117,Provisions,09-Jan-2018,000006886627519,JR HOLLAND FOODSERVICE,5422,Catering costs - provisions,22.68,0.00,22.68
Regeneration and Local Services,Direct Services,021324,Catering - Meadowfield,Supplies and Services,324117,Provisions,09-Jan-2018,000006886627529,HOPWELLS LTD,5811,Catering costs - provisions,108.25,0.00,108.25
Regeneration and Local Services,Direct Services,021324,Catering - Meadowfield,Supplies and Services,324117,Provisions,09-Jan-2018,000006886627537,JR HOLLAND FOODSERVICE,5422,Catering costs - provisions,30.31,0.00,30.31
Adult and Health Services,Head of Adults,055301,Stanley Pathways,Supplies and Services,324117,Provisions,09-Jan-2018,000006886627547,ICELAND,5411,Catering costs - provisions,5.98,0.00,5.98
Regeneration and Local Services,Direct Services,021235,Catering - Wharton Park,Supplies and Services,324117,Provisions,09-Jan-2018,000006886627767,JR HOLLAND FOODSERVICE,5422,Catering costs - provisions,14.48,0.00,14.48
Adult and Health Services,Head of Adults,055309,Peterlee Pathways,Supplies and Services,324117,Provisions,09-Jan-2018,000006886627781,LIDL UK,5411,Catering costs - provisions,2.96,0.00,2.96
Regeneration and Local Services,Economic Development and Housing,030737,Durham Works Flexible Fund,Supplies and Services,328041,Clothing Uniforms and Laundry,09-Jan-2018,000006886627857,INDUSTRIAL WORKWEAR LI,5137,Clothing uniforms and laundry,23.88,0.00,23.88
Regeneration and Local Services,Economic Development and Housing,030737,Durham Works Flexible Fund,Supplies and Services,328041,Clothing Uniforms and Laundry,09-Jan-2018,000006886627867,SHOE ZONE (INTERNET),5661,Clothing uniforms and laundry,19.99,0.00,19.99
Children and Young Peoples Services,Head of Early Help Assessment and Safeguarding,071440,Barnard Castle One Point Hub,Supplies and Services,304403,Equipment and Materials,09-Jan-2018,000006888167955,AMAZON EU AMAZON.CO.UK,5999,Other consumables,29.95,0.00,29.95
Regeneration and Local Services,Direct Services,021242,Catering - County Hall,Supplies and Services,324117,Provisions,09-Jan-2018,000006888167993,BATLEYS PERTH,5300,Catering costs - provisions,115.56,19.26,96.30
Regeneration and Local Services,Direct Services,021242,Catering - County Hall,Supplies and Services,324117,Provisions,09-Jan-2018,000006888167993 - 1,BATLEYS PERTH,5300,Catering costs - provisions,167.92,,167.92
Regeneration and Local Services,Culture & Sport,011060,Hardwick Park Catering,Supplies and Services,324117,Provisions,09-Jan-2018,000006888168403,BATLEYS PERTH,5300,Catering costs - provisions,48.66,8.11,40.55
Regeneration and Local Services,Culture & Sport,011060,Hardwick Park Catering,Supplies and Services,324117,Provisions,09-Jan-2018,000006888168403 - 1,BATLEYS PERTH,5300,Catering costs - provisions,83.85,,83.85
Regeneration and Local Services,Direct Services,021234,Catering - Locomotion,Supplies and Services,324117,Provisions,09-Jan-2018,000006888168461,BATLEYS PERTH,5300,Catering costs - provisions,660.60,110.10,550.50
Regeneration and Local Services,Direct Services,021234,Catering - Locomotion,Supplies and Services,324117,Provisions,09-Jan-2018,000006888168461 - 1,BATLEYS PERTH,5300,Catering costs - provisions,91.07,,91.07
Regeneration and Local Services,Economic Development and Housing,031576,B& B - Temp Accom,Supplies and Services,364320,Grants to Voluntary Organisations,09-Jan-2018,000006888168477,PREMIER INN,3811,Accommodation assistance,73.00,0.00,73.00
Regeneration and Local Services,Culture & Sport,054235,Bishop Auckland Town Hall Cafe,Supplies and Services,324117,Provisions,09-Jan-2018,000006888168885,BATLEYS PERTH,5300,Catering costs - provisions,39.65,0.00,39.65
Regeneration and Local Services,Direct Services,021324,Catering - Meadowfield,Supplies and Services,324117,Provisions,09-Jan-2018,000006888168935,BATLEYS PERTH,5300,Catering costs - provisions,103.74,17.29,86.45
Regeneration and Local Services,Direct Services,021324,Catering - Meadowfield,Supplies and Services,324117,Provisions,09-Jan-2018,000006888168935 - 1,BATLEYS PERTH,5300,Catering costs - provisions,121.73,,121.73
Children and Young Peoples Services,Head of Looked After Provision Permanence and Care Leavers,085331,New Lea Childrens Home,Supplies and Services,324117,Provisions,09-Jan-2018,000006888169135,ASDA HOME SHOPPING,5411,Catering costs - provisions,91.44,0.00,91.44
Children and Young Peoples Services,Head of Looked After Provision Permanence and Care Leavers,085341,High Etherley Satelite Home,Supplies and Services,324117,Provisions,10-Jan-2018,000006888167741,SAINSBURYS 2199,5411,Catering costs - provisions,40.59,0.00,40.59
Children and Young Peoples Services,Head of Looked After Provision Permanence and Care Leavers,085341,High Etherley Satelite Home,Supplies and Services,324117,Provisions,10-Jan-2018,000006888167751,TESCO STORES 6329,5411,Catering costs - provisions,11.43,0.00,11.43
Children and Young Peoples Services,Head of Looked After Provision Permanence and Care Leavers,085341,High Etherley Satelite Home,Transport,215995,Running Costs of Vehicles,10-Jan-2018,000006888167753,TESCO PAY AT PUMP 4214,5542,Vehicle running expenses,37.14,0.00,37.14
Resources,Digital and Customer Services,070110,School Services - Man Info System (MIS) Support Team,Supplies and Services,304335,Equipment and Materials,10-Jan-2018,000006888167795,WWW.DESKTOP-INNOVATION,5943,ICT supplies etc,42.89,7.15,35.74
Resources,Digital and Customer Services,065321,Operations - Digital & Customer Services,Supplies and Services,304335,Equipment and Materials,10-Jan-2018,000006888167805,PAYPAL JUYUANTECHN,5732,ICT supplies etc,18.96,0.00,18.96
Adult and Health Services,Head of Adults,055302,Durham Pathways,Supplies and Services,304259,Equipment and Materials,10-Jan-2018,000006888167871,WILKO DURHAM 426,5722,Equipment-purchase and rental,12.00,0.00,12.00
Adult and Health Services,Head of Adults,055302,Durham Pathways,Supplies and Services,324117,Provisions,10-Jan-2018,000006888167879,LIDL UK,5411,Catering costs - provisions,8.48,0.00,8.48
Regeneration and Local Services,Direct Services,010383,C&G - South Street Cleansing,Supplies and Services,304259,Equipment and Materials,10-Jan-2018,000006888167887,S&A BUILDERS MERCHANTS,5211,Equipment-purchase and rental,21.12,3.52,17.60
Regeneration and Local Services,Economic Development and Housing,030705,Visit County Durham,Supplies and Services,342033,Computers and Communications,10-Jan-2018,000006888167895,WWW.OSBORNEBOOKS.CO.UK,5964,Computer hardware,43.70,0.00,43.70
Regeneration and Local Services,Direct Services,021242,Catering - County Hall,Supplies and Services,324117,Provisions,10-Jan-2018,000006888167975,JR HOLLAND FOODSERVICE,5422,Catering costs - provisions,143.24,0.00,143.24
Regeneration and Local Services,Direct Services,021242,Catering - County Hall,Supplies and Services,324117,Provisions,10-Jan-2018,000006888167985,JR HOLLAND FOODSERVICE,5422,Catering costs - provisions,30.14,0.00,30.14
Regeneration and Local Services,Direct Services,021242,Catering - County Hall,Supplies and Services,324117,Provisions,10-Jan-2018,000006888167987,JR HOLLAND FOODSERVICE,5422,Catering costs - provisions,18.18,0.00,18.18
Regeneration and Local Services,Economic Development and Housing,030544,Rural Employability - Client Engagement,Supplies and Services,304259,Equipment and Materials,10-Jan-2018,000006888168009,MACHINE MART LTD,5722,Equipment-purchase and rental,20.40,3.40,17.00
Regeneration and Local Services,Economic Development and Housing,030544,Rural Employability - Client Engagement,Supplies and Services,304259,Equipment and Materials,10-Jan-2018,000006888168009 - 1,MACHINE MART LTD,5722,Equipment-purchase and rental,29.97,,29.97
Resources,Digital and Customer Services,065461,Business Support,Supplies and Services,372009,Subscriptions,10-Jan-2018,000006888168023,WEB NETWORKSOLUTIONS,5968,Subscriptions,346.94,0.00,346.94
Regeneration and Local Services,Economic Development and Housing,030737,Durham Works Flexible Fund,Transport,235057,Public Transport,10-Jan-2018,000006888168045,ARRIVA NORTH EAST,4131,Staff travelling,25.00,0.00,25.00
Regeneration and Local Services,Economic Development and Housing,031576,B& B - Temp Accom,Supplies and Services,364320,Grants to Voluntary Organisations,10-Jan-2018,000006888168209,TRAVELODGE,3615,Accommodation assistance,47.00,7.83,39.17
Regeneration and Local Services,Economic Development and Housing,031576,B& B - Temp Accom,Supplies and Services,364320,Grants to Voluntary Organisations,10-Jan-2018,000006888168217,TRAVELODGE,3615,Accommodation assistance,41.00,6.83,34.17
Regeneration and Local Services,Economic Development and Housing,031576,B& B - Temp Accom,Supplies and Services,364320,Grants to Voluntary Organisations,10-Jan-2018,000006888168227,TRAVELODGE,3615,Accommodation assistance,39.00,6.50,32.50
Children and Young Peoples Services,Head of Education,071903,EYDCP-Sustainability EDS,Supplies and Services,312011,Newspapers Books and Periodicals,10-Jan-2018,000006888168295,AMAZON SVCS EU-UK AMAZ,5942,Books-school library,22.98,0.00,22.98
Children and Young Peoples Services,Head of Looked After Provision Permanence and Care Leavers,085957,Secure Management,Supplies and Services,324117,Provisions,10-Jan-2018,000006888168347,TESCO STORES 6329,5411,Catering costs - provisions,112.75,0.00,112.75
Regeneration and Local Services,Direct Services,010301,C&G - North Grounds Maintenance,Supplies and Services,328041,Clothing Uniforms and Laundry,10-Jan-2018,000006888168369,THOMAS OWEN & SONS /N/,5611,Clothing uniforms and laundry,34.22,0.00,34.22
Regeneration and Local Services,Culture & Sport,011060,Hardwick Park Catering,Supplies and Services,324117,Provisions,10-Jan-2018,000006888168379,JR HOLLAND FOODSERVICE,5422,Catering costs - provisions,55.23,0.00,55.23
Regeneration and Local Services,Culture & Sport,011060,Hardwick Park Catering,Supplies and Services,324117,Provisions,10-Jan-2018,000006888168385,JR HOLLAND FOODSERVICE,5422,Catering costs - provisions,30.58,0.00,30.58
Regeneration and Local Services,Culture & Sport,011060,Hardwick Park Catering,Supplies and Services,324117,Provisions,10-Jan-2018,000006888168397,JR HOLLAND FOODSERVICE,5422,Catering costs - provisions,15.50,0.00,15.50
Children and Young Peoples Services,Head of Looked After Provision Permanence and Care Leavers,085332,Middlestone Moor CU,Supplies and Services,324117,Provisions,10-Jan-2018,000006888168425,ALDI 59 774,5411,Catering costs - provisions,24.18,0.00,24.18
Regeneration and Local Services,Direct Services,021234,Catering - Locomotion,Supplies and Services,324117,Provisions,10-Jan-2018,000006888168439,JR HOLLAND FOODSERVICE,5422,Catering costs - provisions,42.55,0.00,42.55
Regeneration and Local Services,Direct Services,021234,Catering - Locomotion,Supplies and Services,324117,Provisions,10-Jan-2018,000006888168447,JR HOLLAND FOODSERVICE,5422,Catering costs - provisions,40.29,0.00,40.29
Regeneration and Local Services,Direct Services,021234,Catering - Locomotion,Supplies and Services,324117,Provisions,10-Jan-2018,000006888168455,JR HOLLAND FOODSERVICE,5422,Catering costs - provisions,9.09,0.00,9.09
Regeneration and Local Services,Direct Services,010525,Catering - Green Lane,Supplies and Services,324117,Provisions,10-Jan-2018,000006888168507,JR HOLLAND FOODSERVICE,5422,Catering costs - provisions,66.10,0.00,66.10
Children and Young Peoples Services,Head of Early Help Assessment and Safeguarding,071441,Bishop Auckland One Point Hub,Premises,145023,Cleaning and Domestic Supplies,10-Jan-2018,000006888168587,HOME BARGAINS,5251,Cleaning and domestic materials,17.31,0.00,17.31
Children and Young Peoples Services,Head of Early Help Assessment and Safeguarding,071443,Stanley One Point Hub,Supplies and Services,304259,Equipment and Materials,10-Jan-2018,000006888168593,WWW.DURHAM.GOV.UK,9399,Equipment-purchase and rental,12.00,0.00,12.00
Regeneration and Local Services,Direct Services,010367,C&G - South Grounds Maintenance,Supplies and Services,324117,Provisions,10-Jan-2018,000006888168643,J M RAINE,5399,Catering costs - provisions,475.16,79.19,395.97
Regeneration and Local Services,Direct Services,010367,C&G - South Grounds Maintenance,Supplies and Services,324117,Provisions,10-Jan-2018,000006888168649,J M RAINE,5399,Catering costs - provisions,112.86,18.81,94.05
Regeneration and Local Services,Economic Development and Housing,030749,Employability - Youth Contract,Transport,235057,Public Transport,10-Jan-2018,000006888168701,ARRIVA NORTH EAST,4131,Staff travelling,50.00,0.00,50.00
Regeneration and Local Services,Direct Services,010301,C&G - North Grounds Maintenance,Supplies and Services,304403,Equipment and Materials,10-Jan-2018,000006888168821,BESCOL,5231,Other consumables,79.51,0.00,79.51
Regeneration and Local Services,Culture & Sport,054235,Bishop Auckland Town Hall Cafe,Supplies and Services,324117,Provisions,10-Jan-2018,000006888168877,JR HOLLAND FOODSERVICE,5422,Catering costs - provisions,34.36,0.00,34.36
Regeneration and Local Services,Transport and Contracted Services,031704,Care Connect - CCTV Countywide,Supplies and Services,384956,Miscellaneous Expenses,10-Jan-2018,000006888168895,SECURITY INDUSTRY,7393,Licences,220.00,0.00,220.00
Regeneration and Local Services,Direct Services,021324,Catering - Meadowfield,Supplies and Services,324117,Provisions,10-Jan-2018,000006888168917,JR HOLLAND FOODSERVICE,5422,Catering costs - provisions,21.77,0.00,21.77
Regeneration and Local Services,Direct Services,021324,Catering - Meadowfield,Supplies and Services,324117,Provisions,10-Jan-2018,000006888168929,JR HOLLAND FOODSERVICE,5422,Catering costs - provisions,13.89,0.00,13.89
Regeneration and Local Services,Technical Services,010984,Training and Development,Employees,040149,Recruitment Instruction and Training,10-Jan-2018,000006888169075,THE INSTITUTION OF,8699,Training-all costs,160.00,0.00,160.00
Regeneration and Local Services,Economic Development and Housing,030671,Business Space,Supplies and Services,312011,Newspapers Books and Periodicals,10-Jan-2018,000006888169105,Amazon UK Marketplace,5942,Books-school library,10.00,0.00,10.00
Regeneration and Local Services,Economic Development and Housing,030671,Business Space,Supplies and Services,312011,Newspapers Books and Periodicals,10-Jan-2018,000006888169113,Amazon UK Marketplace,5942,Books-school library,129.16,0.00,129.16
Regeneration and Local Services,Economic Development and Housing,030671,Business Space,Supplies and Services,328041,Clothing Uniforms and Laundry,10-Jan-2018,000006888169119,ARGOS RETAIL GROUP,5310,Clothing uniforms and laundry,133.80,0.00,133.80
Transformation and Partnerships,Transformation,060230,Corporate Improvement Programme,Supplies and Services,312009,Newspapers Books and Periodicals,10-Jan-2018,000006888169149,AMAZON EU AMAZON.CO.UK,5999,Newspapers books and periodicals,18.00,0.00,18.00
Regeneration and Local Services,Direct Services,021235,Catering - Wharton Park,Supplies and Services,324117,Provisions,10-Jan-2018,000006888169161,HOPWELLS LTD,5811,Catering costs - provisions,19.80,3.30,16.50
Regeneration and Local Services,Direct Services,021235,Catering - Wharton Park,Supplies and Services,324117,Provisions,10-Jan-2018,000006888169161 - 1,HOPWELLS LTD,5811,Catering costs - provisions,100.06,,100.06
Regeneration and Local Services,Culture & Sport,011230,Operations Locality 2,Supplies and Services,304999,Equipment and Materials,10-Jan-2018,000006888169229,"BOOTS/5009,NEWTON",5912,Misc equipment tools and materials,19.99,0.00,19.99
Regeneration and Local Services,Culture & Sport,011230,Operations Locality 2,Supplies and Services,304259,Equipment and Materials,10-Jan-2018,000006888169235,WILKO RETAIL LIMIT,5722,Equipment-purchase and rental,7.50,0.00,7.50
Children and Young Peoples Services,Head of Early Help Assessment and Safeguarding,085801,CDYOS - Support,Supplies and Services,352001,Conference Expenses,10-Jan-2018,000006888169279,TRAVELODGE,3615,Conferencesseminars fees etc,54.00,9.00,45.00
Children and Young Peoples Services,Head of Early Help Assessment and Safeguarding,085801,CDYOS - Support,Supplies and Services,352001,Conference Expenses,10-Jan-2018,000006888169279 - 1,TRAVELODGE,3615,Conferencesseminars fees etc,5.25,,5.25
Regeneration and Local Services,Economic Development and Housing,031576,B& B - Temp Accom,Supplies and Services,364320,Grants to Voluntary Organisations,10-Jan-2018,000006892880105,PREMIER INN,3811,Accommodation assistance,73.00,12.17,60.83
Children and Young Peoples Services,Head of Looked After Provision Permanence and Care Leavers,085957,Secure Management,Supplies and Services,328041,Clothing Uniforms and Laundry,10-Jan-2018,000006892880225,WWW.TOPSHOP.COM,5691,Clothing uniforms and laundry,49.95,0.00,49.95
Regeneration and Local Services,Economic Development and Housing,030671,Business Space,Supplies and Services,304403,Equipment and Materials,10-Jan-2018,000006892880831,AMAZON EU AMAZON.CO.UK,5999,Other consumables,15.00,0.00,15.00
Regeneration and Local Services,Direct Services,021235,Catering - Wharton Park,Supplies and Services,324117,Provisions,10-Jan-2018,000006892880883,BATLEYS PERTH,5300,Catering costs - provisions,-0.75,0.00,-0.75
Resources,Digital and Customer Services,065461,Business Support,Supplies and Services,372009,Subscriptions,11-Jan-2018,000006888168029,WEB NETWORKSOLUTIONS,5968,Subscriptions,9.54,0.00,9.54
Children and Young Peoples Services,Head of Education,071801,Selby Cottage Childcare Centre,Supplies and Services,304259,Equipment and Materials,11-Jan-2018,000006892879759,WILKO RETAIL LIMIT,5722,Equipment-purchase and rental,23.55,0.00,23.55
Children and Young Peoples Services,Head of Looked After Provision Permanence and Care Leavers,085342,9 Cedar Drive Aycliffe,Supplies and Services,324117,Provisions,11-Jan-2018,000006892879853,TESCO STORES 2916,5411,Catering costs - provisions,34.73,0.00,34.73
Regeneration and Local Services,Direct Services,021242,Catering - County Hall,Supplies and Services,324117,Provisions,11-Jan-2018,000006892879959,WWW.ADELIEFOODS.CO.UK,5499,Catering costs - provisions,179.94,0.00,179.94
Regeneration and Local Services,Direct Services,021242,Catering - County Hall,Supplies and Services,324117,Provisions,11-Jan-2018,000006892879965,WWW.ADELIEFOODS.CO.UK,5499,Catering costs - provisions,120.87,0.00,120.87
Regeneration and Local Services,Direct Services,021242,Catering - County Hall,Supplies and Services,324117,Provisions,11-Jan-2018,000006892879969,JR HOLLAND FOODSERVICE,5422,Catering costs - provisions,99.85,0.00,99.85
Regeneration and Local Services,Direct Services,021242,Catering - County Hall,Supplies and Services,324117,Provisions,11-Jan-2018,000006892879977,JR HOLLAND FOODSERVICE,5422,Catering costs - provisions,13.20,0.00,13.20
Regeneration and Local Services,Culture & Sport,054233,Bishop Auckland Town Hall Library,Supplies and Services,312011,Newspapers Books and Periodicals,11-Jan-2018,000006892879983,Amazon UK Marketplace,5942,Books-school library,40.78,0.00,40.78
Regeneration and Local Services,Economic Development and Housing,030737,Durham Works Flexible Fund,Supplies and Services,324117,Provisions,11-Jan-2018,000006892879989,CO-OP GROUP 010518,5411,Catering costs - provisions,85.50,0.00,85.50
Regeneration and Local Services,Economic Development and Housing,030737,Durham Works Flexible Fund,Supplies and Services,324117,Provisions,11-Jan-2018,000006892879993,CO-OP GROUP 010518,5411,Catering costs - provisions,85.50,0.00,85.50
Regeneration and Local Services,Culture & Sport,054812,Gala Theatre - Catering etc,Supplies and Services,324117,Provisions,11-Jan-2018,000006892879999,JR HOLLAND FOODSERVICE,5422,Catering costs - provisions,55.54,0.00,55.54
Children and Young Peoples Services,Head of Looked After Provision Permanence and Care Leavers,085361,LAC & Permanence Team 1,Supplies and Services,384871,Miscellaneous Expenses,11-Jan-2018,000006892880081,AMFBOWLING.CO.UK,7997,Training-other activities,35.85,0.00,35.85
Children and Young Peoples Services,Head of Education,071732,Dean Bank Childcare,Supplies and Services,328041,Clothing Uniforms and Laundry,11-Jan-2018,000006892880131,B & M RETAIL,5310,Clothing uniforms and laundry,7.98,0.00,7.98
Transformation and Partnerships,Comms & Information Management,060131,County Records,Supplies and Services,342033,Computers and Communications,11-Jan-2018,000006892880159,WWW.LINDY.CO.UK,7372,Computer hardware,74.96,0.00,74.96
Regeneration and Local Services,Technical Services,024611,Strategic Highways - Road Safety ETP,Supplies and Services,312009,Newspapers Books and Periodicals,11-Jan-2018,000006892880165,THE BIKEABILITY TRUST,5111,Newspapers books and periodicals,179.96,29.99,149.97
Resources,Corporate Finance & Commercial Services,069800,Corporate Procurement,Employees,040149,Recruitment Instruction and Training,11-Jan-2018,000006892880167,WWW.CIPS.ORG,8699,Training-all costs,103.02,0.00,103.02
Children and Young Peoples Services,Head of Early Help Assessment and Safeguarding,071448,Newton Aycliffe One Point Hub,Supplies and Services,304259,Equipment and Materials,11-Jan-2018,000006892880185,GRO HM PASSPORT OFFICE,9399,Equipment-purchase and rental,9.25,0.00,9.25
Regeneration and Local Services,Economic Development and Housing,030737,Durham Works Flexible Fund,Transport,235057,Public Transport,11-Jan-2018,000006892880197,WWW.SIMPLYGO.COM,4131,Staff travelling,6.50,0.00,6.50
Regeneration and Local Services,Economic Development and Housing,030737,Durham Works Flexible Fund,Transport,235057,Public Transport,11-Jan-2018,000006892880201,WWW.SIMPLYGO.COM,4131,Staff travelling,105.00,0.00,105.00
Regeneration and Local Services,Economic Development and Housing,030737,Durham Works Flexible Fund,Supplies and Services,328041,Clothing Uniforms and Laundry,11-Jan-2018,000006892880207,RIVER ISLAND 822,5691,Clothing uniforms and laundry,90.05,0.00,90.05
Children and Young Peoples Services,Head of Looked After Provision Permanence and Care Leavers,085957,Secure Management,Supplies and Services,324117,Provisions,11-Jan-2018,000006892880219,TESCO STORES 6329,5411,Catering costs - provisions,123.16,0.00,123.16
Children and Young Peoples Services,Head of Looked After Provision Permanence and Care Leavers,085957,Secure Management,Supplies and Services,342033,Computers and Communications,11-Jan-2018,000006892880227,VERY.CO.UK,5964,Computer hardware,-130.00,0.00,-130.00
Children and Young Peoples Services,Head of Early Help Assessment and Safeguarding,071746,Newton Aycliffe Childrens Centre,Supplies and Services,324117,Provisions,11-Jan-2018,000006892880243,TESCO STORES 2916,5411,Catering costs - provisions,12.74,0.00,12.74
Regeneration and Local Services,Culture & Sport,011060,Hardwick Park Catering,Supplies and Services,324117,Provisions,11-Jan-2018,000006892880251,JR HOLLAND FOODSERVICE,5422,Catering costs - provisions,43.14,0.00,43.14
Resources,Digital and Customer Services,065335,School Services - Implementations,Supplies and Services,304639,Equipment and Materials,11-Jan-2018,000006892880263,AMZ replacebase,4816,Technicians-supplies,55.64,0.00,55.64
Resources,Digital and Customer Services,065335,School Services - Implementations,Supplies and Services,304639,Equipment and Materials,11-Jan-2018,000006892880267,Amazon UK Marketplace,5942,Technicians-supplies,3.76,0.00,3.76
Resources,Digital and Customer Services,065335,School Services - Implementations,Supplies and Services,304639,Equipment and Materials,11-Jan-2018,000006892880275,Amazon UK Marketplace,5942,Technicians-supplies,12.95,0.00,12.95
Resources,Digital and Customer Services,065335,School Services - Implementations,Supplies and Services,304639,Equipment and Materials,11-Jan-2018,000006892880281,ELECTRO SUPPLIES.C,5732,Technicians-supplies,366.94,61.16,305.78
Regeneration and Local Services,Culture & Sport,054815,Gala Theatre Stage School,Supplies and Services,304259,Equipment and Materials,11-Jan-2018,000006892880289,MARKET ELECTRICS,5722,Equipment-purchase and rental,2.78,0.00,2.78
Regeneration and Local Services,Culture & Sport,054815,Gala Theatre Stage School,Supplies and Services,304259,Equipment and Materials,11-Jan-2018,000006892880295,MARKET ELECTRICS,5722,Equipment-purchase and rental,7.28,0.00,7.28
Children and Young Peoples Services,Head of Looked After Provision Permanence and Care Leavers,085332,Middlestone Moor CU,Supplies and Services,312011,Newspapers Books and Periodicals,11-Jan-2018,000006892880307,AMAZON SVCS EU-UK AMAZ,5942,Books-school library,15.28,0.00,15.28
Children and Young Peoples Services,Head of Looked After Provision Permanence and Care Leavers,085332,Middlestone Moor CU,Supplies and Services,304259,Equipment and Materials,11-Jan-2018,000006892880313,WILKO RETAIL LIMIT,5722,Equipment-purchase and rental,4.50,0.00,4.50
Children and Young Peoples Services,Head of Looked After Provision Permanence and Care Leavers,085332,Middlestone Moor CU,Supplies and Services,324117,Provisions,11-Jan-2018,000006892880319,ASDA SUPERSTORE 4987,5411,Catering costs - provisions,72.90,0.00,72.90
Regeneration and Local Services,Direct Services,021234,Catering - Locomotion,Supplies and Services,324117,Provisions,11-Jan-2018,000006892880331,WWW.ADELIEFOODS.CO.UK,5499,Catering costs - provisions,304.39,0.00,304.39
Regeneration and Local Services,Direct Services,021234,Catering - Locomotion,Supplies and Services,324117,Provisions,11-Jan-2018,000006892880335,WWW.ADELIEFOODS.CO.UK,5499,Catering costs - provisions,148.70,0.00,148.70
Regeneration and Local Services,Direct Services,021234,Catering - Locomotion,Supplies and Services,324117,Provisions,11-Jan-2018,000006892880339,WWW.ADELIEFOODS.CO.UK,5499,Catering costs - provisions,61.25,0.00,61.25
Regeneration and Local Services,Direct Services,021234,Catering - Locomotion,Supplies and Services,324117,Provisions,11-Jan-2018,000006892880345,WWW.ADELIEFOODS.CO.UK,5499,Catering costs - provisions,57.79,0.00,57.79
Regeneration and Local Services,Direct Services,021234,Catering - Locomotion,Supplies and Services,324117,Provisions,11-Jan-2018,000006892880351,WWW.ADELIEFOODS.CO.UK,5499,Catering costs - provisions,44.45,0.00,44.45
Regeneration and Local Services,Direct Services,021234,Catering - Locomotion,Supplies and Services,324117,Provisions,11-Jan-2018,000006892880353,JR HOLLAND FOODSERVICE,5422,Catering costs - provisions,54.32,0.00,54.32
Regeneration and Local Services,Economic Development and Housing,031576,B& B - Temp Accom,Supplies and Services,364320,Grants to Voluntary Organisations,11-Jan-2018,000006892880371,AYCLIFFE BIZ,7011,Accommodation assistance,350.00,0.00,350.00
Regeneration and Local Services,Economic Development and Housing,031576,B& B - Temp Accom,Supplies and Services,364320,Grants to Voluntary Organisations,11-Jan-2018,000006892880391,TRAVELODGE,3615,Accommodation assistance,39.00,6.50,32.50
Regeneration and Local Services,Economic Development and Housing,031576,B& B - Temp Accom,Supplies and Services,364320,Grants to Voluntary Organisations,11-Jan-2018,000006892880399,TRAVELODGE,3615,Accommodation assistance,175.00,29.17,145.83
Regeneration and Local Services,Economic Development and Housing,031576,B& B - Temp Accom,Supplies and Services,364320,Grants to Voluntary Organisations,11-Jan-2018,000006892880405,TRAVELODGE,3615,Accommodation assistance,39.00,6.50,32.50
Regeneration and Local Services,Direct Services,010525,Catering - Green Lane,Supplies and Services,324117,Provisions,11-Jan-2018,000006892880409,WWW.ADELIEFOODS.CO.UK,5499,Catering costs - provisions,42.47,0.00,42.47
Regeneration and Local Services,Economic Development and Housing,030671,Business Space,Supplies and Services,328041,Clothing Uniforms and Laundry,11-Jan-2018,000006892880427,WWW.JOHNLEWIS.COM,5311,Clothing uniforms and laundry,378.00,63.00,315.00
Children and Young Peoples Services,Head of Education,078556,Adult Learner Responsive,Employees,040149,Recruitment Instruction and Training,11-Jan-2018,000006892880437,HTTP://ACE.APPRENTICES,7392,Training-all costs,"1,100.00",0.00,1100.00
Regeneration and Local Services,Direct Services,010367,C&G - South Grounds Maintenance,Supplies and Services,324117,Provisions,11-Jan-2018,000006892880471,J M RAINE,5399,Catering costs - provisions,2.22,0.00,2.22
Regeneration and Local Services,Economic Development and Housing,030737,Durham Works Flexible Fund,Transport,235057,Public Transport,11-Jan-2018,000006892880591,WWW.SIMPLYGO.COM,4131,Staff travelling,54.00,0.00,54.00
Children and Young Peoples Services,Head of Early Help Assessment and Safeguarding,088001,Peterlee Locality,Supplies and Services,304259,Equipment and Materials,11-Jan-2018,000006892880661,WILKO.COM,5722,Equipment-purchase and rental,13.00,0.00,13.00
Children and Young Peoples Services,Head of Early Help Assessment and Safeguarding,088001,Peterlee Locality,Supplies and Services,324117,Provisions,11-Jan-2018,000006892880675,ASDA GEORGE COM LEEDS,5411,Catering costs - provisions,41.95,0.00,41.95
Adult and Health Services,Head of Adults,055301,Stanley Pathways,Supplies and Services,324117,Provisions,11-Jan-2018,000006892880707,ICELAND,5411,Catering costs - provisions,3.26,0.00,3.26
Children and Young Peoples Services,Head of Early Help Assessment and Safeguarding,088083,Ferryhill 0 - 5,Supplies and Services,324117,Provisions,11-Jan-2018,000006892880813,ASDA SUPERSTORE 4987,5411,Catering costs - provisions,10.87,0.00,10.87
Regeneration and Local Services,Economic Development and Housing,030671,Business Space,Supplies and Services,328041,Clothing Uniforms and Laundry,11-Jan-2018,000006892880837,WWW.JOHNLEWIS.COM,5311,Clothing uniforms and laundry,378.00,63.00,315.00
Children and Young Peoples Services,Head of Early Help Assessment and Safeguarding,071404,Laurel Avenue Childrens Centre,Supplies and Services,312011,Newspapers Books and Periodicals,11-Jan-2018,000006892880869,HOME BARGAINS,5251,Books-school library,12.88,2.15,10.73
Regeneration and Local Services,Direct Services,021235,Catering - Wharton Park,Supplies and Services,324117,Provisions,11-Jan-2018,000006892880873,JR HOLLAND FOODSERVICE,5422,Catering costs - provisions,25.25,0.00,25.25
Regeneration and Local Services,Direct Services,021235,Catering - Wharton Park,Supplies and Services,324117,Provisions,11-Jan-2018,000006892880879,JR HOLLAND FOODSERVICE,5422,Catering costs - provisions,7.23,0.00,7.23
Regeneration and Local Services,Culture & Sport,011230,Operations Locality 2,Supplies and Services,304259,Equipment and Materials,11-Jan-2018,000006892880921,HOMEPLAN DIY,5211,Equipment-purchase and rental,5.90,0.00,5.90
Regeneration and Local Services,Culture & Sport,011230,Operations Locality 2,Supplies and Services,324117,Provisions,11-Jan-2018,000006892880923,LIDL UK,5411,Catering costs - provisions,49.95,0.00,49.95
Children and Young Peoples Services,Head of Early Help Assessment and Safeguarding,085801,CDYOS - Support,Supplies and Services,344033,Telephones,11-Jan-2018,000006892880949,EE TOP UP VESTA,4814,Telephones general-all costs,10.00,0.00,10.00
Resources,Corporate Finance & Commercial Services,069800,Corporate Procurement,Employees,040149,Recruitment Instruction and Training,11-Jan-2018,000006892880965,WWW.CIPS.ORG,8699,Training-all costs,103.02,17.17,85.85
Regeneration and Local Services,Culture & Sport,011060,Hardwick Park Catering,Supplies and Services,324117,Provisions,11-Jan-2018,000006898581985,BATLEYS PERTH,5300,Catering costs - provisions,33.90,5.65,28.25
Regeneration and Local Services,Culture & Sport,011060,Hardwick Park Catering,Supplies and Services,324117,Provisions,11-Jan-2018,000006898581985 - 1,BATLEYS PERTH,5300,Catering costs - provisions,116.89,,116.89
Regeneration and Local Services,Culture & Sport,011060,Hardwick Park Catering,Supplies and Services,324117,Provisions,11-Jan-2018,000006898581991,BATLEYS PERTH,5300,Catering costs - provisions,61.80,10.30,51.50
Regeneration and Local Services,Culture & Sport,011060,Hardwick Park Catering,Supplies and Services,324117,Provisions,11-Jan-2018,000006898581991 - 1,BATLEYS PERTH,5300,Catering costs - provisions,9.36,,9.36
Regeneration and Local Services,Economic Development and Housing,031576,B& B - Temp Accom,Supplies and Services,364320,Grants to Voluntary Organisations,11-Jan-2018,000006898582039,PREMIER INN,3811,Accommodation assistance,66.00,0.00,66.00
Children and Young Peoples Services,Head of Early Help Assessment and Safeguarding,088001,Peterlee Locality,Supplies and Services,312009,Newspapers Books and Periodicals,12-Jan-2018,000006892880655,"INCREDIBLE YEARS, INC.",5192,Newspapers books and periodicals,"4,437.56",0.00,4437.56
Children and Young Peoples Services,Head of Early Help Assessment and Safeguarding,088001,Peterlee Locality,Supplies and Services,312009,Newspapers Books and Periodicals,12-Jan-2018,000006892880681,"INCREDIBLE YEARS, INC.",5192,Newspapers books and periodicals,122.03,0.00,122.03
Regeneration and Local Services,Economic Development and Housing,031576,B& B - Temp Accom,Supplies and Services,364320,Grants to Voluntary Organisations,12-Jan-2018,000006898581635,KRD ASSOCIATES,7399,Accommodation assistance,500.00,0.00,500.00
Regeneration and Local Services,Economic Development and Housing,031576,B& B - Temp Accom,Supplies and Services,364320,Grants to Voluntary Organisations,12-Jan-2018,000006898581641,KRD ASSOCIATES,7399,Accommodation assistance,500.00,0.00,500.00
Regeneration and Local Services,Economic Development and Housing,031576,B& B - Temp Accom,Supplies and Services,364320,Grants to Voluntary Organisations,12-Jan-2018,000006898581643,KRD ASSOCIATES,7399,Accommodation assistance,500.00,0.00,500.00
Regeneration and Local Services,Direct Services,010383,C&G - South Street Cleansing,Supplies and Services,304221,Equipment and Materials,12-Jan-2018,000006898581669,WWW.ARCO.CO.UK,5085,Direct materials,24.08,0.00,24.08
Regeneration and Local Services,Economic Development and Housing,030737,Durham Works Flexible Fund,Transport,230031,Contract Hire,12-Jan-2018,000006898581761,ARRIVA NORTH EAST,4131,Pupils-transport to play fields etc,28.00,0.00,28.00
Regeneration and Local Services,Direct Services,021242,Catering - County Hall,Supplies and Services,324117,Provisions,12-Jan-2018,000006898581765,HOPWELLS LTD,5811,Catering costs - provisions,224.66,0.00,224.66
Regeneration and Local Services,Direct Services,021242,Catering - County Hall,Supplies and Services,324117,Provisions,12-Jan-2018,000006898581767,JR HOLLAND FOODSERVICE,5422,Catering costs - provisions,71.89,0.00,71.89
Regeneration and Local Services,Direct Services,021242,Catering - County Hall,Supplies and Services,324117,Provisions,12-Jan-2018,000006898581773,JR HOLLAND FOODSERVICE,5422,Catering costs - provisions,13.20,0.00,13.20
Regeneration and Local Services,Economic Development and Housing,030544,Rural Employability - Client Engagement,Transport,235057,Public Transport,12-Jan-2018,000006898581787,WWW.SIMPLYGO.COM,4131,Staff travelling,21.00,0.00,21.00
Regeneration and Local Services,Culture & Sport,054812,Gala Theatre - Catering etc,Supplies and Services,324117,Provisions,12-Jan-2018,000006898581797,JR HOLLAND FOODSERVICE,5422,Catering costs - provisions,14.74,0.00,14.74
Regeneration and Local Services,Direct Services,021242,Catering - County Hall,Supplies and Services,324117,Provisions,12-Jan-2018,000006898581825,ASDA STORES LTD 4313,5411,Catering costs - provisions,3.00,0.00,3.00
Children and Young Peoples Services,Head of Looked After Provision Permanence and Care Leavers,085333,Coxhoe Satelite Home,Supplies and Services,344033,Telephones,12-Jan-2018,000006898581859,E E BROADBAND,4812,Telephones general-all costs,35.00,0.00,35.00
Regeneration and Local Services,Economic Development and Housing,030737,Durham Works Flexible Fund,Supplies and Services,348037,Subsistence,12-Jan-2018,000006898581917,WWW.SIMPLYGO.COM,4131,Subsistence,27.00,0.00,27.00
Regeneration and Local Services,Economic Development and Housing,030737,Durham Works Flexible Fund,Supplies and Services,328041,Clothing Uniforms and Laundry,12-Jan-2018,000006898581919,NEW LOOK INTERNET,5621,Clothing uniforms and laundry,48.96,0.00,48.96
Regeneration and Local Services,Economic Development and Housing,030737,Durham Works Flexible Fund,Supplies and Services,328041,Clothing Uniforms and Laundry,12-Jan-2018,000006898581923,ASDA GEORGE COM LEEDS,5411,Clothing uniforms and laundry,22.95,0.00,22.95
Children and Young Peoples Services,Head of Looked After Provision Permanence and Care Leavers,085957,Secure Management,Supplies and Services,304403,Equipment and Materials,12-Jan-2018,000006898581945,Amazon UK Marketplace,5999,Other consumables,16.98,0.00,16.98
Children and Young Peoples Services,Head of Looked After Provision Permanence and Care Leavers,085957,Secure Management,Supplies and Services,312011,Newspapers Books and Periodicals,12-Jan-2018,000006898581949,AMAZON SVCS EU-UK AMAZ,5942,Books-school library,4.89,0.00,4.89
Children and Young Peoples Services,Head of Looked After Provision Permanence and Care Leavers,085957,Secure Management,Supplies and Services,312011,Newspapers Books and Periodicals,12-Jan-2018,000006898581953,Amazon EU,5969,Books-school library,17.23,0.00,17.23
Children and Young Peoples Services,Head of Looked After Provision Permanence and Care Leavers,085957,Secure Management,Supplies and Services,324117,Provisions,12-Jan-2018,000006898581957,TESCO STORES 6329,5411,Catering costs - provisions,59.39,0.00,59.39
Children and Young Peoples Services,Head of Looked After Provision Permanence and Care Leavers,085957,Secure Management,Supplies and Services,304259,Equipment and Materials,12-Jan-2018,000006898581961,M and M Direct Ltd,5941,Equipment-purchase and rental,-26.99,0.00,-26.99
Regeneration and Local Services,Culture & Sport,011060,Hardwick Park Catering,Supplies and Services,324117,Provisions,12-Jan-2018,000006898581979,HOPWELLS LTD,5811,Catering costs - provisions,42.90,7.15,35.75
Regeneration and Local Services,Culture & Sport,011060,Hardwick Park Catering,Supplies and Services,324117,Provisions,12-Jan-2018,000006898581979 - 1,HOPWELLS LTD,5811,Catering costs - provisions,103.90,,103.90
Regeneration and Local Services,Culture & Sport,011060,Hardwick Park Catering,Supplies and Services,324117,Provisions,12-Jan-2018,000006898581983,JR HOLLAND FOODSERVICE,5422,Catering costs - provisions,7.74,0.00,7.74
Regeneration and Local Services,Direct Services,021234,Catering - Locomotion,Supplies and Services,324117,Provisions,12-Jan-2018,000006898582019,HOPWELLS LTD,5811,Catering costs - provisions,36.60,6.10,30.50
Regeneration and Local Services,Direct Services,021234,Catering - Locomotion,Supplies and Services,324117,Provisions,12-Jan-2018,000006898582019 - 1,HOPWELLS LTD,5811,Catering costs - provisions,225.28,,225.28
Regeneration and Local Services,Economic Development and Housing,031576,B& B - Temp Accom,Supplies and Services,364320,Grants to Voluntary Organisations,12-Jan-2018,000006898582027,PREMIER INN,3811,Accommodation assistance,174.50,0.00,174.50
Regeneration and Local Services,Direct Services,010525,Catering - Green Lane,Supplies and Services,324117,Provisions,12-Jan-2018,000006898582043,JR HOLLAND FOODSERVICE,5422,Catering costs - provisions,48.49,0.00,48.49
Regeneration and Local Services,Direct Services,010525,Catering - Green Lane,Supplies and Services,324117,Provisions,12-Jan-2018,000006898582049,JR HOLLAND FOODSERVICE,5422,Catering costs - provisions,1.57,0.00,1.57
Regeneration and Local Services,Economic Development and Housing,030553,Europe Direct Scheme,Supplies and Services,384926,Miscellaneous Expenses,12-Jan-2018,000006898582077,VIRGINTRAINSEC 6535,4112,International visits,993.70,0.00,993.70
Regeneration and Local Services,Economic Development and Housing,030553,Europe Direct Scheme,Supplies and Services,384926,Miscellaneous Expenses,12-Jan-2018,000006898582081,EUROSTAR INT ECC,4112,International visits,"1,508.00",0.00,1508.00
Regeneration and Local Services,Economic Development and Housing,030553,Europe Direct Scheme,Supplies and Services,384926,Miscellaneous Expenses,12-Jan-2018,000006898582085,EUROSTAR INT ECC,4112,International visits,"1,397.50",0.00,1397.50
Resources,Legal & Democratic Services,067910,Democratic Representation,Supplies and Services,384926,Miscellaneous Expenses,12-Jan-2018,000006898582089,ROYAL DUTCH AIRLINES (KLM),3010,International visits,328.04,0.00,328.04
Resources,Legal & Democratic Services,067910,Democratic Representation,Supplies and Services,384926,Miscellaneous Expenses,12-Jan-2018,000006898582095,ROYAL DUTCH AIRLINES (KLM),3010,International visits,328.04,0.00,328.04
Children and Young Peoples Services,Head of Looked After Provision Permanence and Care Leavers,085332,Middlestone Moor CU,Supplies and Services,304259,Equipment and Materials,12-Jan-2018,000006898582097,JD SPORTS PLC,5941,Equipment-purchase and rental,95.00,0.00,95.00
Children and Young Peoples Services,Head of Looked After Provision Permanence and Care Leavers,085334,West Rainton Satelite Home,Supplies and Services,328041,Clothing Uniforms and Laundry,12-Jan-2018,000006898582125,WWW.ARGOS.CO.UK,5310,Clothing uniforms and laundry,252.93,0.00,252.93
Regeneration and Local Services,Direct Services,010367,C&G - South Grounds Maintenance,Supplies and Services,384999,Miscellaneous Expenses,12-Jan-2018,000006898582153,WWW.GUSTHARTS.COM,5046,Other expenses,439.20,73.20,366.00
Regeneration and Local Services,Economic Development and Housing,031576,B& B - Temp Accom,Supplies and Services,352001,Conference Expenses,12-Jan-2018,000006898582203,TRAVELODGE,3615,Conferencesseminars fees etc,136.00,22.67,113.33
Regeneration and Local Services,Economic Development and Housing,031576,B& B - Temp Accom,Supplies and Services,352001,Conference Expenses,12-Jan-2018,000006898582207,TRAVELODGE,3615,Conferencesseminars fees etc,164.00,27.33,136.67
Regeneration and Local Services,Economic Development and Housing,031576,B& B - Temp Accom,Employees,040149,Recruitment Instruction and Training,12-Jan-2018,000006898582209,PREMIER INN,3811,Training-all costs,174.50,29.08,145.42
Regeneration and Local Services,Spatial Policy Planning Assets & Environment,031222,North Pennines Allen Valleys Landscape Partnership,Supplies and Services,348037,Subsistence,12-Jan-2018,000006898582215,THE OLD VILLAGE BAKERY,5812,Subsistence,7.50,0.00,7.50
Regeneration and Local Services,Direct Services,021324,Catering - Meadowfield,Supplies and Services,324117,Provisions,12-Jan-2018,000006898582293,JR HOLLAND FOODSERVICE,5422,Catering costs - provisions,43.16,0.00,43.16
Regeneration and Local Services,Direct Services,021324,Catering - Meadowfield,Supplies and Services,324117,Provisions,12-Jan-2018,000006898582299,JR HOLLAND FOODSERVICE,5422,Catering costs - provisions,9.90,0.00,9.90
Regeneration and Local Services,Direct Services,021324,Catering - Meadowfield,Supplies and Services,324117,Provisions,12-Jan-2018,000006898582301,JR HOLLAND FOODSERVICE,5422,Catering costs - provisions,-16.36,0.00,-16.36
Regeneration and Local Services,Economic Development and Housing,030671,Business Space,Supplies and Services,312011,Newspapers Books and Periodicals,12-Jan-2018,000006898582407,AMAZON SVCS EU-UK AMAZ,5942,Books-school library,15.16,0.00,15.16
Resources,Legal & Democratic Services,069310,Head of Legal and Democratic Services,Supplies and Services,384999,Miscellaneous Expenses,12-Jan-2018,000006898582469,POPLAR TREE G CENT,5261,Other expenses,36.00,0.00,36.00
Adult and Health Services,Head of Adults,055306,Spennymoor Pathways,Supplies and Services,304259,Equipment and Materials,12-Jan-2018,000006898582487,WILKO RETAIL LIMIT,5722,Equipment-purchase and rental,8.00,0.00,8.00
Regeneration and Local Services,Economic Development and Housing,030737,Durham Works Flexible Fund,Supplies and Services,304259,Equipment and Materials,12-Jan-2018,000006898582505,TOMMY WARDLE LTD,5211,Equipment-purchase and rental,239.77,39.96,199.81
Children and Young Peoples Services,Head of Looked After Provision Permanence and Care Leavers,085363,LAC & Permanence Team 3,Supplies and Services,304259,Equipment and Materials,12-Jan-2018,000006898582509,HM PASSPORT OFFICE,9399,Equipment-purchase and rental,46.00,0.00,46.00
Regeneration and Local Services,Culture & Sport,011230,Operations Locality 2,Supplies and Services,328041,Clothing Uniforms and Laundry,12-Jan-2018,000006898582521,ARGOS LTD,5310,Clothing uniforms and laundry,59.99,0.00,59.99
Children and Young Peoples Services,Head of Early Help Assessment and Safeguarding,085801,CDYOS - Support,Supplies and Services,352001,Conference Expenses,12-Jan-2018,000006898582535,TRAVELODGE,3615,Conferencesseminars fees etc,132.00,22.00,110.00
Children and Young Peoples Services,Head of Early Help Assessment and Safeguarding,085801,CDYOS - Support,Supplies and Services,352001,Conference Expenses,12-Jan-2018,000006898582535 - 1,TRAVELODGE,3615,Conferencesseminars fees etc,15.75,,15.75
Regeneration and Local Services,Direct Services,021242,Catering - County Hall,Supplies and Services,324117,Provisions,12-Jan-2018,000006905081795,BATLEYS PERTH,5300,Catering costs - provisions,307.44,51.24,256.20
Regeneration and Local Services,Direct Services,021242,Catering - County Hall,Supplies and Services,324117,Provisions,12-Jan-2018,000006905081795 - 1,BATLEYS PERTH,5300,Catering costs - provisions,145.34,,145.34
Regeneration and Local Services,Culture & Sport,011060,Hardwick Park Catering,Supplies and Services,324117,Provisions,12-Jan-2018,000006905082007,BATLEYS PERTH,5300,Catering costs - provisions,161.58,26.93,134.65
Regeneration and Local Services,Culture & Sport,011060,Hardwick Park Catering,Supplies and Services,324117,Provisions,12-Jan-2018,000006905082007 - 1,BATLEYS PERTH,5300,Catering costs - provisions,120.21,,120.21
Regeneration and Local Services,Direct Services,010525,Catering - Green Lane,Supplies and Services,324117,Provisions,12-Jan-2018,000006905082075,BATLEYS PERTH,5300,Catering costs - provisions,63.12,10.52,52.60
Regeneration and Local Services,Direct Services,010525,Catering - Green Lane,Supplies and Services,324117,Provisions,12-Jan-2018,000006905082075 - 1,BATLEYS PERTH,5300,Catering costs - provisions,72.34,,72.34
Regeneration and Local Services,Direct Services,010525,Catering - Green Lane,Supplies and Services,324117,Provisions,12-Jan-2018,000006905082079,BATLEYS PERTH,5300,Catering costs - provisions,7.10,0.00,7.10
Adult and Health Services,Head of Adults,055643,Hawthorn House LD Respite Unit,Supplies and Services,324117,Provisions,12-Jan-2018,000006970933593,BATLEYS PERTH,5300,Catering costs - provisions,22.86,3.81,19.05
Adult and Health Services,Head of Adults,055643,Hawthorn House LD Respite Unit,Supplies and Services,324117,Provisions,12-Jan-2018,000006970933593 - 1,BATLEYS PERTH,5300,Catering costs - provisions,52.05,,52.05
Adult and Health Services,Head of Adults,055643,Hawthorn House LD Respite Unit,Supplies and Services,324117,Provisions,12-Jan-2018,000006970933597,BATLEYS PERTH,5300,Catering costs - provisions,15.20,0.00,15.20
Children and Young Peoples Services,Head of Looked After Provision Permanence and Care Leavers,085342,9 Cedar Drive Aycliffe,Supplies and Services,328041,Clothing Uniforms and Laundry,13-Jan-2018,000006898581687,PRIMARK,5651,Clothing uniforms and laundry,14.90,0.00,14.90
Children and Young Peoples Services,Head of Looked After Provision Permanence and Care Leavers,085342,9 Cedar Drive Aycliffe,Supplies and Services,348037,Subsistence,13-Jan-2018,000006898581689,MCDONALDS,5812,Subsistence,7.58,0.00,7.58
Children and Young Peoples Services,Head of Looked After Provision Permanence and Care Leavers,085342,9 Cedar Drive Aycliffe,Supplies and Services,348037,Subsistence,13-Jan-2018,000006898581693,MCDONALDS,5812,Subsistence,11.75,0.00,11.75
Children and Young Peoples Services,Head of Looked After Provision Permanence and Care Leavers,085342,9 Cedar Drive Aycliffe,Supplies and Services,332047,Printing Stationery and Gen Off Exps,13-Jan-2018,000006898581697,VUE BSL SITE,7832,Stationery,9.98,0.00,9.98
Children and Young Peoples Services,Head of Looked After Provision Permanence and Care Leavers,085957,Secure Management,Supplies and Services,324117,Provisions,13-Jan-2018,000006898581965,TESCO STORES 6329,5411,Catering costs - provisions,81.89,0.00,81.89
Regeneration and Local Services,Culture & Sport,054815,Gala Theatre Stage School,Supplies and Services,312011,Newspapers Books and Periodicals,13-Jan-2018,000006898581997,Amazon UK Marketplace,5942,Books-school library,37.51,0.00,37.51
Children and Young Peoples Services,Head of Looked After Provision Permanence and Care Leavers,085352,Tow Law CU,Supplies and Services,324117,Provisions,13-Jan-2018,000006898582059,TESCO STORES 2371,5411,Catering costs - provisions,209.00,0.00,209.00
Children and Young Peoples Services,Head of Looked After Provision Permanence and Care Leavers,085333,Coxhoe Satelite Home,Supplies and Services,324117,Provisions,13-Jan-2018,000006898582135,ASDA SUPERSTORE 4987,5411,Catering costs - provisions,50.75,0.00,50.75
Children and Young Peoples Services,Head of Looked After Provision Permanence and Care Leavers,085333,Coxhoe Satelite Home,Supplies and Services,324117,Provisions,13-Jan-2018,000006898582139,ASDA SUPERSTORE 4987,5411,Catering costs - provisions,12.40,0.00,12.40
Adult and Health Services,Head of Adults,053816,Chester View Extra Care,Supplies and Services,324117,Provisions,13-Jan-2018,000006898582173,TESCO STORES 2278,5411,Catering costs - provisions,15.00,2.50,12.50
Adult and Health Services,Head of Adults,053816,Chester View Extra Care,Supplies and Services,312009,Newspapers Books and Periodicals,13-Jan-2018,000006898582175,WH SMITH,5994,Newspapers books and periodicals,31.97,5.33,26.64
Children and Young Peoples Services,Head of Looked After Provision Permanence and Care Leavers,085342,9 Cedar Drive Aycliffe,Supplies and Services,324117,Provisions,14-Jan-2018,000006898581701,TESCO STORES 2916,5411,Catering costs - provisions,8.60,0.00,8.60
Children and Young Peoples Services,Head of Looked After Provision Permanence and Care Leavers,085342,9 Cedar Drive Aycliffe,Supplies and Services,324117,Provisions,14-Jan-2018,000006898581705,TESCO STORES 2916,5411,Catering costs - provisions,-5.00,0.00,-5.00
Regeneration and Local Services,Economic Development and Housing,030699,Business Growth and Innovation General,Supplies and Services,342033,Computers and Communications,14-Jan-2018,000006898581711,WATCHFULPAYPAL,7379,Computer hardware,14.76,0.00,14.76
Children and Young Peoples Services,Head of Education,071732,Dean Bank Childcare,Supplies and Services,312011,Newspapers Books and Periodicals,14-Jan-2018,000006898581885,Amazon EU,5969,Books-school library,8.99,0.00,8.99
Regeneration and Local Services,Culture & Sport,054815,Gala Theatre Stage School,Supplies and Services,312011,Newspapers Books and Periodicals,14-Jan-2018,000006898581999,Amazon UK Marketplace,5942,Books-school library,22.99,0.00,22.99
Children and Young Peoples Services,Head of Looked After Provision Permanence and Care Leavers,085334,West Rainton Satelite Home,Supplies and Services,308011,Furniture,14-Jan-2018,000006898582127,WWW.BEDS.CO.UK,5712,Furniture repair and replacement,270.00,0.00,270.00
Resources,Resources Management,069000,Resources Management,Supplies and Services,324117,Provisions,14-Jan-2018,000006898582151,CO-OP GROUP 310016,5411,Catering costs - provisions,15.00,0.00,15.00
Regeneration and Local Services,Culture & Sport,026591,Hardwick Park,Supplies and Services,312009,Newspapers Books and Periodicals,14-Jan-2018,000006898582167,AMAZON EU AMAZON.CO.UK,5999,Newspapers books and periodicals,28.33,0.00,28.33
Regeneration and Local Services,Culture & Sport,026591,Hardwick Park,Supplies and Services,312009,Newspapers Books and Periodicals,14-Jan-2018,000006898582169,AMAZON EU AMAZON.CO.UK,5999,Newspapers books and periodicals,8.48,0.00,8.48
Adult and Health Services,Commissioning inc Supporting People,052968,Service Support Various,Supplies and Services,372009,Subscriptions,14-Jan-2018,000006898582475,SurveyMonkey,7372,Subscriptions,336.00,0.00,336.00
Regeneration and Local Services,Economic Development and Housing,030699,Business Growth and Innovation General,Supplies and Services,342033,Computers and Communications,15-Jan-2018,000006898581715,WATCHFULPAYPAL,7379,Computer hardware,0.41,0.00,0.41
Children and Young Peoples Services,Head of Education,071801,Selby Cottage Childcare Centre,Supplies and Services,324117,Provisions,15-Jan-2018,000006905081653,ASDA HOME SHOPPING,5411,Catering costs - provisions,5.00,0.00,5.00
Children and Young Peoples Services,Head of Education,071801,Selby Cottage Childcare Centre,Supplies and Services,324117,Provisions,15-Jan-2018,000006905081657,ASDA HOME SHOPPING,5411,Catering costs - provisions,109.13,0.00,109.13
Children and Young Peoples Services,Head of Education,078100,Curric and Professional Development,Supplies and Services,344033,Telephones,15-Jan-2018,000006905081661,AMAZON SVCS EU-UK AMAZ,5942,Telephones general-all costs,3.65,0.61,3.04
Children and Young Peoples Services,Head of Looked After Provision Permanence and Care Leavers,085342,9 Cedar Drive Aycliffe,Supplies and Services,324117,Provisions,15-Jan-2018,000006905081705,TESCO STORES 2916,5411,Catering costs - provisions,177.19,0.00,177.19
Children and Young Peoples Services,Head of Looked After Provision Permanence and Care Leavers,085342,9 Cedar Drive Aycliffe,Supplies and Services,324117,Provisions,15-Jan-2018,000006905081713,TESCO STORES 2916,5411,Catering costs - provisions,7.99,0.00,7.99
Regeneration and Local Services,Direct Services,021242,Catering - County Hall,Supplies and Services,324117,Provisions,15-Jan-2018,000006905081785,JR HOLLAND FOODSERVICE,5422,Catering costs - provisions,80.79,0.00,80.79
Regeneration and Local Services,Direct Services,021242,Catering - County Hall,Supplies and Services,324117,Provisions,15-Jan-2018,000006905081791,JR HOLLAND FOODSERVICE,5422,Catering costs - provisions,13.54,0.00,13.54
Regeneration and Local Services,Economic Development and Housing,031576,B& B - Temp Accom,Supplies and Services,364320,Grants to Voluntary Organisations,15-Jan-2018,000006905081875,TRAVELODGE,3615,Accommodation assistance,39.00,6.50,32.50
Regeneration and Local Services,Economic Development and Housing,031576,B& B - Temp Accom,Supplies and Services,364320,Grants to Voluntary Organisations,15-Jan-2018,000006905081879,TRAVELODGE,3615,Accommodation assistance,39.00,6.50,32.50
Regeneration and Local Services,Economic Development and Housing,031576,B& B - Temp Accom,Supplies and Services,364320,Grants to Voluntary Organisations,15-Jan-2018,000006905081883,TRAVELODGE,3615,Accommodation assistance,42.00,7.00,35.00
Children and Young Peoples Services,Head of Education,071732,Dean Bank Childcare,Supplies and Services,324117,Provisions,15-Jan-2018,000006905081911,ASDA HOME SHOPPING,5411,Catering costs - provisions,44.93,0.00,44.93
Children and Young Peoples Services,Head of Education,071732,Dean Bank Childcare,Supplies and Services,324117,Provisions,15-Jan-2018,000006905081917,ASDA HOME SHOPPING,5411,Catering costs - provisions,47.74,0.00,47.74
Children and Young Peoples Services,Head of Education,071732,Dean Bank Childcare,Supplies and Services,324117,Provisions,15-Jan-2018,000006905081921,ASDA HOME SHOPPING,5411,Catering costs - provisions,-1.00,0.00,-1.00
Regeneration and Local Services,Economic Development and Housing,030737,Durham Works Flexible Fund,Transport,235057,Public Transport,15-Jan-2018,000006905081965,WWW.SIMPLYGO.COM,4131,Staff travelling,27.00,0.00,27.00
Regeneration and Local Services,Economic Development and Housing,030737,Durham Works Flexible Fund,Transport,235057,Public Transport,15-Jan-2018,000006905081969,WWW.SIMPLYGO.COM,4131,Staff travelling,6.50,0.00,6.50
Children and Young Peoples Services,Head of Looked After Provision Permanence and Care Leavers,085957,Secure Management,Supplies and Services,324117,Provisions,15-Jan-2018,000006905081981,TESCO STORES 6329,5411,Catering costs - provisions,234.29,0.00,234.29
Regeneration and Local Services,Culture & Sport,010919,Countryside Site Management,Supplies and Services,304259,Equipment and Materials,15-Jan-2018,000006905081993,S&A BUILDERS MERCHANTS,5039,Equipment-purchase and rental,34.40,5.73,28.67
Resources,Digital and Customer Services,065335,School Services - Implementations,Supplies and Services,304639,Equipment and Materials,15-Jan-2018,000006905082037,AMZ replacebase,4816,Technicians-supplies,36.76,0.00,36.76
Children and Young Peoples Services,Head of Looked After Provision Permanence and Care Leavers,085332,Middlestone Moor CU,Supplies and Services,324117,Provisions,15-Jan-2018,000006905082059,ALDI 74 774,5411,Catering costs - provisions,10.20,0.00,10.20
Regeneration and Local Services,Direct Services,021234,Catering - Locomotion,Supplies and Services,324117,Provisions,15-Jan-2018,000006905082063,JR HOLLAND FOODSERVICE,5422,Catering costs - provisions,102.31,0.00,102.31
Regeneration and Local Services,Economic Development and Housing,030749,Employability - Youth Contract,Transport,235057,Public Transport,15-Jan-2018,000006905082143,ARRIVA NORTH EAST,4131,Staff travelling,6.50,0.00,6.50
Regeneration and Local Services,Economic Development and Housing,030749,Employability - Youth Contract,Transport,235057,Public Transport,15-Jan-2018,000006905082149,ARRIVA NORTH EAST,4131,Staff travelling,3.80,0.00,3.80
Children and Young Peoples Services,Head of Looked After Provision Permanence and Care Leavers,085333,Coxhoe Satelite Home,Supplies and Services,324117,Provisions,15-Jan-2018,000006905082155,TESCO STORES 2371,5411,Catering costs - provisions,88.21,0.00,88.21
Children and Young Peoples Services,Head of Looked After Provision Permanence and Care Leavers,085333,Coxhoe Satelite Home,Supplies and Services,324117,Provisions,15-Jan-2018,000006905082159,TESCO STORES 2371,5411,Catering costs - provisions,15.25,0.00,15.25
Regeneration and Local Services,Direct Services,010301,C&G - North Grounds Maintenance,Supplies and Services,328041,Clothing Uniforms and Laundry,15-Jan-2018,000006905082255,THOMAS OWEN & SONS /N/,5611,Clothing uniforms and laundry,141.79,0.00,141.79
Regeneration and Local Services,Economic Development and Housing,030716,STEPHANIE,Supplies and Services,352001,Conference Expenses,15-Jan-2018,000006905082271,HOTEL UNIVERSALE,3625,Conferencesseminars fees etc,260.11,0.00,260.11
Regeneration and Local Services,Culture & Sport,054235,Bishop Auckland Town Hall Cafe,Supplies and Services,324117,Provisions,15-Jan-2018,000006905082289,JR HOLLAND FOODSERVICE,5422,Catering costs - provisions,30.83,0.00,30.83
Regeneration and Local Services,Direct Services,021324,Catering - Meadowfield,Supplies and Services,324117,Provisions,15-Jan-2018,000006905082297,JR HOLLAND FOODSERVICE,5422,Catering costs - provisions,16.36,0.00,16.36
Regeneration and Local Services,Direct Services,021324,Catering - Meadowfield,Supplies and Services,324117,Provisions,15-Jan-2018,000006905082301,JR HOLLAND FOODSERVICE,5422,Catering costs - provisions,13.15,0.00,13.15
Children and Young Peoples Services,Head of Looked After Provision Permanence and Care Leavers,085331,New Lea Childrens Home,Supplies and Services,304259,Equipment and Materials,15-Jan-2018,000006905082473,JD SPORTS INTERNET,5941,Equipment-purchase and rental,70.00,0.00,70.00
Adult and Health Services,Head of Adults,055807,Newton Aycliffe Pathways,Supplies and Services,340001,Postages,15-Jan-2018,000006905082479,POST OFFICE COUNTER,9402,Postages,1.98,0.00,1.98
Regeneration and Local Services,Economic Development and Housing,030737,Durham Works Flexible Fund,Transport,235057,Public Transport,15-Jan-2018,000006905082511,WWW.SIMPLYGO.COM,4131,Staff travelling,92.00,0.00,92.00
Children and Young Peoples Services,Head of Early Help Assessment and Safeguarding,088014,Seaham 5 - 19,Supplies and Services,304259,Equipment and Materials,15-Jan-2018,000006905082591,SUNDERLAND CC,9399,Equipment-purchase and rental,42.00,0.00,42.00
Regeneration and Local Services,Culture & Sport,054812,Gala Theatre - Catering etc,Supplies and Services,324117,Provisions,15-Jan-2018,000006908117773,BATLEYS PERTH,5300,Catering costs - provisions,34.56,5.76,28.80
Regeneration and Local Services,Culture & Sport,054812,Gala Theatre - Catering etc,Supplies and Services,324117,Provisions,15-Jan-2018,000006908117773 - 1,BATLEYS PERTH,5300,Catering costs - provisions,222.48,,222.48
Regeneration and Local Services,Economic Development and Housing,031576,B& B - Temp Accom,Supplies and Services,364320,Grants to Voluntary Organisations,15-Jan-2018,000006908117861,PREMIER INN,3811,Accommodation assistance,76.00,12.67,63.33
Regeneration and Local Services,Economic Development and Housing,031576,B& B - Temp Accom,Supplies and Services,364320,Grants to Voluntary Organisations,15-Jan-2018,000006908117867,PREMIER INN,3811,Accommodation assistance,73.00,12.17,60.83
Regeneration and Local Services,Direct Services,021235,Catering - Wharton Park,Supplies and Services,324117,Provisions,15-Jan-2018,000006908118637,BATLEYS PERTH,5300,Catering costs - provisions,59.34,9.89,49.45
Regeneration and Local Services,Direct Services,021235,Catering - Wharton Park,Supplies and Services,324117,Provisions,15-Jan-2018,000006908118637 - 1,BATLEYS PERTH,5300,Catering costs - provisions,24.03,,24.03
Regeneration and Local Services,Economic Development and Housing,030716,STEPHANIE,Supplies and Services,352001,Conference Expenses,16-Jan-2018,000006905082273,HOTEL UNIVERSALE,3625,Conferencesseminars fees etc,7.15,0.00,7.15
Children and Young Peoples Services,Head of Education,071801,Selby Cottage Childcare Centre,Supplies and Services,324117,Provisions,16-Jan-2018,000006908117633,ALDI 32 774,5411,Catering costs - provisions,7.49,0.00,7.49
Adult and Health Services,Head of Adults,051625,Intermediate Care Plus - South,Supplies and Services,340001,Postages,16-Jan-2018,000006908117647,ROYAL MAIL ONLINE SHOP,9402,Postages,112.00,0.00,112.00
Children and Young Peoples Services,Head of Looked After Provision Permanence and Care Leavers,085342,9 Cedar Drive Aycliffe,Supplies and Services,324117,Provisions,16-Jan-2018,000006908117675,GEORGE BOLAM (FOODS) L,5499,Catering costs - provisions,111.99,0.00,111.99
Dedicated Schools Grant,Dedicated Schools Grant,079052,Part Sighted-Belmont Comp,Supplies and Services,312011,Newspapers Books and Periodicals,16-Jan-2018,000006908117681,Amazon UK Marketplace,5942,Books-school library,2.95,0.00,2.95
Dedicated Schools Grant,Dedicated Schools Grant,079052,Part Sighted-Belmont Comp,Supplies and Services,312011,Newspapers Books and Periodicals,16-Jan-2018,000006908117683,Amazon UK Marketplace,5942,Books-school library,11.05,0.00,11.05
Dedicated Schools Grant,Dedicated Schools Grant,079052,Part Sighted-Belmont Comp,Supplies and Services,312011,Newspapers Books and Periodicals,16-Jan-2018,000006908117687,Amazon UK Marketplace,5942,Books-school library,53.93,0.00,53.93
Regeneration and Local Services,Direct Services,021242,Catering - County Hall,Supplies and Services,324117,Provisions,16-Jan-2018,000006908117739,HOPWELLS LTD,5811,Catering costs - provisions,142.75,0.00,142.75
Regeneration and Local Services,Direct Services,021242,Catering - County Hall,Supplies and Services,324117,Provisions,16-Jan-2018,000006908117741,FREEMAN CATERING BUTCH,5422,Catering costs - provisions,188.49,0.00,188.49
Regeneration and Local Services,Direct Services,021242,Catering - County Hall,Supplies and Services,324117,Provisions,16-Jan-2018,000006908117745,FREEMAN CATERING BUTCH,5422,Catering costs - provisions,68.39,0.00,68.39
Regeneration and Local Services,Direct Services,021242,Catering - County Hall,Supplies and Services,324117,Provisions,16-Jan-2018,000006908117749,JR HOLLAND FOODSERVICE,5422,Catering costs - provisions,18.18,0.00,18.18
Regeneration and Local Services,Direct Services,021242,Catering - County Hall,Supplies and Services,324117,Provisions,16-Jan-2018,000006908117751,JR HOLLAND FOODSERVICE,5422,Catering costs - provisions,6.60,0.00,6.60
Regeneration and Local Services,Direct Services,021242,Catering - County Hall,Supplies and Services,324117,Provisions,16-Jan-2018,000006908117755,JR HOLLAND FOODSERVICE,5422,Catering costs - provisions,3.40,0.00,3.40
Regeneration and Local Services,Culture & Sport,054812,Gala Theatre - Catering etc,Supplies and Services,324117,Provisions,16-Jan-2018,000006908117763,FREEMAN CATERING BUTCH,5422,Catering costs - provisions,62.49,0.00,62.49
Regeneration and Local Services,Culture & Sport,054812,Gala Theatre - Catering etc,Supplies and Services,324117,Provisions,16-Jan-2018,000006908117767,FREEMAN CATERING BUTCH,5422,Catering costs - provisions,24.30,0.00,24.30
Regeneration and Local Services,Culture & Sport,054812,Gala Theatre - Catering etc,Supplies and Services,324117,Provisions,16-Jan-2018,000006908117769,JR HOLLAND FOODSERVICE,5422,Catering costs - provisions,30.34,0.00,30.34
Regeneration and Local Services,Economic Development and Housing,030737,Durham Works Flexible Fund,Supplies and Services,348037,Subsistence,16-Jan-2018,000006908117937,WWW.SIMPLYGO.COM,4131,Subsistence,5.10,0.00,5.10
Regeneration and Local Services,Economic Development and Housing,030737,Durham Works Flexible Fund,Supplies and Services,328041,Clothing Uniforms and Laundry,16-Jan-2018,000006908117943,NEXT 0511 WASHINGTON,5651,Clothing uniforms and laundry,28.05,0.00,28.05
Regeneration and Local Services,Economic Development and Housing,030737,Durham Works Flexible Fund,Supplies and Services,344033,Telephones,16-Jan-2018,000006908117951,CARPHONE WAREHOUSE,4812,Telephones general-all costs,25.02,4.17,20.85
Regeneration and Local Services,Economic Development and Housing,030737,Durham Works Flexible Fund,Supplies and Services,344033,Telephones,16-Jan-2018,000006908117951 - 1,CARPHONE WAREHOUSE,4812,Telephones general-all costs,9.97,,9.97
Regeneration and Local Services,Economic Development and Housing,030737,Durham Works Flexible Fund,Supplies and Services,328041,Clothing Uniforms and Laundry,16-Jan-2018,000006908117955,NEW LOOK 1952,5621,Clothing uniforms and laundry,15.99,0.00,15.99
Regeneration and Local Services,Economic Development and Housing,030737,Durham Works Flexible Fund,Supplies and Services,328041,Clothing Uniforms and Laundry,16-Jan-2018,000006908117959,OUTFIT,5691,Clothing uniforms and laundry,38.50,0.00,38.50
Children and Young Peoples Services,Head of Early Help Assessment and Safeguarding,074000,TTF-Attachment and Results,Supplies and Services,308011,Furniture,16-Jan-2018,000006908117979,MAGUIRE TA LTD,5713,Furniture repair and replacement,150.00,0.00,150.00
Children and Young Peoples Services,Head of Looked After Provision Permanence and Care Leavers,085957,Secure Management,Supplies and Services,304259,Equipment and Materials,16-Jan-2018,000006908117987,M and M Direct Ltd,5941,Equipment-purchase and rental,24.99,0.00,24.99
Children and Young Peoples Services,Head of Looked After Provision Permanence and Care Leavers,085957,Secure Management,Supplies and Services,328041,Clothing Uniforms and Laundry,16-Jan-2018,000006908117995,21THREE CLOTHING COMPA,5691,Clothing uniforms and laundry,15.99,0.00,15.99
Children and Young Peoples Services,Head of Looked After Provision Permanence and Care Leavers,085957,Secure Management,Supplies and Services,328041,Clothing Uniforms and Laundry,16-Jan-2018,000006908117999,PAYPAL EL VELVET,5611,Clothing uniforms and laundry,162.00,0.00,162.00
Children and Young Peoples Services,Head of Looked After Provision Permanence and Care Leavers,085957,Secure Management,Supplies and Services,312011,Newspapers Books and Periodicals,16-Jan-2018,000006908118003,Amazon UK Marketplace,5942,Books-school library,13.27,0.00,13.27
Children and Young Peoples Services,Head of Looked After Provision Permanence and Care Leavers,085957,Secure Management,Supplies and Services,328041,Clothing Uniforms and Laundry,16-Jan-2018,000006908118007,MISSPAP,5691,Clothing uniforms and laundry,11.99,0.00,11.99
Children and Young Peoples Services,Head of Looked After Provision Permanence and Care Leavers,085957,Secure Management,Supplies and Services,324117,Provisions,16-Jan-2018,000006908118011,TESCO STORES 6329,5411,Catering costs - provisions,86.12,0.00,86.12
Children and Young Peoples Services,Head of Looked After Provision Permanence and Care Leavers,085957,Secure Management,Supplies and Services,342033,Computers and Communications,16-Jan-2018,000006908118015,VERY.CO.UK,5964,Computer hardware,97.98,0.00,97.98
Children and Young Peoples Services,Head of Early Help Assessment and Safeguarding,071746,Newton Aycliffe Childrens Centre,Supplies and Services,324117,Provisions,16-Jan-2018,000006908118021,TESCO STORES 2916,5411,Catering costs - provisions,7.05,0.00,7.05
Regeneration and Local Services,Direct Services,010301,C&G - North Grounds Maintenance,Supplies and Services,304221,Equipment and Materials,16-Jan-2018,000006908118031,ARCO LTD,5085,Direct materials,127.50,0.00,127.50
Regeneration and Local Services,Spatial Policy Planning Assets & Environment,031222,North Pennines Allen Valleys Landscape Partnership,Supplies and Services,324117,Provisions,16-Jan-2018,000006908118039,ALLENDALE CO-OPERATIVE,5499,Catering costs - provisions,7.76,0.00,7.76
Regeneration and Local Services,Culture & Sport,011060,Hardwick Park Catering,Supplies and Services,324117,Provisions,16-Jan-2018,000006908118045,FREEMAN CATERING BUTCH,5422,Catering costs - provisions,27.06,0.00,27.06
Regeneration and Local Services,Culture & Sport,011060,Hardwick Park Catering,Supplies and Services,324117,Provisions,16-Jan-2018,000006908118047,FREEMAN CATERING BUTCH,5422,Catering costs - provisions,26.15,0.00,26.15
Regeneration and Local Services,Culture & Sport,011060,Hardwick Park Catering,Supplies and Services,324117,Provisions,16-Jan-2018,000006908118051,JR HOLLAND FOODSERVICE,5422,Catering costs - provisions,31.81,0.00,31.81
Regeneration and Local Services,Culture & Sport,011060,Hardwick Park Catering,Supplies and Services,324117,Provisions,16-Jan-2018,000006908118057,JR HOLLAND FOODSERVICE,5422,Catering costs - provisions,-5.94,0.00,-5.94
Resources,Digital and Customer Services,065335,School Services - Implementations,Supplies and Services,304639,Equipment and Materials,16-Jan-2018,000006908118075,Amazon UK Marketplace,5942,Technicians-supplies,33.18,0.00,33.18
Children and Young Peoples Services,Head of Looked After Provision Permanence and Care Leavers,085332,Middlestone Moor CU,Supplies and Services,324117,Provisions,16-Jan-2018,000006908118093,TESCO STORES 2371,5411,Catering costs - provisions,134.02,0.00,134.02
Regeneration and Local Services,Direct Services,021234,Catering - Locomotion,Supplies and Services,324117,Provisions,16-Jan-2018,000006908118099,HOPWELLS LTD,5811,Catering costs - provisions,132.13,0.00,132.13
Regeneration and Local Services,Direct Services,021234,Catering - Locomotion,Supplies and Services,324117,Provisions,16-Jan-2018,000006908118107,HOPWELLS LTD,5811,Catering costs - provisions,51.36,0.00,51.36
Regeneration and Local Services,Direct Services,021234,Catering - Locomotion,Supplies and Services,324117,Provisions,16-Jan-2018,000006908118109,FREEMAN CATERING BUTCH,5422,Catering costs - provisions,125.84,0.00,125.84
Regeneration and Local Services,Direct Services,021234,Catering - Locomotion,Supplies and Services,324117,Provisions,16-Jan-2018,000006908118115,HOPWELLS LTD,5811,Catering costs - provisions,-51.36,0.00,-51.36
Regeneration and Local Services,Direct Services,021234,Catering - Locomotion,Supplies and Services,324117,Provisions,16-Jan-2018,000006908118121,JR HOLLAND FOODSERVICE,5422,Catering costs - provisions,-2.38,0.00,-2.38
Regeneration and Local Services,Economic Development and Housing,030714,Salvus House,Supplies and Services,324117,Provisions,16-Jan-2018,000006908118137,CO-OP GROUP FOOD,5411,Catering costs - provisions,3.54,0.00,3.54
Regeneration and Local Services,Direct Services,010525,Catering - Green Lane,Supplies and Services,324117,Provisions,16-Jan-2018,000006908118151,HOPWELLS LTD,5811,Catering costs - provisions,50.21,0.00,50.21
Regeneration and Local Services,Direct Services,010525,Catering - Green Lane,Supplies and Services,324117,Provisions,16-Jan-2018,000006908118155,FREEMAN CATERING BUTCH,5422,Catering costs - provisions,39.80,0.00,39.80
Children and Young Peoples Services,Head of Looked After Provision Permanence and Care Leavers,085334,West Rainton Satelite Home,Supplies and Services,324117,Provisions,16-Jan-2018,000006908118189,TESCO STORES 2371,5411,Catering costs - provisions,179.98,0.00,179.98
Regeneration and Local Services,Direct Services,021324,Catering - Meadowfield,Supplies and Services,324117,Provisions,16-Jan-2018,000006908118415,HOPWELLS LTD,5811,Catering costs - provisions,53.60,0.00,53.60
Regeneration and Local Services,Direct Services,021324,Catering - Meadowfield,Supplies and Services,324117,Provisions,16-Jan-2018,000006908118421,FREEMAN CATERING BUTCH,5422,Catering costs - provisions,68.87,0.00,68.87
Regeneration and Local Services,Direct Services,021324,Catering - Meadowfield,Supplies and Services,324117,Provisions,16-Jan-2018,000006908118429,FREEMAN CATERING BUTCH,5422,Catering costs - provisions,62.16,0.00,62.16
Adult and Health Services,Head of Adults,055301,Stanley Pathways,Supplies and Services,324117,Provisions,16-Jan-2018,000006908118449,ASDA SUPERSTORE,5411,Catering costs - provisions,2.57,0.00,2.57
Regeneration and Local Services,Economic Development and Housing,031576,B& B - Temp Accom,Supplies and Services,364320,Grants to Voluntary Organisations,16-Jan-2018,000006908118457,TRAVELODGE,3615,Accommodation assistance,39.00,0.00,39.00
Regeneration and Local Services,Economic Development and Housing,031576,B& B - Temp Accom,Supplies and Services,364320,Grants to Voluntary Organisations,16-Jan-2018,000006908118461,TRAVELODGE,3615,Accommodation assistance,39.00,0.00,39.00
Regeneration and Local Services,Economic Development and Housing,031576,B& B - Temp Accom,Supplies and Services,364320,Grants to Voluntary Organisations,16-Jan-2018,000006908118465,TRAVELODGE,3615,Accommodation assistance,45.00,0.00,45.00
Regeneration and Local Services,Direct Services,010301,C&G - North Grounds Maintenance,Supplies and Services,312011,Newspapers Books and Periodicals,16-Jan-2018,000006908118473,TOOLSTATION LTD,5251,Books-school library,65.14,0.00,65.14
Regeneration and Local Services,Economic Development and Housing,030671,Business Space,Supplies and Services,304403,Equipment and Materials,16-Jan-2018,000006908118557,WWW.PRINTERBASE.CO.UK,5999,Other consumables,10.51,0.00,10.51
Children and Young Peoples Services,Head of Early Help Assessment and Safeguarding,074000,TTF-Attachment and Results,Supplies and Services,308011,Furniture,16-Jan-2018,000006908118617,FRANKS THE FLOORING ST,5713,Furniture repair and replacement,150.00,0.00,150.00
Regeneration and Local Services,Spatial Policy Planning Assets & Environment,031030,Development Management,Supplies and Services,332047,Printing Stationery and Gen Off Exps,16-Jan-2018,000006908118625,OSWALD DONNER & CO,5399,Stationery,81.60,13.60,68.00
Regeneration and Local Services,Spatial Policy Planning Assets & Environment,031030,Development Management,Supplies and Services,332047,Printing Stationery and Gen Off Exps,16-Jan-2018,000006908118631,SP VIKING TAPES,5399,Stationery,67.08,11.18,55.90
Children and Young Peoples Services,Head of Looked After Provision Permanence and Care Leavers,085363,LAC & Permanence Team 3,Supplies and Services,304259,Equipment and Materials,16-Jan-2018,000006908118683,DARLINGTON BC INTERNET,9399,Equipment-purchase and rental,12.00,0.00,12.00
Children and Young Peoples Services,Head of Looked After Provision Permanence and Care Leavers,085363,LAC & Permanence Team 3,Supplies and Services,304259,Equipment and Materials,16-Jan-2018,000006908118685,WWW.DURHAM.GOV.UK,9399,Equipment-purchase and rental,24.00,0.00,24.00
Regeneration and Local Services,Spatial Policy Planning Assets & Environment,031200,North Pennines Core,Supplies and Services,304999,Equipment and Materials,16-Jan-2018,000006908118723,Amazon Prime,5968,Misc equipment tools and materials,7.99,0.00,7.99
Children and Young Peoples Services,Head of Early Help Assessment and Safeguarding,085801,CDYOS - Support,Supplies and Services,312011,Newspapers Books and Periodicals,16-Jan-2018,000006908118735,"Amazon Svcs Europe,SAR",5942,Books-school library,14.47,0.00,14.47
Children and Young Peoples Services,Head of Early Help Assessment and Safeguarding,085801,CDYOS - Support,Supplies and Services,312011,Newspapers Books and Periodicals,16-Jan-2018,000006908118741,Amazon UK Marketplace,5942,Books-school library,25.50,0.00,25.50
Dedicated Schools Grant,Dedicated Schools Grant,079063,Partial Hearing-Belmont Comp,Supplies and Services,304403,Equipment and Materials,16-Jan-2018,000006912303121,AMAZON EU AMAZON.CO.UK,5999,Other consumables,32.49,0.00,32.49
Regeneration and Local Services,Direct Services,021242,Catering - County Hall,Supplies and Services,324117,Provisions,16-Jan-2018,000006912303293,BATLEYS PERTH,5300,Catering costs - provisions,174.72,29.12,145.60
Regeneration and Local Services,Direct Services,021242,Catering - County Hall,Supplies and Services,324117,Provisions,16-Jan-2018,000006912303293 - 1,BATLEYS PERTH,5300,Catering costs - provisions,222.40,,222.40
Regeneration and Local Services,Culture & Sport,054812,Gala Theatre - Catering etc,Supplies and Services,324117,Provisions,16-Jan-2018,000006912303327,BATLEYS PERTH,5300,Catering costs - provisions,-88.68,0.00,-88.68
Children and Young Peoples Services,Head of Looked After Provision Permanence and Care Leavers,085957,Secure Management,Supplies and Services,328041,Clothing Uniforms and Laundry,16-Jan-2018,000006912303877,WWW.ARGOS.CO.UK,5310,Clothing uniforms and laundry,18.94,0.00,18.94
Regeneration and Local Services,Culture & Sport,011060,Hardwick Park Catering,Supplies and Services,324117,Provisions,16-Jan-2018,000006912303937,BATLEYS PERTH,5300,Catering costs - provisions,11.55,0.00,11.55
Regeneration and Local Services,Direct Services,021234,Catering - Locomotion,Supplies and Services,324117,Provisions,16-Jan-2018,000006912303999,BATLEYS PERTH,5300,Catering costs - provisions,214.62,35.77,178.85
Regeneration and Local Services,Direct Services,021234,Catering - Locomotion,Supplies and Services,324117,Provisions,16-Jan-2018,000006912303999 - 1,BATLEYS PERTH,5300,Catering costs - provisions,87.08,,87.08
Regeneration and Local Services,Direct Services,021234,Catering - Locomotion,Supplies and Services,324117,Provisions,16-Jan-2018,000006912304011,BATLEYS PERTH,5300,Catering costs - provisions,26.78,0.00,26.78
Children and Young Peoples Services,Head of Early Help Assessment and Safeguarding,085100,Strategic Manager Families First Area South,Supplies and Services,384199,Miscellaneous Expenses,16-Jan-2018,000006912304439,HARTLEPOOL BC CNP,9399,Other hired and contracted services,14.00,0.00,14.00
Regeneration and Local Services,Direct Services,021324,Catering - Meadowfield,Supplies and Services,324117,Provisions,16-Jan-2018,000006912304521,BATLEYS PERTH,5300,Catering costs - provisions,96.84,16.14,80.70
Regeneration and Local Services,Direct Services,021324,Catering - Meadowfield,Supplies and Services,324117,Provisions,16-Jan-2018,000006912304521 - 1,BATLEYS PERTH,5300,Catering costs - provisions,105.18,,105.18
Regeneration and Local Services,Economic Development and Housing,031576,B& B - Temp Accom,Supplies and Services,364320,Grants to Voluntary Organisations,16-Jan-2018,000006912304581,PREMIER INN,3811,Accommodation assistance,83.00,0.00,83.00
Regeneration and Local Services,Economic Development and Housing,031576,B& B - Temp Accom,Supplies and Services,364320,Grants to Voluntary Organisations,16-Jan-2018,000006912304589,PREMIER INN,3811,Accommodation assistance,78.00,0.00,78.00
Regeneration and Local Services,Economic Development and Housing,031576,B& B - Temp Accom,Supplies and Services,364320,Grants to Voluntary Organisations,16-Jan-2018,000006912304593,PREMIER INN,3811,Accommodation assistance,73.00,0.00,73.00
Children and Young Peoples Services,Head of Looked After Provision Permanence and Care Leavers,085957,Secure Management,Supplies and Services,328041,Clothing Uniforms and Laundry,16-Jan-2018,000006970933109,21THREE CLOTHING COMPA,5691,Clothing uniforms and laundry,-12.00,0.00,-12.00
Transformation and Partnerships,Partnerships & Community Engagement Div.,085001,Local Safeguarding Childrens Board,Supplies and Services,304335,Equipment and Materials,17-Jan-2018,000006908117643,Amazon UK Marketplace,5942,ICT supplies etc,12.94,0.00,12.94
Children and Young Peoples Services,Head of Looked After Provision Permanence and Care Leavers,085341,High Etherley Satelite Home,Supplies and Services,324117,Provisions,17-Jan-2018,000006912302975,TESCO STORES 6329,5411,Catering costs - provisions,178.95,0.00,178.95
Children and Young Peoples Services,Head of Looked After Provision Permanence and Care Leavers,085341,High Etherley Satelite Home,Transport,215995,Running Costs of Vehicles,17-Jan-2018,000006912302981,TESCO PAY AT PUMP 4214,5542,Vehicle running expenses,38.79,0.00,38.79
Children and Young Peoples Services,Head of Education,071801,Selby Cottage Childcare Centre,Supplies and Services,304259,Equipment and Materials,17-Jan-2018,000006912303017,WILKO RETAIL LIMIT,5722,Equipment-purchase and rental,16.65,0.00,16.65
Resources,Digital and Customer Services,069010,Administration,Supplies and Services,344033,Telephones,17-Jan-2018,000006912303047,Amazon UK Marketplace,5942,Telephones general-all costs,199.00,0.00,199.00
Regeneration and Local Services,Economic Development and Housing,030705,Visit County Durham,Supplies and Services,384999,Miscellaneous Expenses,17-Jan-2018,000006912303099,WWW.FIRSTLIGHTOPTICS.C,5946,Other expenses,201.95,33.66,168.29
Regeneration and Local Services,Economic Development and Housing,030705,Visit County Durham,Supplies and Services,304259,Equipment and Materials,17-Jan-2018,000006912303103,WILKO.COM,5722,Equipment-purchase and rental,16.00,0.00,16.00
Regeneration and Local Services,Economic Development and Housing,030737,Durham Works Flexible Fund,Transport,230031,Contract Hire,17-Jan-2018,000006912303249,ARRIVA NORTH EAST,4131,Pupils-transport to play fields etc,46.00,0.00,46.00
Regeneration and Local Services,Direct Services,021242,Catering - County Hall,Supplies and Services,324117,Provisions,17-Jan-2018,000006912303261,HOPWELLS LTD,5811,Catering costs - provisions,160.11,0.00,160.11
Regeneration and Local Services,Direct Services,021242,Catering - County Hall,Supplies and Services,324117,Provisions,17-Jan-2018,000006912303271,JR HOLLAND FOODSERVICE,5422,Catering costs - provisions,109.51,0.00,109.51
Regeneration and Local Services,Direct Services,021242,Catering - County Hall,Supplies and Services,324117,Provisions,17-Jan-2018,000006912303283,JR HOLLAND FOODSERVICE,5422,Catering costs - provisions,30.14,0.00,30.14
Regeneration and Local Services,Direct Services,021242,Catering - County Hall,Supplies and Services,324117,Provisions,17-Jan-2018,000006912303287,JR HOLLAND FOODSERVICE,5422,Catering costs - provisions,25.79,0.00,25.79
Regeneration and Local Services,Economic Development and Housing,030737,Durham Works Flexible Fund,Supplies and Services,328041,Clothing Uniforms and Laundry,17-Jan-2018,000006912303309,WWW.DICKIESSTORE.CO.UK,5691,Clothing uniforms and laundry,22.99,0.00,22.99
Regeneration and Local Services,Economic Development and Housing,030737,Durham Works Flexible Fund,Supplies and Services,328041,Clothing Uniforms and Laundry,17-Jan-2018,000006912303317,NEW LOOK 1706,5621,Clothing uniforms and laundry,-13.79,0.00,-13.79
Regeneration and Local Services,Culture & Sport,054812,Gala Theatre - Catering etc,Supplies and Services,324117,Provisions,17-Jan-2018,000006912303323,HOPWELLS LTD,5811,Catering costs - provisions,70.69,0.00,70.69
Children and Young Peoples Services,Head of Looked After Provision Permanence and Care Leavers,085361,LAC & Permanence Team 1,Supplies and Services,384999,Miscellaneous Expenses,17-Jan-2018,000006912303411,GRO HM PASSPORT OFFICE,9399,Other expenses,9.25,0.00,9.25
Regeneration and Local Services,Direct Services,010900,Fleet - Meadowfield Fleet,Transport,215013,Running Costs of Vehicles,17-Jan-2018,000006912303445,DVLA VEHICLE TAX,9399,Vehicle Excise Duty (VED),242.50,0.00,242.50
Regeneration and Local Services,Direct Services,010561,Fleet - Morrison Busty Fleet,Transport,215013,Running Costs of Vehicles,17-Jan-2018,000006912303451,DVLA VEHICLE TAX,9399,Vehicle Excise Duty (VED),242.50,0.00,242.50
Regeneration and Local Services,Direct Services,010900,Fleet - Meadowfield Fleet,Transport,215013,Running Costs of Vehicles,17-Jan-2018,000006912303461,DVLA VEHICLE TAX,9399,Vehicle Excise Duty (VED),242.50,0.00,242.50
Regeneration and Local Services,Direct Services,010900,Fleet - Meadowfield Fleet,Transport,215013,Running Costs of Vehicles,17-Jan-2018,000006912303469,DVLA VEHICLE TAX,9399,Vehicle Excise Duty (VED),242.50,0.00,242.50
Regeneration and Local Services,Direct Services,010561,Fleet - Morrison Busty Fleet,Transport,215013,Running Costs of Vehicles,17-Jan-2018,000006912303473,DVLA VEHICLE TAX,9399,Vehicle Excise Duty (VED),242.50,0.00,242.50
Regeneration and Local Services,Direct Services,010900,Fleet - Meadowfield Fleet,Transport,215013,Running Costs of Vehicles,17-Jan-2018,000006912303477,DVLA VEHICLE TAX,9399,Vehicle Excise Duty (VED),242.50,0.00,242.50
Regeneration and Local Services,Direct Services,010900,Fleet - Meadowfield Fleet,Transport,215013,Running Costs of Vehicles,17-Jan-2018,000006912303485,DVLA VEHICLE TAX,9399,Vehicle Excise Duty (VED),242.50,0.00,242.50
Regeneration and Local Services,Direct Services,010551,Fleet - Chilton Fleet,Transport,215013,Running Costs of Vehicles,17-Jan-2018,000006912303487,DVLA VEHICLE TAX,9399,Vehicle Excise Duty (VED),167.50,0.00,167.50
Regeneration and Local Services,Direct Services,010864,Fleet - Hackworth Road Fleet,Transport,215013,Running Costs of Vehicles,17-Jan-2018,000006912303499,DVLA VEHICLE TAX,9399,Vehicle Excise Duty (VED),167.50,0.00,167.50
Regeneration and Local Services,Direct Services,010900,Fleet - Meadowfield Fleet,Transport,215013,Running Costs of Vehicles,17-Jan-2018,000006912303501,DVLA VEHICLE TAX,9399,Vehicle Excise Duty (VED),242.50,0.00,242.50
Regeneration and Local Services,Direct Services,010900,Fleet - Meadowfield Fleet,Transport,215013,Running Costs of Vehicles,17-Jan-2018,000006912303507,DVLA VEHICLE TAX,9399,Vehicle Excise Duty (VED),652.50,0.00,652.50
Regeneration and Local Services,Direct Services,010900,Fleet - Meadowfield Fleet,Transport,215013,Running Costs of Vehicles,17-Jan-2018,000006912303509,DVLA VEHICLE TAX,9399,Vehicle Excise Duty (VED),242.50,0.00,242.50
Regeneration and Local Services,Direct Services,010900,Fleet - Meadowfield Fleet,Transport,215013,Running Costs of Vehicles,17-Jan-2018,000006912303515,DVLA VEHICLE TAX,9399,Vehicle Excise Duty (VED),167.50,0.00,167.50
Regeneration and Local Services,Direct Services,010900,Fleet - Meadowfield Fleet,Transport,215013,Running Costs of Vehicles,17-Jan-2018,000006912303519,DVLA VEHICLE TAX,9399,Vehicle Excise Duty (VED),242.50,0.00,242.50
Regeneration and Local Services,Direct Services,010900,Fleet - Meadowfield Fleet,Transport,215013,Running Costs of Vehicles,17-Jan-2018,000006912303521,DVLA VEHICLE TAX,9399,Vehicle Excise Duty (VED),242.50,0.00,242.50
Regeneration and Local Services,Direct Services,010551,Fleet - Chilton Fleet,Transport,215013,Running Costs of Vehicles,17-Jan-2018,000006912303527,DVLA VEHICLE TAX,9399,Vehicle Excise Duty (VED),242.50,0.00,242.50
Regeneration and Local Services,Direct Services,010864,Fleet - Hackworth Road Fleet,Transport,215013,Running Costs of Vehicles,17-Jan-2018,000006912303531,DVLA VEHICLE TAX,9399,Vehicle Excise Duty (VED),242.50,0.00,242.50
Regeneration and Local Services,Direct Services,010551,Fleet - Chilton Fleet,Transport,215013,Running Costs of Vehicles,17-Jan-2018,000006912303533,DVLA VEHICLE TAX,9399,Vehicle Excise Duty (VED),242.50,0.00,242.50
Regeneration and Local Services,Direct Services,010561,Fleet - Morrison Busty Fleet,Transport,215013,Running Costs of Vehicles,17-Jan-2018,000006912303537,DVLA VEHICLE TAX,9399,Vehicle Excise Duty (VED),242.50,0.00,242.50
Regeneration and Local Services,Direct Services,010900,Fleet - Meadowfield Fleet,Transport,215013,Running Costs of Vehicles,17-Jan-2018,000006912303543,DVLA VEHICLE TAX,9399,Vehicle Excise Duty (VED),242.50,0.00,242.50
Regeneration and Local Services,Direct Services,010551,Fleet - Chilton Fleet,Transport,215013,Running Costs of Vehicles,17-Jan-2018,000006912303545,DVLA VEHICLE TAX,9399,Vehicle Excise Duty (VED),242.50,0.00,242.50
Regeneration and Local Services,Direct Services,010900,Fleet - Meadowfield Fleet,Transport,215013,Running Costs of Vehicles,17-Jan-2018,000006912303553,DVLA VEHICLE TAX,9399,Vehicle Excise Duty (VED),242.50,0.00,242.50
Regeneration and Local Services,Direct Services,010864,Fleet - Hackworth Road Fleet,Transport,215013,Running Costs of Vehicles,17-Jan-2018,000006912303557,DVLA VEHICLE TAX,9399,Vehicle Excise Duty (VED),167.50,0.00,167.50
Regeneration and Local Services,Direct Services,010900,Fleet - Meadowfield Fleet,Transport,215013,Running Costs of Vehicles,17-Jan-2018,000006912303563,DVLA VEHICLE TAX,9399,Vehicle Excise Duty (VED),242.50,0.00,242.50
Regeneration and Local Services,Direct Services,010900,Fleet - Meadowfield Fleet,Transport,215013,Running Costs of Vehicles,17-Jan-2018,000006912303567,DVLA VEHICLE TAX,9399,Vehicle Excise Duty (VED),242.50,0.00,242.50
Regeneration and Local Services,Direct Services,010551,Fleet - Chilton Fleet,Transport,215013,Running Costs of Vehicles,17-Jan-2018,000006912303575,DVLA VEHICLE TAX,9399,Vehicle Excise Duty (VED),242.50,0.00,242.50
Regeneration and Local Services,Direct Services,010561,Fleet - Morrison Busty Fleet,Transport,215013,Running Costs of Vehicles,17-Jan-2018,000006912303579,DVLA VEHICLE TAX,9399,Vehicle Excise Duty (VED),242.50,0.00,242.50
Regeneration and Local Services,Direct Services,010900,Fleet - Meadowfield Fleet,Transport,215013,Running Costs of Vehicles,17-Jan-2018,000006912303585,DVLA VEHICLE TAX,9399,Vehicle Excise Duty (VED),242.50,0.00,242.50
Regeneration and Local Services,Direct Services,010900,Fleet - Meadowfield Fleet,Transport,215013,Running Costs of Vehicles,17-Jan-2018,000006912303591,DVLA VEHICLE TAX,9399,Vehicle Excise Duty (VED),242.50,0.00,242.50
Regeneration and Local Services,Direct Services,010551,Fleet - Chilton Fleet,Transport,215013,Running Costs of Vehicles,17-Jan-2018,000006912303595,DVLA VEHICLE TAX,9399,Vehicle Excise Duty (VED),167.50,0.00,167.50
Regeneration and Local Services,Direct Services,010561,Fleet - Morrison Busty Fleet,Transport,215013,Running Costs of Vehicles,17-Jan-2018,000006912303599,DVLA VEHICLE TAX,9399,Vehicle Excise Duty (VED),167.50,0.00,167.50
Regeneration and Local Services,Direct Services,010900,Fleet - Meadowfield Fleet,Transport,215013,Running Costs of Vehicles,17-Jan-2018,000006912303607,DVLA VEHICLE TAX,9399,Vehicle Excise Duty (VED),242.50,0.00,242.50
Regeneration and Local Services,Direct Services,010900,Fleet - Meadowfield Fleet,Transport,215013,Running Costs of Vehicles,17-Jan-2018,000006912303611,DVLA VEHICLE TAX,9399,Vehicle Excise Duty (VED),242.50,0.00,242.50
Regeneration and Local Services,Direct Services,010900,Fleet - Meadowfield Fleet,Transport,215013,Running Costs of Vehicles,17-Jan-2018,000006912303617,DVLA VEHICLE TAX,9399,Vehicle Excise Duty (VED),242.50,0.00,242.50
Regeneration and Local Services,Direct Services,010561,Fleet - Morrison Busty Fleet,Transport,215013,Running Costs of Vehicles,17-Jan-2018,000006912303619,DVLA VEHICLE TAX,9399,Vehicle Excise Duty (VED),242.50,0.00,242.50
Regeneration and Local Services,Direct Services,010900,Fleet - Meadowfield Fleet,Transport,215013,Running Costs of Vehicles,17-Jan-2018,000006912303623,DVLA VEHICLE TAX,9399,Vehicle Excise Duty (VED),242.50,0.00,242.50
Regeneration and Local Services,Direct Services,010900,Fleet - Meadowfield Fleet,Transport,215013,Running Costs of Vehicles,17-Jan-2018,000006912303629,DVLA VEHICLE TAX,9399,Vehicle Excise Duty (VED),242.50,0.00,242.50
Regeneration and Local Services,Direct Services,010900,Fleet - Meadowfield Fleet,Transport,215013,Running Costs of Vehicles,17-Jan-2018,000006912303633,DVLA VEHICLE TAX,9399,Vehicle Excise Duty (VED),242.50,0.00,242.50
Regeneration and Local Services,Direct Services,010900,Fleet - Meadowfield Fleet,Transport,215013,Running Costs of Vehicles,17-Jan-2018,000006912303637,DVLA VEHICLE TAX,9399,Vehicle Excise Duty (VED),242.50,0.00,242.50
Regeneration and Local Services,Direct Services,010900,Fleet - Meadowfield Fleet,Transport,215013,Running Costs of Vehicles,17-Jan-2018,000006912303639,DVLA VEHICLE TAX,9399,Vehicle Excise Duty (VED),242.50,0.00,242.50
Regeneration and Local Services,Direct Services,010900,Fleet - Meadowfield Fleet,Transport,215013,Running Costs of Vehicles,17-Jan-2018,000006912303647,DVLA VEHICLE TAX,9399,Vehicle Excise Duty (VED),242.50,0.00,242.50
Regeneration and Local Services,Direct Services,010864,Fleet - Hackworth Road Fleet,Transport,215013,Running Costs of Vehicles,17-Jan-2018,000006912303649,DVLA VEHICLE TAX,9399,Vehicle Excise Duty (VED),242.50,0.00,242.50
Regeneration and Local Services,Direct Services,010900,Fleet - Meadowfield Fleet,Transport,215013,Running Costs of Vehicles,17-Jan-2018,000006912303655,DVLA VEHICLE TAX,9399,Vehicle Excise Duty (VED),242.50,0.00,242.50
Regeneration and Local Services,Direct Services,010864,Fleet - Hackworth Road Fleet,Transport,215013,Running Costs of Vehicles,17-Jan-2018,000006912303661,DVLA VEHICLE TAX,9399,Vehicle Excise Duty (VED),167.50,0.00,167.50
Regeneration and Local Services,Direct Services,010900,Fleet - Meadowfield Fleet,Transport,215013,Running Costs of Vehicles,17-Jan-2018,000006912303663,DVLA VEHICLE TAX,9399,Vehicle Excise Duty (VED),242.50,0.00,242.50
Regeneration and Local Services,Direct Services,010900,Fleet - Meadowfield Fleet,Transport,215013,Running Costs of Vehicles,17-Jan-2018,000006912303667,DVLA VEHICLE TAX,9399,Vehicle Excise Duty (VED),242.50,0.00,242.50
Regeneration and Local Services,Direct Services,010900,Fleet - Meadowfield Fleet,Transport,215013,Running Costs of Vehicles,17-Jan-2018,000006912303675,DVLA VEHICLE TAX,9399,Vehicle Excise Duty (VED),242.50,0.00,242.50
Regeneration and Local Services,Direct Services,010900,Fleet - Meadowfield Fleet,Transport,215013,Running Costs of Vehicles,17-Jan-2018,000006912303679,DVLA VEHICLE TAX,9399,Vehicle Excise Duty (VED),242.50,0.00,242.50
Regeneration and Local Services,Direct Services,010551,Fleet - Chilton Fleet,Transport,215013,Running Costs of Vehicles,17-Jan-2018,000006912303685,DVLA VEHICLE TAX,9399,Vehicle Excise Duty (VED),242.50,0.00,242.50
Regeneration and Local Services,Economic Development and Housing,030737,Durham Works Flexible Fund,Transport,235057,Public Transport,17-Jan-2018,000006912303851,WWW.SIMPLYGO.COM,4131,Staff travelling,-15.50,0.00,-15.50
Regeneration and Local Services,Economic Development and Housing,030737,Durham Works Flexible Fund,Transport,235057,Public Transport,17-Jan-2018,000006912303859,WWW.SIMPLYGO.COM,4131,Staff travelling,-15.50,0.00,-15.50
Children and Young Peoples Services,Head of Looked After Provision Permanence and Care Leavers,085957,Secure Management,Supplies and Services,328041,Clothing Uniforms and Laundry,17-Jan-2018,000006912303869,CETOX,5331,Clothing uniforms and laundry,13.50,0.00,13.50
Children and Young Peoples Services,Head of Looked After Provision Permanence and Care Leavers,085957,Secure Management,Supplies and Services,324117,Provisions,17-Jan-2018,000006912303881,TESCO STORES 6329,5411,Catering costs - provisions,111.56,0.00,111.56
Regeneration and Local Services,Culture & Sport,011060,Hardwick Park Catering,Supplies and Services,324117,Provisions,17-Jan-2018,000006912303911,HOPWELLS LTD,5811,Catering costs - provisions,28.42,0.00,28.42
Regeneration and Local Services,Culture & Sport,011060,Hardwick Park Catering,Supplies and Services,324117,Provisions,17-Jan-2018,000006912303921,JR HOLLAND FOODSERVICE,5422,Catering costs - provisions,64.16,0.00,64.16
Regeneration and Local Services,Culture & Sport,011060,Hardwick Park Catering,Supplies and Services,324117,Provisions,17-Jan-2018,000006912303929,JR HOLLAND FOODSERVICE,5422,Catering costs - provisions,53.97,0.00,53.97
Children and Young Peoples Services,Head of Looked After Provision Permanence and Care Leavers,085332,Middlestone Moor CU,Supplies and Services,324117,Provisions,17-Jan-2018,000006912303951,ALDI 59 774,5411,Catering costs - provisions,21.90,0.00,21.90
Children and Young Peoples Services,Head of Looked After Provision Permanence and Care Leavers,085332,Middlestone Moor CU,Supplies and Services,304259,Equipment and Materials,17-Jan-2018,000006912303959,WILKO RETAIL LIMIT,5722,Equipment-purchase and rental,74.00,0.00,74.00
Children and Young Peoples Services,Head of Looked After Provision Permanence and Care Leavers,085332,Middlestone Moor CU,Supplies and Services,324117,Provisions,17-Jan-2018,000006912303965,TESCO STORES 2916,5411,Catering costs - provisions,95.50,0.00,95.50
Regeneration and Local Services,Direct Services,021234,Catering - Locomotion,Supplies and Services,324117,Provisions,17-Jan-2018,000006912303973,JR HOLLAND FOODSERVICE,5422,Catering costs - provisions,113.97,0.00,113.97
Regeneration and Local Services,Direct Services,021234,Catering - Locomotion,Supplies and Services,324117,Provisions,17-Jan-2018,000006912303987,JR HOLLAND FOODSERVICE,5422,Catering costs - provisions,44.50,0.00,44.50
Regeneration and Local Services,Direct Services,021234,Catering - Locomotion,Supplies and Services,324117,Provisions,17-Jan-2018,000006912303993,JR HOLLAND FOODSERVICE,5422,Catering costs - provisions,20.49,0.00,20.49
Regeneration and Local Services,Economic Development and Housing,031576,B& B - Temp Accom,Supplies and Services,364320,Grants to Voluntary Organisations,17-Jan-2018,000006912304019,TRAVELODGE,3615,Accommodation assistance,39.00,0.00,39.00
Regeneration and Local Services,Economic Development and Housing,031576,B& B - Temp Accom,Supplies and Services,364320,Grants to Voluntary Organisations,17-Jan-2018,000006912304025,TRAVELODGE,3615,Accommodation assistance,39.00,0.00,39.00
Regeneration and Local Services,Economic Development and Housing,031576,B& B - Temp Accom,Supplies and Services,364320,Grants to Voluntary Organisations,17-Jan-2018,000006912304029,TRAVELODGE,3615,Accommodation assistance,39.00,0.00,39.00
Regeneration and Local Services,Direct Services,010525,Catering - Green Lane,Supplies and Services,324117,Provisions,17-Jan-2018,000006912304061,JR HOLLAND FOODSERVICE,5422,Catering costs - provisions,44.62,0.00,44.62
Regeneration and Local Services,Economic Development and Housing,030749,Employability - Youth Contract,Employees,040149,Recruitment Instruction and Training,17-Jan-2018,000006912304207,CITB,8220,Training-all costs,30.00,5.00,25.00
Regeneration and Local Services,Direct Services,010367,C&G - South Grounds Maintenance,Supplies and Services,328041,Clothing Uniforms and Laundry,17-Jan-2018,000006912304231,STERLING SAFETY SERVIC,5691,Clothing uniforms and laundry,42.00,7.00,35.00
Regeneration and Local Services,Direct Services,010301,C&G - North Grounds Maintenance,Supplies and Services,328041,Clothing Uniforms and Laundry,17-Jan-2018,000006912304411,THOMAS OWEN & SONS /N/,5611,Clothing uniforms and laundry,133.54,0.00,133.54
Dedicated Schools Grant,Dedicated Schools Grant,079040,SENSS-HQ,Supplies and Services,324117,Provisions,17-Jan-2018,000006912304447,ASDA HOME SHOPPING,5411,Catering costs - provisions,52.17,0.00,52.17
Regeneration and Local Services,Culture & Sport,054235,Bishop Auckland Town Hall Cafe,Supplies and Services,324117,Provisions,17-Jan-2018,000006912304479,JR HOLLAND FOODSERVICE,5422,Catering costs - provisions,50.21,0.00,50.21
Regeneration and Local Services,Direct Services,021324,Catering - Meadowfield,Supplies and Services,324117,Provisions,17-Jan-2018,000006912304505,JR HOLLAND FOODSERVICE,5422,Catering costs - provisions,57.82,0.00,57.82
Regeneration and Local Services,Direct Services,021324,Catering - Meadowfield,Supplies and Services,324117,Provisions,17-Jan-2018,000006912304513,JR HOLLAND FOODSERVICE,5422,Catering costs - provisions,13.89,0.00,13.89
Children and Young Peoples Services,Head of Early Help Assessment and Safeguarding,074000,TTF-Attachment and Results,Supplies and Services,308011,Furniture,17-Jan-2018,000006912304707,FRANKS THE FLOORING ST,5713,Furniture repair and replacement,150.00,0.00,150.00
Children and Young Peoples Services,Head of Early Help Assessment and Safeguarding,074000,TTF-Attachment and Results,Supplies and Services,304403,Equipment and Materials,17-Jan-2018,000006912304713,TESCO - EDPA,5999,Other consumables,37.98,0.00,37.98
Children and Young Peoples Services,Head of Early Help Assessment and Safeguarding,074000,TTF-Attachment and Results,Supplies and Services,304403,Equipment and Materials,17-Jan-2018,000006912304719,TESCO DIRECT,5999,Other consumables,-10.80,0.00,-10.80
Children and Young Peoples Services,Head of Early Help Assessment and Safeguarding,074000,TTF-Attachment and Results,Supplies and Services,304403,Equipment and Materials,17-Jan-2018,000006912304727,TESCO DIRECT,5999,Other consumables,-30.50,0.00,-30.50
Transformation and Partnerships,Comms & Information Management,060270,Communications and Marketing,Supplies and Services,372009,Subscriptions,17-Jan-2018,000006912304737,STK SHUTTERSTOCK.COM,7333,Subscriptions,70.80,0.00,70.80
Resources,Digital and Customer Services,069010,Administration,Transport,235057,Public Transport,17-Jan-2018,000006912304745,OYSTER RENEW WEB,4112,Staff travelling,50.00,0.00,50.00
Resources,Legal & Democratic Services,067910,Democratic Representation,Transport,235057,Public Transport,17-Jan-2018,000006912304753,NATIONAL RAILCARD,4112,Staff travelling,70.00,0.00,70.00
Regeneration and Local Services,Direct Services,021235,Catering - Wharton Park,Supplies and Services,324117,Provisions,17-Jan-2018,000006912304763,JR HOLLAND FOODSERVICE,5422,Catering costs - provisions,17.05,0.00,17.05
Children and Young Peoples Services,Head of Early Help Assessment and Safeguarding,085801,CDYOS - Support,Supplies and Services,312011,Newspapers Books and Periodicals,17-Jan-2018,000006912304889,Amazon UK Marketplace,5942,Books-school library,5.80,0.00,5.80
Children and Young Peoples Services,Head of Education,054640,Durham Learning Resources,Supplies and Services,312011,Newspapers Books and Periodicals,17-Jan-2018,000006916911191,AMAZON SVCS EU-UK AMAZ,5942,Books-school library,9.31,0.00,9.31
Regeneration and Local Services,Economic Development and Housing,030705,Visit County Durham,Supplies and Services,304403,Equipment and Materials,17-Jan-2018,000006916911253,AMAZON EU AMAZON.CO.UK,5999,Other consumables,12.09,0.00,12.09
Regeneration and Local Services,Economic Development and Housing,030737,Durham Works Flexible Fund,Supplies and Services,328041,Clothing Uniforms and Laundry,17-Jan-2018,000006916911285,SPORTSDIRECT.COM,5941,Clothing uniforms and laundry,27.99,0.00,27.99
Regeneration and Local Services,Economic Development and Housing,030737,Durham Works Flexible Fund,Supplies and Services,328041,Clothing Uniforms and Laundry,17-Jan-2018,000006916911303,VANS,5651,Clothing uniforms and laundry,55.00,0.00,55.00
Children and Young Peoples Services,Head of Looked After Provision Permanence and Care Leavers,085957,Secure Management,Supplies and Services,312011,Newspapers Books and Periodicals,17-Jan-2018,000006916911403,AMAZON SVCS EU-UK AMAZ,5942,Books-school library,15.40,0.00,15.40
Regeneration and Local Services,Culture & Sport,011060,Hardwick Park Catering,Supplies and Services,324117,Provisions,17-Jan-2018,000006916911425,BATLEYS PERTH,5300,Catering costs - provisions,-11.98,0.00,-11.98
Regeneration and Local Services,Economic Development and Housing,031576,B& B - Temp Accom,Supplies and Services,364320,Grants to Voluntary Organisations,17-Jan-2018,000006916911441,PREMIER INN,3811,Accommodation assistance,76.00,0.00,76.00
Regeneration and Local Services,Economic Development and Housing,031576,B& B - Temp Accom,Supplies and Services,364320,Grants to Voluntary Organisations,17-Jan-2018,000006916911445,PREMIER INN,3811,Accommodation assistance,75.00,12.50,62.50
Regeneration and Local Services,Economic Development and Housing,031576,B& B - Temp Accom,Supplies and Services,364320,Grants to Voluntary Organisations,17-Jan-2018,000006916911449,PREMIER INN,3811,Accommodation assistance,73.00,0.00,73.00
Regeneration and Local Services,Culture & Sport,026591,Hardwick Park,Supplies and Services,312009,Newspapers Books and Periodicals,17-Jan-2018,000006916911487,AMAZON EU AMAZON.CO.UK,5999,Newspapers books and periodicals,8.03,0.00,8.03
Regeneration and Local Services,Culture & Sport,054815,Gala Theatre Stage School,Supplies and Services,304259,Equipment and Materials,17-Jan-2018,000006949756861,WWW.MTISHOWS.COM,5733,Equipment-purchase and rental,450.00,0.00,450.00
Regeneration and Local Services,Direct Services,011171,Nei.Prot - Allotments,Supplies and Services,304335,Equipment and Materials,18-Jan-2018,000006916911195,Amazon UK Marketplace,5942,ICT supplies etc,33.90,0.00,33.90
Regeneration and Local Services,Economic Development and Housing,031500,Housing Solutions - Core Team,Supplies and Services,352001,Conference Expenses,18-Jan-2018,000006916911205,TRAVELODGE,3615,Conferencesseminars fees etc,37.00,0.00,37.00
Regeneration and Local Services,Economic Development and Housing,031500,Housing Solutions - Core Team,Supplies and Services,352001,Conference Expenses,18-Jan-2018,000006916911209,TRAVELODGE,3615,Conferencesseminars fees etc,39.00,0.00,39.00
Regeneration and Local Services,Economic Development and Housing,031500,Housing Solutions - Core Team,Supplies and Services,352001,Conference Expenses,18-Jan-2018,000006916911213,TRAVELODGE,3615,Conferencesseminars fees etc,39.00,0.00,39.00
Adult and Health Services,Head of Adults,055302,Durham Pathways,Supplies and Services,304259,Equipment and Materials,18-Jan-2018,000006916911231,WWW.DURHAM.GOV.UK,9399,Equipment-purchase and rental,20.00,0.00,20.00
Children and Young Peoples Services,Head of Looked After Provision Permanence and Care Leavers,085957,Secure Management,Supplies and Services,338057,Services,18-Jan-2018,000006916911245,WWW.SAFELINCS.CO.UK,5065,Medical fees,88.67,14.78,73.89
Children and Young Peoples Services,Head of Looked After Provision Permanence and Care Leavers,085952,Secure Education,Supplies and Services,304252,Equipment and Materials,18-Jan-2018,000006916911249,SQ PINTEK DIRECT,1520,Equipment-repairsserviceinsurance,37.68,6.28,31.40
Children and Young Peoples Services,Head of Looked After Provision Permanence and Care Leavers,085957,Secure Management,Supplies and Services,304259,Equipment and Materials,18-Jan-2018,000006916911251,WILKO.COM,5722,Equipment-purchase and rental,54.00,0.00,54.00
Dedicated Schools Grant,Dedicated Schools Grant,079063,Partial Hearing-Belmont Comp,Supplies and Services,312011,Newspapers Books and Periodicals,18-Jan-2018,000006916911257,Amazon UK Marketplace,5942,Books-school library,30.12,0.00,30.12
Regeneration and Local Services,Economic Development and Housing,030699,Business Growth and Innovation General,Supplies and Services,304403,Equipment and Materials,18-Jan-2018,000006916911261,THE RIBBON COMPANY,5734,Other consumables,23.70,3.95,19.75
Regeneration and Local Services,Economic Development and Housing,030699,Business Growth and Innovation General,Supplies and Services,304403,Equipment and Materials,18-Jan-2018,000006916911261 - 1,THE RIBBON COMPANY,5734,Other consumables,20.24,,20.24
Regeneration and Local Services,Direct Services,021242,Catering - County Hall,Supplies and Services,324117,Provisions,18-Jan-2018,000006916911289,JR HOLLAND FOODSERVICE,5422,Catering costs - provisions,116.87,0.00,116.87
Regeneration and Local Services,Direct Services,021242,Catering - County Hall,Supplies and Services,324117,Provisions,18-Jan-2018,000006916911293,JR HOLLAND FOODSERVICE,5422,Catering costs - provisions,35.88,0.00,35.88
Regeneration and Local Services,Direct Services,021242,Catering - County Hall,Supplies and Services,324117,Provisions,18-Jan-2018,000006916911299,JR HOLLAND FOODSERVICE,5422,Catering costs - provisions,13.20,0.00,13.20
Regeneration and Local Services,Culture & Sport,054812,Gala Theatre - Catering etc,Supplies and Services,324117,Provisions,18-Jan-2018,000006916911309,JR HOLLAND FOODSERVICE,5422,Catering costs - provisions,50.63,0.00,50.63
Regeneration and Local Services,Culture & Sport,054813,Gala Theatre - Technical,Supplies and Services,328041,Clothing Uniforms and Laundry,18-Jan-2018,000006916911351,SP GOSTAND LIMITED,5691,Clothing uniforms and laundry,69.98,11.66,58.32
Transformation and Partnerships,Comms & Information Management,060131,County Records,Supplies and Services,304403,Equipment and Materials,18-Jan-2018,000006916911367,SP THE PYJAMA HOUSE,5691,Other consumables,32.00,0.00,32.00
Transformation and Partnerships,Comms & Information Management,060131,County Records,Supplies and Services,304403,Equipment and Materials,18-Jan-2018,000006916911371,VIVIENHOLLO,5651,Other consumables,17.00,0.00,17.00
Transformation and Partnerships,Comms & Information Management,060131,County Records,Supplies and Services,304403,Equipment and Materials,18-Jan-2018,000006916911375,Klarna Viva la Rosa,5631,Other consumables,8.99,0.00,8.99
Regeneration and Local Services,Economic Development and Housing,030737,Durham Works Flexible Fund,Supplies and Services,304083,Equipment and Materials,18-Jan-2018,000006916911379,CURRYS ONLINE,5732,Catering equipment,134.99,22.50,112.49
Regeneration and Local Services,Economic Development and Housing,030737,Durham Works Flexible Fund,Supplies and Services,328041,Clothing Uniforms and Laundry,18-Jan-2018,000006916911395,PEACOCK STORES LTD,5331,Clothing uniforms and laundry,10.05,0.00,10.05
Children and Young Peoples Services,Head of Looked After Provision Permanence and Care Leavers,085957,Secure Management,Supplies and Services,312011,Newspapers Books and Periodicals,18-Jan-2018,000006916911407,AMAZON SVCS EU-UK AMAZ,5942,Books-school library,10.00,0.00,10.00
Children and Young Peoples Services,Head of Looked After Provision Permanence and Care Leavers,085957,Secure Management,Supplies and Services,328041,Clothing Uniforms and Laundry,18-Jan-2018,000006916911409,ARGOS RETAIL GROUP,5310,Clothing uniforms and laundry,109.98,0.00,109.98
Regeneration and Local Services,Culture & Sport,011060,Hardwick Park Catering,Supplies and Services,324117,Provisions,18-Jan-2018,000006916911423,JR HOLLAND FOODSERVICE,5422,Catering costs - provisions,17.84,0.00,17.84
Regeneration and Local Services,Direct Services,021234,Catering - Locomotion,Supplies and Services,324117,Provisions,18-Jan-2018,000006916911437,JR HOLLAND FOODSERVICE,5422,Catering costs - provisions,17.63,0.00,17.63
Regeneration and Local Services,Economic Development and Housing,031576,B& B - Temp Accom,Supplies and Services,364320,Grants to Voluntary Organisations,18-Jan-2018,000006916911453,TRAVELODGE,3615,Accommodation assistance,198.00,33.00,165.00
Dedicated Schools Grant,Dedicated Schools Grant,079040,SENSS-HQ,Supplies and Services,304403,Equipment and Materials,18-Jan-2018,000006916911545,AMAZON EU AMAZON.CO.UK,5999,Other consumables,22.31,0.00,22.31
Regeneration and Local Services,Culture & Sport,054235,Bishop Auckland Town Hall Cafe,Supplies and Services,324117,Provisions,18-Jan-2018,000006916911565,JR HOLLAND FOODSERVICE,5422,Catering costs - provisions,-3.03,0.00,-3.03
Children and Young Peoples Services,Head of Early Help Assessment and Safeguarding,074000,TTF-Attachment and Results,Supplies and Services,304403,Equipment and Materials,18-Jan-2018,000006916911653,TESCO - Seller_IST_1_2,5999,Other consumables,109.99,0.00,109.99
Children and Young Peoples Services,Head of Early Help Assessment and Safeguarding,074000,TTF-Attachment and Results,Supplies and Services,304403,Equipment and Materials,18-Jan-2018,000006916911655,TESCO DIRECT,5999,Other consumables,52.00,0.00,52.00
Children and Young Peoples Services,Head of Early Help Assessment and Safeguarding,074000,TTF-Attachment and Results,Supplies and Services,304403,Equipment and Materials,18-Jan-2018,000006916911659,TESCO DIRECT,5999,Other consumables,33.00,0.00,33.00
Regeneration and Local Services,Direct Services,021235,Catering - Wharton Park,Supplies and Services,324117,Provisions,18-Jan-2018,000006916911663,JR HOLLAND FOODSERVICE,5422,Catering costs - provisions,14.64,0.00,14.64
Children and Young Peoples Services,Head of Looked After Provision Permanence and Care Leavers,085363,LAC & Permanence Team 3,Supplies and Services,304259,Equipment and Materials,18-Jan-2018,000006916911673,NORTH TYNESIDE,9399,Equipment-purchase and rental,31.00,0.00,31.00
Regeneration and Local Services,Economic Development and Housing,031500,Housing Solutions - Core Team,Employees,040149,Recruitment Instruction and Training,18-Jan-2018,000006922555049,PREMIER INN,3811,Training-all costs,63.50,0.00,63.50
Regeneration and Local Services,Economic Development and Housing,031500,Housing Solutions - Core Team,Employees,040149,Recruitment Instruction and Training,18-Jan-2018,000006922555057,PREMIER INN,3811,Training-all costs,65.00,0.00,65.00
Regeneration and Local Services,Economic Development and Housing,031500,Housing Solutions - Core Team,Employees,040149,Recruitment Instruction and Training,18-Jan-2018,000006922555059,PREMIER INN,3811,Training-all costs,66.00,0.00,66.00
Regeneration and Local Services,Culture & Sport,011060,Hardwick Park Catering,Supplies and Services,324117,Provisions,18-Jan-2018,000006922555537,BATLEYS PERTH,5300,Catering costs - provisions,113.34,18.89,94.45
Regeneration and Local Services,Culture & Sport,011060,Hardwick Park Catering,Supplies and Services,324117,Provisions,18-Jan-2018,000006922555537 - 1,BATLEYS PERTH,5300,Catering costs - provisions,176.52,,176.52
Resources,Digital and Customer Services,065335,School Services - Implementations,Supplies and Services,304639,Equipment and Materials,18-Jan-2018,000006922555563,AMAZON SVCS EU-UK AMAZ,5942,Technicians-supplies,12.98,0.00,12.98
Regeneration and Local Services,Culture & Sport,054399,Local Delivery-Libraries,Supplies and Services,312009,Newspapers Books and Periodicals,18-Jan-2018,000006922555827,AMAZON EU AMAZON.CO.UK,5999,Newspapers books and periodicals,119.85,0.00,119.85
Dedicated Schools Grant,Dedicated Schools Grant,079040,SENSS-HQ,Supplies and Services,304403,Equipment and Materials,18-Jan-2018,000006922555921,AMAZON EU AMAZON.CO.UK,5999,Other consumables,22.00,0.00,22.00
Regeneration and Local Services,Direct Services,021235,Catering - Wharton Park,Supplies and Services,324117,Provisions,18-Jan-2018,000006922556205,BATLEYS PERTH,5300,Catering costs - provisions,-15.19,-1.75,-13.44
Children and Young Peoples Services,Head of Education,071801,Selby Cottage Childcare Centre,Supplies and Services,324117,Provisions,19-Jan-2018,000006922554947,TESCO STORES 2278,5411,Catering costs - provisions,38.43,0.00,38.43
Children and Young Peoples Services,Head of Education,071801,Selby Cottage Childcare Centre,Supplies and Services,324117,Provisions,19-Jan-2018,000006922554951,TESCO STORES 2278,5411,Catering costs - provisions,7.62,0.00,7.62
Children and Young Peoples Services,Head of Education,054640,Durham Learning Resources,Supplies and Services,312011,Newspapers Books and Periodicals,19-Jan-2018,000006922554961,Amazon UK Marketplace,5942,Books-school library,21.62,0.00,21.62
Children and Young Peoples Services,Head of Education,054640,Durham Learning Resources,Supplies and Services,312011,Newspapers Books and Periodicals,19-Jan-2018,000006922554963,Amazon UK Marketplace,5942,Books-school library,64.80,0.00,64.80
Adult and Health Services,Head of Adults,051622,OP/PD Dales,Income,720130,Fees and Charges,19-Jan-2018,000006922554969,WWW.MONEYCLAIM.GOV,9399,Fees-legal,185.00,0.00,185.00
Resources,Finance & Transactional Services,065156,CYPS Finance,Income,720130,Fees and Charges,19-Jan-2018,000006922554973,WWW.MONEYCLAIM.GOV,9399,Fees-legal,60.00,0.00,60.00
Regeneration and Local Services,Direct Services,010301,C&G - North Grounds Maintenance,Supplies and Services,304259,Equipment and Materials,19-Jan-2018,000006922554981,HARELAW SAWMILL,5211,Equipment-purchase and rental,9.00,0.00,9.00
Adult and Health Services,Commissioning inc Supporting People,052938,Training - Provider Services,Supplies and Services,304403,Equipment and Materials,19-Jan-2018,000006922554999,ODG PROJECTORLAMPSWRLD,5732,Other consumables,73.38,12.23,61.15
Resources,Digital and Customer Services,065482,Data Centres,Supplies and Services,304335,Equipment and Materials,19-Jan-2018,000006922555005,Amazon UK Marketplace,5942,ICT supplies etc,9.73,1.62,8.11
Regeneration and Local Services,Economic Development and Housing,031576,B& B - Temp Accom,Supplies and Services,364320,Grants to Voluntary Organisations,19-Jan-2018,000006922555019,TRAVELODGE,3615,Accommodation assistance,120.00,20.00,100.00
Regeneration and Local Services,Economic Development and Housing,031576,B& B - Temp Accom,Supplies and Services,364320,Grants to Voluntary Organisations,19-Jan-2018,000006922555025,TRAVELODGE,3615,Accommodation assistance,120.00,20.00,100.00
Regeneration and Local Services,Economic Development and Housing,031576,B& B - Temp Accom,Supplies and Services,364320,Grants to Voluntary Organisations,19-Jan-2018,000006922555029,TRAVELODGE,3615,Accommodation assistance,133.00,22.17,110.83
Regeneration and Local Services,Economic Development and Housing,031576,B& B - Temp Accom,Supplies and Services,364320,Grants to Voluntary Organisations,19-Jan-2018,000006922555033,PREMIER INN,3811,Accommodation assistance,175.00,29.17,145.83
Regeneration and Local Services,Economic Development and Housing,031576,B& B - Temp Accom,Supplies and Services,364320,Grants to Voluntary Organisations,19-Jan-2018,000006922555039,PREMIER INN,3811,Accommodation assistance,180.00,30.00,150.00
Regeneration and Local Services,Economic Development and Housing,031576,B& B - Temp Accom,Supplies and Services,364320,Grants to Voluntary Organisations,19-Jan-2018,000006922555043,PREMIER INN,3811,Accommodation assistance,174.50,29.08,145.42
Children and Young Peoples Services,Head of Education,075021,Youth Employment Initiative,Supplies and Services,304999,Equipment and Materials,19-Jan-2018,000006922555063,GOOGLE ADWS7021127990,5968,Misc equipment tools and materials,445.32,0.00,445.32
Regeneration and Local Services,Economic Development and Housing,030699,Business Growth and Innovation General,Supplies and Services,304403,Equipment and Materials,19-Jan-2018,000006922555129,FONTS.COM,5734,Other consumables,9.60,1.60,8.00
Regeneration and Local Services,Economic Development and Housing,030737,Durham Works Flexible Fund,Transport,230031,Contract Hire,19-Jan-2018,000006922555213,ARRIVA NORTH EAST,4131,Pupils-transport to play fields etc,28.00,0.00,28.00
Regeneration and Local Services,Direct Services,021242,Catering - County Hall,Supplies and Services,324117,Provisions,19-Jan-2018,000006922555219,JR HOLLAND FOODSERVICE,5422,Catering costs - provisions,85.86,0.00,85.86
Regeneration and Local Services,Direct Services,021242,Catering - County Hall,Supplies and Services,324117,Provisions,19-Jan-2018,000006922555225,JR HOLLAND FOODSERVICE,5422,Catering costs - provisions,3.40,0.00,3.40
Regeneration and Local Services,Direct Services,021242,Catering - County Hall,Supplies and Services,324117,Provisions,19-Jan-2018,000006922555227,JR HOLLAND FOODSERVICE,5422,Catering costs - provisions,2.54,0.00,2.54
Regeneration and Local Services,Economic Development and Housing,030544,Rural Employability - Client Engagement,Transport,235057,Public Transport,19-Jan-2018,000006922555233,WWW.SIMPLYGO.COM,4131,Staff travelling,21.00,0.00,21.00
Regeneration and Local Services,Economic Development and Housing,030544,Rural Employability - Client Engagement,Supplies and Services,328041,Clothing Uniforms and Laundry,19-Jan-2018,000006922555239,ARGOS,5310,Clothing uniforms and laundry,62.98,0.00,62.98
Regeneration and Local Services,Economic Development and Housing,030544,Rural Employability - Client Engagement,Supplies and Services,328041,Clothing Uniforms and Laundry,19-Jan-2018,000006922555243,ARGOS,5310,Clothing uniforms and laundry,-12.99,0.00,-12.99
Children and Young Peoples Services,Head of Education,070169,Durham SSP,Supplies and Services,384199,Miscellaneous Expenses,19-Jan-2018,000006922555249,COMPANIES HOUSE,9399,Other hired and contracted services,13.00,0.00,13.00
Regeneration and Local Services,Direct Services,021242,Catering - County Hall,Supplies and Services,324117,Provisions,19-Jan-2018,000006922555287,SAINSBURYS LOC4634,5411,Catering costs - provisions,20.70,0.00,20.70
Regeneration and Local Services,Direct Services,021242,Catering - County Hall,Supplies and Services,324117,Provisions,19-Jan-2018,000006922555291,CO-OP GROUP FOOD,5411,Catering costs - provisions,12.10,0.00,12.10
Resources,Finance & Transactional Services,065180,Collections,Supplies and Services,338048,Services,19-Jan-2018,000006922555341,HMCOURTS-SERVICE.G,9222,Court Costs,"7,089.00",0.00,7089.00
Regeneration and Local Services,Economic Development and Housing,030749,Employability - Youth Contract,Transport,235057,Public Transport,19-Jan-2018,000006922555381,ARRIVA NORTH EAST,4131,Staff travelling,80.00,0.00,80.00
Regeneration and Local Services,Economic Development and Housing,030749,Employability - Youth Contract,Transport,235057,Public Transport,19-Jan-2018,000006922555383,ARRIVA NORTH EAST,4131,Staff travelling,80.00,0.00,80.00
Regeneration and Local Services,Economic Development and Housing,030737,Durham Works Flexible Fund,Supplies and Services,328041,Clothing Uniforms and Laundry,19-Jan-2018,000006922555449,NEW LOOK INTERNET,5621,Clothing uniforms and laundry,83.91,0.00,83.91
Children and Young Peoples Services,Head of Looked After Provision Permanence and Care Leavers,085957,Secure Management,Supplies and Services,312011,Newspapers Books and Periodicals,19-Jan-2018,000006922555485,Amazon UK Marketplace,5942,Books-school library,74.95,0.00,74.95
Children and Young Peoples Services,Head of Looked After Provision Permanence and Care Leavers,085957,Secure Management,Supplies and Services,312011,Newspapers Books and Periodicals,19-Jan-2018,000006922555491,AMAZON SVCS EU-UK AMAZ,5942,Books-school library,1.20,0.00,1.20
Children and Young Peoples Services,Head of Looked After Provision Permanence and Care Leavers,085957,Secure Management,Supplies and Services,324117,Provisions,19-Jan-2018,000006922555495,TESCO STORES 6329,5411,Catering costs - provisions,56.72,0.00,56.72
